Workbook

Sheet Dane
H1: Bilans ruchu powietrza | K1: =IF(S1<=P1,IF(S1>P1*0.97,"prawidłowy","błędny"),"błędny") -> prawidłowy | O1: Nawiew | P1: =Obliczenia!N30 -> 260 | Q1: [m3/h] | R1: Wywiew | S1: =Obliczenia!P30 -> 260 | T1: [m3/h]
O3: Data: | P3: =TODAY() -> 2024-09-11 | S3: wersja 17/09/2024
C8: Program doborowy centralnej wentylacji mechanicznej z odzyskiem ciepła
C11: Symulację przygotowano dla…
C17: Powierzchnia wentylowana budynku | H17: 165 | K17: [ m2 ]
I18: 35 - 500
C23: Liczba mieszkańców | H23: 4 | K23: =IF(H23=1,"[ osoba ]",IF(H23<5,"[ osoby ]","[ osób ]")) -> [ osoby ]
I24: 1 - 10
C28: Lista wentylowanych pomieszczeń
C32: 0.1 | E32: Wiatrołap | J32: Powierzchnia | L32: Wysokość | N32: Kubatura | P32: Ruch powietrza | R32: =IF(E32="","n.d.",VLOOKUP(E32,lista_pod_rodzaj_ruchu_powietrza,4,0)) -> wywiew | T32: =IF(Q33>S33,0,1) -> 1
J33: 3 | L33: 2.8 | N33: =L33*J33 -> 8.40 | P33: norma m3/h | Q33: =IF(R32="n.d.",0,IF(R32="nawiew",G34*20,VLOOKUP(E32,warunki2,3,0))) -> 15 | R33: =IF(R32="n.d.",-1,IF(R32="nawiew",0,IF(R32="wywiew",1,IF(R32="naw.wyw.",0.5,2)))) -> 1 | S33: =Q33 -> 15 | T33: m3/h
E34: Ilość osób | F34: =IF(R32<>"nawiew","n.d.","") -> n.d. | G34: =H23 -> 4 | J34: [m2] | L34: [m] | N34: [m3] | P34: min. m3/h | Q34: =N33 -> 8
C38: 0.2 | E38: Kuchnia otwarta z kuchenką elektryczną | J38: Powierzchnia | L38: Wysokość | N38: Kubatura | P38: Ruch powietrza | R38: =IF(E38="","n.d.",VLOOKUP(E38,lista_pod_rodzaj_ruchu_powietrza,4,0)) -> wywiew | T38: =IF(Q39>S39,0,1) -> 1
J39: 10.6 | L39: 2.8 | N39: =L39*J39 -> 29.68 | P39: norma m3/h | Q39: =IF(R38="n.d.",0,IF(R38="nawiew",G40*20,VLOOKUP(E38,warunki2,3,0))) -> 50 | R39: =IF(R38="n.d.",-1,IF(R38="nawiew",0,IF(R38="wywiew",1,IF(R38="naw.wyw.",0.5,2)))) -> 1 | S39: =Q39 -> 50 | T39: m3/h
E40: Ilość osób | F40: =IF(R38<>"nawiew","n.d.","") -> n.d. | G40: =H23 -> 4 | J40: [m2] | L40: [m] | N40: [m3] | P40: min. m3/h | Q40: =N39 -> 30
C44: 0.3 | E44: Spiżarnia | J44: Powierzchnia | L44: Wysokość | N44: Kubatura | P44: Ruch powietrza | R44: =IF(E44="","n.d.",VLOOKUP(E44,lista_pod_rodzaj_ruchu_powietrza,4,0)) -> wywiew | T44: =IF(Q45>S45,0,1) -> 1
J45: 2 | L45: 2.8 | N45: =L45*J45 -> 5.60 | P45: norma m3/h | Q45: =IF(R44="n.d.",0,IF(R44="nawiew",G46*20,VLOOKUP(E44,warunki2,3,0))) -> 15 | R45: =IF(R44="n.d.",-1,IF(R44="nawiew",0,IF(R44="wywiew",1,IF(R44="naw.wyw.",0.5,2)))) -> 1 | S45: =Q45 -> 15 | T45: m3/h
E46: Ilość osób | F46: =IF(R44<>"nawiew","n.d.","") -> n.d. | G46: =H23 -> 4 | J46: [m2] | L46: [m] | N46: [m3] | P46: min. m3/h | Q46: =N45 -> 6
C50: 0.4 | E50: Pokój dzienny | J50: Powierzchnia | L50: Wysokość | N50: Kubatura | P50: Ruch powietrza | R50: =IF(E50="","n.d.",VLOOKUP(E50,lista_pod_rodzaj_ruchu_powietrza,4,0)) -> nawiew | T50: =IF(Q51>S51,0,1) -> 1
J51: 30.4 | L51: 4 | N51: =L51*J51 -> 121.60 | P51: norma m3/h | Q51: =IF(R50="n.d.",0,IF(R50="nawiew",G52*20,VLOOKUP(E50,warunki2,3,0))) -> 80 | R51: =IF(R50="n.d.",-1,IF(R50="nawiew",0,IF(R50="wywiew",1,IF(R50="naw.wyw.",0.5,2)))) -> 0 | S51: 80 | T51: m3/h
E52: Ilość osób | F52: =IF(R50<>"nawiew","n.d.","") ->  | G52: =H23 -> 4 | J52: [m2] | L52: [m] | N52: [m3] | P52: min. m3/h | Q52: =N51 -> 122
C56: 0.5 | E56: WC (bez wanny lub kabiny prysznicowej) | J56: Powierzchnia | L56: Wysokość | N56: Kubatura | P56: Ruch powietrza | R56: =IF(E56="","n.d.",VLOOKUP(E56,lista_pod_rodzaj_ruchu_powietrza,4,0)) -> wywiew | T56: =IF(Q57>S57,0,1) -> 1
J57: 2.3 | L57: 4 | N57: =L57*J57 -> 9.20 | P57: norma m3/h | Q57: =IF(R56="n.d.",0,IF(R56="nawiew",G58*20,VLOOKUP(E56,warunki2,3,0))) -> 30 | R57: =IF(R56="n.d.",-1,IF(R56="nawiew",0,IF(R56="wywiew",1,IF(R56="naw.wyw.",0.5,2)))) -> 1 | S57: =Q57 -> 30 | T57: m3/h
E58: Ilość osób | F58: =IF(R56<>"nawiew","n.d.","") -> n.d. | G58: =H23 -> 4 | J58: [m2] | L58: [m] | N58: [m3] | P58: min. m3/h | Q58: =N57 -> 9
C62: 0.6 | E62: Gabinet | J62: Powierzchnia | L62: Wysokość | N62: Kubatura | P62: Ruch powietrza | R62: =IF(E62="","n.d.",VLOOKUP(E62,lista_pod_rodzaj_ruchu_powietrza,4,0)) -> nawiew | T62: =IF(Q63>S63,0,1) -> 1
J63: 9.2 | L63: 2.8 | N63: =L63*J63 -> 25.76 | P63: norma m3/h | Q63: =IF(R62="n.d.",0,IF(R62="nawiew",G64*20,VLOOKUP(E62,warunki2,3,0))) -> 20 | R63: =IF(R62="n.d.",-1,IF(R62="nawiew",0,IF(R62="wywiew",1,IF(R62="naw.wyw.",0.5,2)))) -> 0 | S63: 30 | T63: m3/h
E64: Ilość osób | F64: =IF(R62<>"nawiew","n.d.","") ->  | G64: 1 | J64: [m2] | L64: [m] | N64: [m3] | P64: min. m3/h | Q64: =N63 -> 26
C68: 0.7 | E68: Pomieszczenie gospodarcze | J68: Powierzchnia | L68: Wysokość | N68: Kubatura | P68: Ruch powietrza | R68: =IF(E68="","n.d.",VLOOKUP(E68,lista_pod_rodzaj_ruchu_powietrza,4,0)) -> wywiew | T68: =IF(Q69>S69,0,1) -> 1
J69: 7.6 | L69: 2.7 | N69: =L69*J69 -> 20.52 | P69: norma m3/h | Q69: =IF(R68="n.d.",0,IF(R68="nawiew",G70*20,VLOOKUP(E68,warunki2,3,0))) -> 15 | R69: =IF(R68="n.d.",-1,IF(R68="nawiew",0,IF(R68="wywiew",1,IF(R68="naw.wyw.",0.5,2)))) -> 1 | S69: =Q69 -> 15 | T69: m3/h
E70: Ilość osób | F70: =IF(R68<>"nawiew","n.d.","") -> n.d. | G70: =H23 -> 4 | J70: [m2] | L70: [m] | N70: [m3] | P70: min. m3/h | Q70: =N69 -> 21
C74: 0.8 | E74: Jadalnia - nawiew | J74: Powierzchnia | L74: Wysokość | N74: Kubatura | P74: Ruch powietrza | R74: =IF(E74="","n.d.",VLOOKUP(E74,lista_pod_rodzaj_ruchu_powietrza,4,0)) -> nawiew | T74: =IF(Q75>S75,0,1) -> 1
J75: 7.6 | L75: 2.7 | N75: =L75*J75 -> 20.52 | P75: norma m3/h | Q75: =IF(R74="n.d.",0,IF(R74="nawiew",G76*20,VLOOKUP(E74,warunki2,3,0))) -> 20 | R75: =IF(R74="n.d.",-1,IF(R74="nawiew",0,IF(R74="wywiew",1,IF(R74="naw.wyw.",0.5,2)))) -> 0 | S75: =Q75 -> 20 | T75: m3/h
E76: Ilość osób | F76: =IF(R74<>"nawiew","n.d.","") ->  | G76: 1 | J76: [m2] | L76: [m] | N76: [m3] | P76: min. m3/h | Q76: =N75 -> 21
C80: 0.9 | E80: Sypialnia | J80: Powierzchnia | L80: Wysokość | N80: Kubatura | P80: Ruch powietrza | R80: =IF(E80="","n.d.",VLOOKUP(E80,lista_pod_rodzaj_ruchu_powietrza,4,0)) -> nawiew | T80: =IF(Q81>S81,0,1) -> 1
J81: 16.7 | L81: 2.7 | N81: =L81*J81 -> 45.09 | P81: norma m3/h | Q81: =IF(R80="n.d.",0,IF(R80="nawiew",G82*20,VLOOKUP(E80,warunki2,3,0))) -> 40 | R81: =IF(R80="n.d.",-1,IF(R80="nawiew",0,IF(R80="wywiew",1,IF(R80="naw.wyw.",0.5,2)))) -> 0 | S81: 60 | T81: m3/h
E82: Ilość osób | F82: =IF(R80<>"nawiew","n.d.","") ->  | G82: 2 | J82: [m2] | L82: [m] | N82: [m3] | P82: min. m3/h | Q82: =N81 -> 45
C86: 0.10 | E86: Garderoba | J86: Powierzchnia | L86: Wysokość | N86: Kubatura | P86: Ruch powietrza | R86: =IF(E86="","n.d.",VLOOKUP(E86,lista_pod_rodzaj_ruchu_powietrza,4,0)) -> wywiew | T86: =IF(Q87>S87,0,1) -> 1
J87: 8.6 | L87: 2.7 | N87: =L87*J87 -> 23.22 | P87: norma m3/h | Q87: =IF(R86="n.d.",0,IF(R86="nawiew",G88*20,VLOOKUP(E86,warunki2,3,0))) -> 15 | R87: =IF(R86="n.d.",-1,IF(R86="nawiew",0,IF(R86="wywiew",1,IF(R86="naw.wyw.",0.5,2)))) -> 1 | S87: 30 | T87: m3/h
E88: Ilość osób | F88: =IF(R86<>"nawiew","n.d.","") -> n.d. | G88: 2 | J88: [m2] | L88: [m] | N88: [m3] | P88: min. m3/h | Q88: =N87 -> 23
C92: 0.11 | E92: Łazienka | J92: Powierzchnia | L92: Wysokość | N92: Kubatura | P92: Ruch powietrza | R92: =IF(E92="","n.d.",VLOOKUP(E92,lista_pod_rodzaj_ruchu_powietrza,4,0)) -> wywiew | T92: =IF(Q93>S93,0,1) -> 1
J93: 6.4 | L93: 2.7 | N93: =L93*J93 -> 17.28 | P93: norma m3/h | Q93: =IF(R92="n.d.",0,IF(R92="nawiew",G94*20,VLOOKUP(E92,warunki2,3,0))) -> 50 | R93: =IF(R92="n.d.",-1,IF(R92="nawiew",0,IF(R92="wywiew",1,IF(R92="naw.wyw.",0.5,2)))) -> 1 | S93: 55 | T93: m3/h
E94: Ilość osób | F94: =IF(R92<>"nawiew","n.d.","") -> n.d. | G94: =H23 -> 4 | J94: [m2] | L94: [m] | N94: [m3] | P94: min. m3/h | Q94: =N93 -> 17
C98: 0.12 | E98: Sypialnia | J98: Powierzchnia | L98: Wysokość | N98: Kubatura | P98: Ruch powietrza | R98: =IF(E98="","n.d.",VLOOKUP(E98,lista_pod_rodzaj_ruchu_powietrza,4,0)) -> nawiew | T98: =IF(Q99>S99,0,1) -> 1
J99: 9.9 | L99: 2.7 | N99: =L99*J99 -> 26.73 | P99: norma m3/h | Q99: =IF(R98="n.d.",0,IF(R98="nawiew",G100*20,VLOOKUP(E98,warunki2,3,0))) -> 20 | R99: =IF(R98="n.d.",-1,IF(R98="nawiew",0,IF(R98="wywiew",1,IF(R98="naw.wyw.",0.5,2)))) -> 0 | S99: 30 | T99: m3/h
E100: Ilość osób | F100: =IF(R98<>"nawiew","n.d.","") ->  | G100: 1 | J100: [m2] | L100: [m] | N100: [m3] | P100: min. m3/h | Q100: =N99 -> 27
C117: Lista wentylowanych pomieszczeń
C121: 1.1 | E121: Sypialnia | J121: Powierzchnia | L121: Wysokość | N121: Kubatura | P121: Ruch powietrza | R121: =IF(E121="","n.d.",VLOOKUP(E121,lista_pod_rodzaj_ruchu_powietrza,4,0)) -> nawiew | S121: 0 | T121: =IF(Q122>S122,0,1) -> 1
J122: 11.5 | L122: 2.7 | N122: =L122*J122 -> 31.05 | P122: norma m3/h | Q122: =IF(R121="n.d.",0,IF(R121="nawiew",G123*20,VLOOKUP(E121,warunki2,3,0))) -> 20 | R122: =IF(R121="n.d.",-1,IF(R121="nawiew",0,IF(R121="wywiew",1,IF(R121="naw.wyw.",0.5,2)))) -> 0 | S122: 40 | T122: m3/h
E123: Ilość osób | F123: =IF(R121<>"nawiew","n.d.","") ->  | G123: 1 | J123: [m2] | L123: [m] | N123: [m3] | P123: min. m3/h | Q123: =N122 -> 31
C126: 1.2 | E126: Łazienka | J126: Powierzchnia | L126: Wysokość | N126: Kubatura | P126: Ruch powietrza | R126: =IF(E126="","n.d.",VLOOKUP(E126,lista_pod_rodzaj_ruchu_powietrza,4,0)) -> wywiew | T126: =IF(Q127>S127,0,1) -> 1
J127: 7.6 | L127: 2.5 | N127: =L127*J127 -> 19.00 | P127: norma m3/h | Q127: =IF(R126="n.d.",0,IF(R126="nawiew",G128*20,VLOOKUP(E126,warunki2,3,0))) -> 50 | R127: =IF(R126="n.d.",-1,IF(R126="nawiew",0,IF(R126="wywiew",1,IF(R126="naw.wyw.",0.5,2)))) -> 1 | S127: =Q127 -> 50 | T127: m3/h
E128: Ilość osób | F128: =IF(R126<>"nawiew","n.d.","") -> n.d. | G128: 2 | J128: [m2] | L128: [m] | N128: [m3] | P128: min. m3/h | Q128: =N127 -> 19
C132: 1.3 | J132: Powierzchnia | L132: Wysokość | N132: Kubatura | P132: Ruch powietrza | R132: =IF(E132="","n.d.",VLOOKUP(E132,lista_pod_rodzaj_ruchu_powietrza,4,0)) -> n.d. | T132: =IF(Q133>S133,0,1) -> 1
L133: 2.5 | N133: =L133*J133 -> 0.00 | P133: norma m3/h | Q133: =IF(R132="n.d.",0,IF(R132="nawiew",G134*20,VLOOKUP(E132,warunki2,3,0))) -> 0 | R133: =IF(R132="n.d.",-1,IF(R132="nawiew",0,IF(R132="wywiew",1,IF(R132="naw.wyw.",0.5,2)))) -> -1 | S133: =Q133 -> 0 | T133: m3/h
E134: Ilość osób | F134: =IF(R132<>"nawiew","n.d.","") -> n.d. | G134: 1 | J134: [m2] | L134: [m] | N134: [m3] | P134: min. m3/h | Q134: =N133 -> 0
C138: 1.4 | J138: Powierzchnia | L138: Wysokość | N138: Kubatura | P138: Ruch powietrza | R138: =IF(E138="","n.d.",VLOOKUP(E138,lista_pod_rodzaj_ruchu_powietrza,4,0)) -> n.d. | T138: =IF(Q139>S139,0,1) -> 1
L139: 2.5 | N139: =L139*J139 -> 0.00 | P139: norma m3/h | Q139: =IF(R138="n.d.",0,IF(R138="nawiew",G140*20,VLOOKUP(E138,warunki2,3,0))) -> 0 | R139: =IF(R138="n.d.",-1,IF(R138="nawiew",0,IF(R138="wywiew",1,IF(R138="naw.wyw.",0.5,2)))) -> -1 | S139: 50 | T139: m3/h
E140: Ilość osób | F140: =IF(R138<>"nawiew","n.d.","") -> n.d. | G140: 1 | J140: [m2] | L140: [m] | N140: [m3] | P140: min. m3/h | Q140: =N139 -> 0
C144: 1.5 | J144: Powierzchnia | L144: Wysokość | N144: Kubatura | P144: Ruch powietrza | R144: =IF(E144="","n.d.",VLOOKUP(E144,lista_pod_rodzaj_ruchu_powietrza,4,0)) -> n.d. | T144: =IF(Q145>S145,0,1) -> 1
L145: 2.5 | N145: =L145*J145 -> 0.00 | P145: norma m3/h | Q145: =IF(R144="n.d.",0,IF(R144="nawiew",G146*20,VLOOKUP(E144,warunki2,3,0))) -> 0 | R145: =IF(R144="n.d.",-1,IF(R144="nawiew",0,IF(R144="wywiew",1,IF(R144="naw.wyw.",0.5,2)))) -> -1 | S145: =Q145 -> 0 | T145: m3/h
E146: Ilość osób | F146: =IF(R144<>"nawiew","n.d.","") -> n.d. | G146: 1 | J146: [m2] | L146: [m] | N146: [m3] | P146: min. m3/h | Q146: =N145 -> 0
C150: 1.6 | J150: Powierzchnia | L150: Wysokość | N150: Kubatura | P150: Ruch powietrza | R150: =IF(E150="","n.d.",VLOOKUP(E150,lista_pod_rodzaj_ruchu_powietrza,4,0)) -> n.d. | T150: =IF(Q151>S151,0,1) -> 1
L151: 2.7 | N151: =L151*J151 -> 0.00 | P151: norma m3/h | Q151: =IF(R150="n.d.",0,IF(R150="nawiew",G152*20,VLOOKUP(E150,warunki2,3,0))) -> 0 | R151: =IF(R150="n.d.",-1,IF(R150="nawiew",0,IF(R150="wywiew",1,IF(R150="naw.wyw.",0.5,2)))) -> -1 | S151: 50 | T151: m3/h
E152: Ilość osób | F152: =IF(R150<>"nawiew","n.d.","") -> n.d. | G152: =H23 -> 4 | J152: [m2] | L152: [m] | N152: [m3] | P152: min. m3/h | Q152: =N151 -> 0
C156: 1.7 | J156: Powierzchnia | L156: Wysokość | N156: Kubatura | P156: Ruch powietrza | R156: =IF(E156="","n.d.",VLOOKUP(E156,lista_pod_rodzaj_ruchu_powietrza,4,0)) -> n.d. | T156: =IF(Q157>S157,0,1) -> 1
L157: 2.75 | N157: =L157*J157 -> 0.00 | P157: norma m3/h | Q157: =IF(R156="n.d.",0,IF(R156="nawiew",G158*20,VLOOKUP(E156,warunki2,3,0))) -> 0 | R157: =IF(R156="n.d.",-1,IF(R156="nawiew",0,IF(R156="wywiew",1,IF(R156="naw.wyw.",0.5,2)))) -> -1 | S157: 60 | T157: m3/h
E158: Ilość osób | F158: =IF(R156<>"nawiew","n.d.","") -> n.d. | G158: =H23 -> 4 | J158: [m2] | L158: [m] | N158: [m3] | P158: min. m3/h | Q158: =N157 -> 0
C162: 1.8 | J162: Powierzchnia | L162: Wysokość | N162: Kubatura | P162: Ruch powietrza | R162: =IF(E162="","n.d.",VLOOKUP(E162,lista_pod_rodzaj_ruchu_powietrza,4,0)) -> n.d. | T162: =IF(Q163>S163,0,1) -> 1
J163: 0 | L163: 2.7 | N163: =L163*J163 -> 0.00 | P163: norma m3/h | Q163: =IF(R162="n.d.",0,IF(R162="nawiew",G164*20,VLOOKUP(E162,warunki2,3,0))) -> 0 | R163: =IF(R162="n.d.",-1,IF(R162="nawiew",0,IF(R162="wywiew",1,IF(R162="naw.wyw.",0.5,2)))) -> -1 | S163: =Q163 -> 0 | T163: m3/h
E164: Ilość osób | F164: =IF(R162<>"nawiew","n.d.","") -> n.d. | G164: 3 | J164: [m2] | L164: [m] | N164: [m3] | P164: min. m3/h | Q164: =N163 -> 0
C170: Zestawienie danych
D174: BUDYNEK podsumowanie | M174: Ruch powietrza
C177: Łączna powierzchnia wentylowana | H177: =Obliczenia!G30 -> 133.4 | I177: [m2] | L177: Strumień powietrza nawiewanego do pomieszczeń | R177: =Obliczenia!N30 -> 260 | S177: [m3/h]
C179: Wprowadzona wentylowana powierzchnia budynku | H179: =H17 -> 165 | I179: [m2] | L179: Strumień powietrza wywiewanego z pomieszczeń | R179: =Obliczenia!P30 -> 260 | S179: [m3/h]
C182: Różnica | H182: =H177-H179 -> -31.6 | I182: [m2] | L182: Szacowana krotność wymiany powietrza | R182: =IF(H186=0,"",R177/H184) -> 0.64 | S182: [1/h]
C184: Łączna kubatura wentylowana | H184: =Obliczenia!I30 -> 404 | I184: [m3]
C186: Ilość wentylowanych pomieszczeń | H186: =Obliczenia!D20+Obliczenia!D29 -> 18
C193: Bilans energetyczny i analiza ekonomiczna
D197: Bilans energetyczny
C200: Energia cieplna wymagana dla wentylacji grawitacyjnej (obliczenia dla poprawnie pracującej wentylacji) | H200: =INT(Obliczenia!C99) -> 5991 | I200: [kWh termiczna ] | K200: Energia cieplna i elektryczna wymagana dla wentylacji mechanicznej z odzyskiem ciepła | Q200: =INT(Obliczenia!B110) -> 397 | R200: [kWh termiczna ]
Q201: =INT(Obliczenia!G123)+INT(Obliczenia!G116) -> 961 | R201: [kWh elektryczna ]
D204: Energia cieplna utracona w wyniku niekontrolowanej wymiany powietrza | L204: Energia elektryczna zużywana przez centralę wentylacyjną
E206: =INT(Obliczenia!C99)&" [kWh]" -> 5991 [kWh]
F207: Koszt utraconej energii | L207: =INT(Obliczenia!G116)&" [kWh]" -> 413 [kWh] | P207: Koszt pracy centrali
F208: Gaz ziemny | H208: =INT(Obliczenia!$C$99)*Warunki!C32 -> 2,276.58 zł | P208: Gaz ziemny | R208: =(INT(Obliczenia!$G$123)+INT(Obliczenia!$G$116))*Warunki!$C$34+INT(Obliczenia!$B$110)*Warunki!C32 -> 1,256.01 zł
F209: Gaz płynny | H209: =INT(Obliczenia!$C$99)*Warunki!C33 -> 3,235.14 zł | P209: Gaz ziemny | R209: =(INT(Obliczenia!$G$123)+INT(Obliczenia!$G$116))*Warunki!$C$34+INT(Obliczenia!$B$110)*Warunki!C33 -> 1,319.53 zł
F210: Pompa ciepła AW | H210: =INT(Obliczenia!$C$99)*Warunki!C34/3.7 -> 1,862.07 zł | P210: Pompa ciepła AW | R210: =(INT(Obliczenia!$G$123)+INT(Obliczenia!$G$116))*Warunki!$C$34+INT(Obliczenia!$B$110)*Warunki!C34/3.7 -> 1,228.54 zł
F211: Pompa ciepła BW | H211: =INT(Obliczenia!$C$99)*Warunki!C34/4.4 -> 1,565.83 zł | J211: =INT(Obliczenia!G123)&" [kWh]" -> 548 [kWh] | N211: =INT(Obliczenia!B110)&" [kWh]" -> 397 [kWh] | P211: Pompa ciepła BW | R211: =(INT(Obliczenia!$G$123)+INT(Obliczenia!$G$116))*Warunki!$C$34+INT(Obliczenia!$B$110)*Warunki!C35/4.4 -> 1,105.15 zł
D213: wentylacja naturalna | J213: Energia elektryczna zużywana przez nagrzewnicą wstępną | L213: wentylacja mechaniczna | N213: Energia cieplna utracona wynikająca ze sprawnoości centrali wentylacyjnej
C218: Informacje dodatkowe
C229: Inwestor | M229: Partner Viessmann
C231: Adres inwestycji
C239: Arkusz kalkulacyjny nie może zastąpić fachowego projektu instalacji wentylacji mechanicznej wykonanego przez projektanta z odpowiednimi uprawnieniami. Autor arkusza kalkulacyjnego nie ponosi odpowiedzialności za błędy ukryte w arkuszu, oraz za wszelkie negatywne skutki i straty wynikające z jego użytkowania.
S241: Autor: | T241: PanD, 2023

Sheet System DN63
AC1: R system | AD1: =AM236/100 -> 0% | AG1: R centrala | AH1: =AC138/100 -> 0% | AK1: Suma | AL1: =AK235 -> 30,899.00 zł
AJ3: Data: | AK3: =TODAY() -> 2024-09-11 | AM3: =Dane!S3 -> wersja 17/09/2024
C8: System dystrybucji powietrza | okrągły Φ63
C11: Uproszczony schemat instalacji
Z17: Powietrze wywiewane | AF17: Powietrze nawiewane
Y19: =IF(Obliczenia!E61="10","",Obliczenia!E61) -> 0.1 | AK19: =IF(Obliczenia!E37="10","",Obliczenia!E37) -> 0.9
X20: =IF(Y19<>"","1","") -> 1 | AA20: =IF(Y19="","",VLOOKUP(Y19,big_tabela,3,0)) -> Wiatrołap | AC20: =IF(Y19="","",VLOOKUP(Y19,big_tabela,12,0)) -> 15 | AD20: m3/h | AG20: =IF(AK19="","",VLOOKUP(AK19,big_tabela,3,0)) -> Sypialnia | AI20: =IF(AK19="","",VLOOKUP(AK19,big_tabela,12,0)) -> 60 | AJ20: m3/h | AL20: =IF(AK19<>"","1","") -> 1
W21: =IF(Y19="","","Φ63") -> Φ63 | X21: =IF(Y19="","","x"&VLOOKUP(Y19,big_tabela,20,0)) -> x1 | Y21: =IF(Y19="","","◄") -> ◄ | AK21: =IF(AK19="","","◄") -> ◄ | AL21: =IF(AK19="","","Φ63") -> Φ63 | AM21: =IF(AK19="","","x"&VLOOKUP(AK19,big_tabela,19,0)) -> x3
D22: =$X$20 -> 1 | E22: =$X$20 -> 1 | F22: =$X$20 -> 1 | G22: 1 | H22: 1 | I22: 1 | J22: 1 | K22: 1 | L22: 1 | M22: 1 | N22: 1 | O22: 1 | P22: 1 | Q22: 1 | R22: 1 | S22: 1 | T22: 1 | U22: 1 | V22: 1 | W22: 1 | X22: 1 | Y22: 1 | AK22: =$AL$20 -> 1 | AL22: =$AL$20 -> 1 | AM22: 1 | AN22: 1 | AO22: 1 | AP22: 1 | AQ22: 1 | AR22: 1 | AS22: 1 | AT22: 1 | AU22: 1 | AV22: 1 | AW22: 1 | AX22: 1 | AY22: 1 | AZ22: 1 | BA22: 1 | BB22: 1 | BC22: 1 | BD22: 1 | BE22: 1 | BF22: 1 | BG22: 1 | BH22: 1
D23: =$X$20 -> 1 | AA23: =IF(Y19="","",VLOOKUP(Y19,big_tabela,4,0)) ->  | AC23: =IF(Y19="","","anemostat") -> anemostat | AD23: =IF(Y19="","","x"&VLOOKUP(Y19,big_tabela,23,0)) -> x1 | AG23: =IF(AK19="","",VLOOKUP(AK19,big_tabela,4,0)) ->  | AI23: =IF(AK19="","","anemostat") -> anemostat | AJ23: =IF(AK19="","","x"&VLOOKUP(AK19,big_tabela,22,0)) -> x1 | BH23: 1
D24: 1 | BH24: 1
D25: 1 | BH25: 1
D26: 1 | Y26: =IF(Obliczenia!E62="10","",Obliczenia!E62) -> 0.5 | AK26: =IF(Obliczenia!E38="10","",Obliczenia!E38) -> 0.12 | BH26: 1
D27: 1 | X27: =IF(Y26<>"","1","") -> 1 | AA27: =IF(Y26="","",VLOOKUP(Y26,big_tabela,3,0)) -> WC (bez wanny lub kabiny prysznicowej) | AC27: =IF(Y26="","",VLOOKUP(Y26,big_tabela,12,0)) -> 30 | AD27: m3/h | AG27: =IF(AK26="","",VLOOKUP(AK26,big_tabela,3,0)) -> Sypialnia | AI27: =IF(AK26="","",VLOOKUP(AK26,big_tabela,12,0)) -> 30 | AJ27: m3/h | AL27: =IF(AK26<>"","1","") -> 1 | BH27: 1
D28: 1 | W28: =IF(Y26="","","Φ63") -> Φ63 | X28: =IF(Y26="","","x"&VLOOKUP(Y26,big_tabela,20,0)) -> x2 | Y28: =IF(Y26="","","◄") -> ◄ | AK28: =IF(AK26="","","◄") -> ◄ | AL28: =IF(AK26="","","Φ63") -> Φ63 | AM28: =IF(AK26="","","x"&VLOOKUP(AK26,big_tabela,19,0)) -> x2 | BH28: 1
D29: 1 | F29: =$X$27 -> 1 | G29: 1 | H29: 1 | I29: 1 | J29: 1 | K29: 1 | L29: 1 | M29: 1 | N29: 1 | O29: 1 | P29: 1 | Q29: 1 | R29: 1 | S29: 1 | T29: 1 | U29: 1 | V29: 1 | W29: 1 | X29: 1 | Y29: =$X$27 -> 1 | AK29: =$AL$27 -> 1 | AL29: =$AL$27 -> 1 | AM29: 1 | AN29: 1 | AO29: 1 | AP29: 1 | AQ29: 1 | AR29: 1 | AS29: 1 | AT29: 1 | AU29: 1 | AV29: 1 | AW29: 1 | AX29: 1 | AY29: 1 | AZ29: 1 | BA29: 1 | BB29: 1 | BC29: 1 | BD29: 1 | BE29: 1 | BF29: 1 | BH29: 1
D30: 1 | F30: 1 | AA30: =IF(Y26="","",VLOOKUP(Y26,big_tabela,4,0)) ->  | AC30: =IF(Y26="","","anemostat") -> anemostat | AD30: =IF(Y26="","","x"&VLOOKUP(Y26,big_tabela,23,0)) -> x1 | AG30: =IF(AK26="","",VLOOKUP(AK26,big_tabela,4,0)) ->  | AI30: =IF(AK26="","","anemostat") -> anemostat | AJ30: =IF(AK26="","","x"&VLOOKUP(AK26,big_tabela,22,0)) -> x1 | BF30: 1 | BH30: 1
D31: 1 | F31: 1 | BF31: 1 | BH31: 1
D32: 1 | F32: 1 | BF32: 1 | BH32: 1
D33: 1 | F33: 1 | Y33: =IF(Obliczenia!E63="10","",Obliczenia!E63) -> 0.3 | AK33: =IF(Obliczenia!E39="10","",Obliczenia!E39) -> 1.1 | BF33: 1 | BH33: 1
D34: 1 | F34: 1 | G34: 1 | X34: =IF(Y33<>"","1","") -> 1 | AA34: =IF(Y33="","",VLOOKUP(Y33,big_tabela,3,0)) -> Spiżarnia | AC34: =IF(Y33="","",VLOOKUP(Y33,big_tabela,12,0)) -> 15 | AD34: m3/h | AG34: =IF(AK33="","",VLOOKUP(AK33,big_tabela,3,0)) -> Sypialnia | AI34: =IF(AK33="","",VLOOKUP(AK33,big_tabela,12,0)) -> 40 | AJ34: m3/h | AL34: =IF(AK33<>"","1","") -> 1 | BF34: 1 | BH34: 1
D35: 1 | F35: 1 | W35: =IF(Y33="","","Φ63") -> Φ63 | X35: =IF(Y33="","","x"&VLOOKUP(Y33,big_tabela,20,0)) -> x1 | Y35: =IF(Y33="","","◄") -> ◄ | AK35: =IF(AK33="","","◄") -> ◄ | AL35: =IF(AK33="","","Φ63") -> Φ63 | AM35: =IF(AK33="","","x"&VLOOKUP(AK33,big_tabela,19,0)) -> x2 | BF35: 1 | BH35: 1
D36: 1 | F36: 1 | H36: =$X$34 -> 1 | I36: =$X$34 -> 1 | J36: 1 | K36: 1 | L36: 1 | M36: 1 | N36: 1 | O36: 1 | P36: 1 | Q36: 1 | R36: 1 | S36: 1 | T36: 1 | U36: 1 | V36: 1 | W36: 1 | X36: 1 | Y36: =$X$34 -> 1 | AK36: =$AL$34 -> 1 | AL36: =$AL$34 -> 1 | AM36: 1 | AN36: 1 | AO36: 1 | AP36: 1 | AQ36: 1 | AR36: 1 | AS36: 1 | AT36: 1 | AU36: 1 | AV36: 1 | AW36: 1 | AX36: 1 | AY36: 1 | AZ36: 1 | BA36: 1 | BB36: 1 | BC36: 1 | BD36: 1 | BF36: 1 | BH36: 1
D37: 1 | F37: 1 | H37: 1 | AA37: =IF(Y33="","",VLOOKUP(Y33,big_tabela,4,0)) ->  | AC37: =IF(Y33="","","anemostat") -> anemostat | AD37: =IF(Y33="","","x"&VLOOKUP(Y33,big_tabela,23,0)) -> x1 | AG37: =IF(AK33="","",VLOOKUP(AK33,big_tabela,4,0)) ->  | AI37: =IF(AK33="","","anemostat") -> anemostat | AJ37: =IF(AK33="","","x"&VLOOKUP(AK33,big_tabela,22,0)) -> x1 | BD37: 1 | BF37: 1 | BH37: 1
D38: 1 | F38: 1 | H38: 1 | BD38: 1 | BF38: 1 | BH38: =$AL$20 -> 1
D39: 1 | F39: 1 | H39: 1 | BD39: 1 | BF39: 1 | BH39: 1
D40: 1 | F40: 1 | H40: 1 | Y40: =IF(Obliczenia!E64="10","",Obliczenia!E64) -> 0.7 | AK40: =IF(Obliczenia!E40="10","",Obliczenia!E40) -> 0.4 | BD40: 1 | BF40: 1 | BH40: 1
D41: 1 | F41: 1 | H41: 1 | X41: =IF(Y40<>"","1","") -> 1 | AA41: =IF(Y40="","",VLOOKUP(Y40,big_tabela,3,0)) -> Pomieszczenie gospodarcze | AC41: =IF(Y40="","",VLOOKUP(Y40,big_tabela,12,0)) -> 15 | AD41: m3/h | AG41: =IF(AK40="","",VLOOKUP(AK40,big_tabela,3,0)) -> Pokój dzienny | AI41: =IF(AK40="","",VLOOKUP(AK40,big_tabela,12,0)) -> 80 | AJ41: m3/h | AL41: =IF(AK40<>"","1","") -> 1 | BD41: 1 | BF41: 1 | BH41: 1
D42: 1 | F42: 1 | H42: 1 | W42: =IF(Y40="","","Φ63") -> Φ63 | X42: =IF(Y40="","","x"&VLOOKUP(Y40,big_tabela,20,0)) -> x1 | Y42: =IF(Y40="","","◄") -> ◄ | AK42: =IF(AK40="","","◄") -> ◄ | AL42: =IF(AK40="","","Φ63") -> Φ63 | AM42: =IF(AK40="","","x"&VLOOKUP(AK40,big_tabela,19,0)) -> x4 | BD42: 1 | BF42: 1 | BH42: 1
D43: 1 | F43: 1 | H43: 1 | J43: =$X$41 -> 1 | K43: 1 | L43: 1 | M43: 1 | N43: 1 | O43: 1 | P43: 1 | Q43: 1 | R43: 1 | S43: 1 | T43: 1 | U43: 1 | V43: 1 | W43: 1 | X43: 1 | Y43: =$X$41 -> 1 | AK43: =$AL$41 -> 1 | AL43: =$AL$41 -> 1 | AM43: 1 | AN43: 1 | AO43: 1 | AP43: 1 | AQ43: 1 | AR43: 1 | AS43: 1 | AT43: 1 | AU43: 1 | AV43: 1 | AW43: 1 | AX43: 1 | AY43: 1 | AZ43: 1 | BA43: 1 | BB43: 1 | BD43: 1 | BF43: 1 | BH43: 1
D44: 1 | F44: 1 | H44: 1 | J44: 1 | AA44: =IF(Y40="","",VLOOKUP(Y40,big_tabela,4,0)) ->  | AC44: =IF(Y40="","","anemostat") -> anemostat | AD44: =IF(Y40="","","x"&VLOOKUP(Y40,big_tabela,23,0)) -> x1 | AG44: =IF(AK40="","",VLOOKUP(AK40,big_tabela,4,0)) ->  | AI44: =IF(AK40="","","anemostat") -> anemostat | AJ44: =IF(AK40="","","x"&VLOOKUP(AK40,big_tabela,22,0)) -> x2 | BB44: 1 | BD44: 1 | BF44: 1 | BH44: 1
D45: 1 | F45: =$X$27 -> 1 | H45: 1 | J45: 1 | BB45: 1 | BD45: 1 | BF45: =$AL$27 -> 1 | BH45: 1
D46: 1 | F46: 1 | H46: 1 | J46: 1 | BB46: 1 | BD46: 1 | BF46: 1 | BH46: 1
D47: 1 | F47: 1 | H47: 1 | J47: 1 | Y47: =IF(Obliczenia!E65="10","",Obliczenia!E65) -> 0.11 | AK47: =IF(Obliczenia!E41="10","",Obliczenia!E41) -> 0.8 | BB47: 1 | BD47: 1 | BF47: 1 | BH47: 1
D48: 1 | F48: 1 | H48: 1 | J48: 1 | X48: =IF(Y47<>"","1","") -> 1 | AA48: =IF(Y47="","",VLOOKUP(Y47,big_tabela,3,0)) -> Łazienka | AC48: =IF(Y47="","",VLOOKUP(Y47,big_tabela,12,0)) -> 55 | AD48: m3/h | AG48: =IF(AK47="","",VLOOKUP(AK47,big_tabela,3,0)) -> Jadalnia - nawiew | AI48: =IF(AK47="","",VLOOKUP(AK47,big_tabela,12,0)) -> 20 | AJ48: m3/h | AL48: =IF(AK47<>"","1","") -> 1 | BB48: 1 | BD48: 1 | BF48: 1 | BH48: 1
D49: 1 | F49: 1 | H49: 1 | J49: 1 | W49: =IF(Y47="","","Φ63") -> Φ63 | X49: =IF(Y47="","","x"&VLOOKUP(Y47,big_tabela,20,0)) -> x3 | Y49: =IF(Y47="","","◄") -> ◄ | AK49: =IF(AK47="","","◄") -> ◄ | AL49: =IF(AK47="","","Φ63") -> Φ63 | AM49: =IF(AK47="","","x"&VLOOKUP(AK47,big_tabela,19,0)) -> x1 | BB49: 1 | BD49: 1 | BF49: 1 | BH49: 1
D50: 1 | F50: 1 | H50: 1 | J50: 1 | L50: =$X$48 -> 1 | M50: =$X$48 -> 1 | N50: 1 | O50: 1 | P50: 1 | Q50: 1 | R50: 1 | S50: 1 | T50: 1 | U50: 1 | V50: 1 | W50: 1 | X50: 1 | Y50: =$X$48 -> 1 | AK50: =$AL$48 -> 1 | AL50: 1 | AM50: 1 | AN50: 1 | AO50: 1 | AP50: 1 | AQ50: 1 | AR50: 1 | AS50: 1 | AT50: 1 | AU50: 1 | AV50: 1 | AW50: 1 | AX50: 1 | AY50: 1 | AZ50: 1 | BB50: 1 | BD50: 1 | BF50: 1 | BH50: 1
D51: 1 | F51: 1 | H51: 1 | J51: 1 | L51: 1 | AA51: =IF(Y47="","",VLOOKUP(Y47,big_tabela,4,0)) ->  | AC51: =IF(Y47="","","anemostat") -> anemostat | AD51: =IF(Y47="","","x"&VLOOKUP(Y47,big_tabela,23,0)) -> x1 | AG51: =IF(AK47="","",VLOOKUP(AK47,big_tabela,4,0)) ->  | AI51: =IF(AK47="","","anemostat") -> anemostat | AJ51: =IF(AK47="","","x"&VLOOKUP(AK47,big_tabela,22,0)) -> x1 | AZ51: =$AL$48 -> 1 | BB51: 1 | BD51: 1 | BF51: 1 | BH51: 1
D52: 1 | F52: 1 | H52: 1 | J52: 1 | L52: 1 | AZ52: 1 | BB52: 1 | BD52: =$AL$34 -> 1 | BF52: 1 | BH52: 1
D53: 1 | F53: 1 | H53: 1 | J53: 1 | L53: 1 | AZ53: 1 | BB53: 1 | BD53: 1 | BF53: 1 | BH53: 1
D54: 1 | F54: 1 | H54: 1 | J54: 1 | L54: 1 | Y54: =IF(Obliczenia!E66="10","",Obliczenia!E66) -> 1.2 | AK54: =IF(Obliczenia!E42="10","",Obliczenia!E42) -> 0.6 | AZ54: 1 | BB54: 1 | BD54: 1 | BF54: 1 | BH54: 1
D55: 1 | F55: 1 | H55: 1 | J55: 1 | L55: 1 | X55: =IF(Y54<>"","1","") -> 1 | AA55: =IF(Y54="","",VLOOKUP(Y54,big_tabela,3,0)) -> Łazienka | AC55: =IF(Y54="","",VLOOKUP(Y54,big_tabela,12,0)) -> 50 | AD55: m3/h | AG55: =IF(AK54="","",VLOOKUP(AK54,big_tabela,3,0)) -> Gabinet | AI55: =IF(AK54="","",VLOOKUP(AK54,big_tabela,12,0)) -> 30 | AJ55: m3/h | AL55: =IF(AK54<>"","1","") -> 1 | AZ55: 1 | BB55: 1 | BD55: 1 | BF55: 1 | BH55: 1
D56: 1 | F56: 1 | H56: 1 | J56: 1 | L56: 1 | W56: =IF(Y54="","","Φ63") -> Φ63 | X56: =IF(Y54="","","x"&VLOOKUP(Y54,big_tabela,20,0)) -> x2 | Y56: =IF(Y54="","","◄") -> ◄ | AK56: =IF(AK54="","","◄") -> ◄ | AL56: =IF(AK54="","","Φ63") -> Φ63 | AM56: =IF(AK54="","","x"&VLOOKUP(AK54,big_tabela,19,0)) -> x2 | AZ56: 1 | BB56: 1 | BD56: 1 | BF56: 1 | BH56: 1
D57: 1 | F57: 1 | H57: 1 | J57: 1 | L57: 1 | N57: =$X$55 -> 1 | O57: =$X$55 -> 1 | P57: 1 | Q57: 1 | R57: 1 | S57: 1 | T57: 1 | U57: 1 | V57: 1 | W57: 1 | X57: 1 | Y57: =$X$55 -> 1 | AK57: =$AL$55 -> 1 | AL57: 1 | AM57: 1 | AN57: 1 | AO57: 1 | AP57: 1 | AQ57: 1 | AR57: 1 | AS57: 1 | AT57: 1 | AU57: 1 | AV57: 1 | AW57: 1 | AX57: 1 | AZ57: 1 | BB57: 1 | BD57: 1 | BF57: 1 | BH57: 1
D58: 1 | F58: 1 | H58: 1 | J58: 1 | L58: 1 | N58: 1 | AA58: =IF(Y54="","",VLOOKUP(Y54,big_tabela,4,0)) ->  | AC58: =IF(Y54="","","anemostat") -> anemostat | AD58: =IF(Y54="","","x"&VLOOKUP(Y54,big_tabela,23,0)) -> x1 | AG58: =IF(AK54="","",VLOOKUP(AK54,big_tabela,4,0)) ->  | AI58: =IF(AK54="","","anemostat") -> anemostat | AJ58: =IF(AK54="","","x"&VLOOKUP(AK54,big_tabela,22,0)) -> x1 | AX58: =$AL$55 -> 1 | AZ58: 1 | BB58: 1 | BD58: 1 | BF58: 1 | BH58: 1
D59: 1 | F59: 1 | H59: 1 | J59: =$X$41 -> 1 | L59: 1 | N59: 1 | AX59: 1 | AZ59: 1 | BB59: =$AL$41 -> 1 | BD59: 1 | BF59: 1 | BH59: 1
D60: 1 | F60: 1 | H60: 1 | J60: 1 | L60: 1 | N60: 1 | AX60: 1 | AZ60: 1 | BB60: 1 | BD60: 1 | BF60: 1 | BH60: 1
D61: 1 | F61: 1 | H61: 1 | J61: 1 | L61: 1 | N61: 1 | Y61: =IF(Obliczenia!E67="10","",Obliczenia!E67) -> 0.2 | AK61: =IF(Obliczenia!E43="10","",Obliczenia!E43) ->  | AX61: 1 | AZ61: 1 | BB61: 1 | BD61: 1 | BF61: 1 | BH61: 1
D62: 1 | F62: 1 | H62: 1 | J62: 1 | L62: 1 | N62: 1 | X62: =IF(Y61<>"","1","") -> 1 | AA62: =IF(Y61="","",VLOOKUP(Y61,big_tabela,3,0)) -> Kuchnia otwarta z kuchenką elektryczną | AC62: =IF(Y61="","",VLOOKUP(Y61,big_tabela,12,0)) -> 50 | AD62: m3/h | AG62: =IF(AK61="","",VLOOKUP(AK61,big_tabela,3,0)) ->  | AI62: =IF(AK61="","",VLOOKUP(AK61,big_tabela,12,0)) ->  | AJ62: m3/h | AL62: =IF(AK61<>"","1","") ->  | AX62: 1 | AZ62: 1 | BB62: 1 | BD62: 1 | BF62: 1 | BH62: 1
D63: 1 | F63: 1 | H63: 1 | J63: 1 | L63: 1 | N63: 1 | W63: =IF(Y61="","","Φ63") -> Φ63 | X63: =IF(Y61="","","x"&VLOOKUP(Y61,big_tabela,20,0)) -> x2 | Y63: =IF(Y61="","","◄") -> ◄ | AK63: =IF(AK61="","","◄") ->  | AL63: =IF(AK61="","","Φ63") ->  | AM63: =IF(AK61="","","x"&VLOOKUP(AK61,big_tabela,19,0)) ->  | AX63: 1 | AZ63: 1 | BB63: 1 | BD63: 1 | BF63: 1 | BH63: 1
D64: 1 | F64: 1 | H64: 1 | J64: 1 | L64: 1 | N64: 1 | P64: =$X$62 -> 1 | Q64: =$X$62 -> 1 | R64: 1 | S64: 1 | T64: 1 | U64: 1 | V64: 1 | W64: 1 | X64: 1 | Y64: 1 | AK64: =$AL$62 ->  | AX64: 1 | AZ64: 1 | BB64: 1 | BD64: 1 | BF64: 1 | BH64: 1
D65: 1 | F65: 1 | H65: 1 | J65: 1 | L65: 1 | N65: 1 | P65: =$X$62 -> 1 | AA65: =IF(Y61="","",VLOOKUP(Y61,big_tabela,4,0)) ->  | AC65: =IF(Y61="","","anemostat") -> anemostat | AD65: =IF(Y61="","","x"&VLOOKUP(Y61,big_tabela,23,0)) -> x1 | AG65: =IF(AK61="","",VLOOKUP(AK61,big_tabela,4,0)) ->  | AI65: =IF(AK61="","","anemostat") ->  | AJ65: =IF(AK61="","","x"&VLOOKUP(AK61,big_tabela,22,0)) ->  | AV65: =$AL$62 ->  | AX65: 1 | AZ65: 1 | BB65: 1 | BD65: 1 | BF65: 1 | BH65: 1
D66: 1 | F66: 1 | H66: 1 | J66: 1 | L66: 1 | N66: 1 | P66: 1 | AX66: 1 | AZ66: =$AL$48 -> 1 | BB66: 1 | BD66: 1 | BF66: 1 | BH66: 1
D67: 1 | F67: 1 | H67: 1 | J67: 1 | L67: 1 | N67: 1 | P67: 1 | AX67: 1 | AZ67: 1 | BB67: 1 | BD67: 1 | BF67: 1 | BH67: 1
D68: 1 | F68: 1 | H68: 1 | J68: 1 | L68: 1 | N68: 1 | P68: 1 | Y68: =IF(Obliczenia!E68="10","",Obliczenia!E68) -> 0.10 | AK68: =IF(Obliczenia!E44="10","",Obliczenia!E44) ->  | AX68: 1 | AZ68: 1 | BB68: 1 | BD68: 1 | BF68: 1 | BH68: 1
D69: 1 | F69: 1 | H69: 1 | J69: 1 | L69: 1 | N69: 1 | P69: 1 | X69: =IF(Y68<>"","1","") -> 1 | AA69: =IF(Y68="","",VLOOKUP(Y68,big_tabela,3,0)) -> Garderoba | AC69: =IF(Y68="","",VLOOKUP(Y68,big_tabela,12,0)) -> 30 | AD69: m3/h | AG69: =IF(AK68="","",VLOOKUP(AK68,big_tabela,3,0)) ->  | AI69: =IF(AK68="","",VLOOKUP(AK68,big_tabela,12,0)) ->  | AJ69: m3/h | AL69: =IF(AK68<>"","1","") ->  | AX69: 1 | AZ69: 1 | BB69: 1 | BD69: 1 | BF69: 1 | BH69: 1
D70: 1 | F70: 1 | H70: 1 | J70: 1 | L70: 1 | N70: 1 | P70: 1 | W70: =IF(Y68="","","Φ63") -> Φ63 | X70: =IF(Y68="","","x"&VLOOKUP(Y68,big_tabela,20,0)) -> x2 | Y70: =IF(Y68="","","◄") -> ◄ | AK70: =IF(AK68="","","◄") ->  | AL70: =IF(AK68="","","Φ63") ->  | AM70: =IF(AK68="","","x"&VLOOKUP(AK68,big_tabela,19,0)) ->  | AX70: 1 | AZ70: 1 | BB70: 1 | BD70: 1 | BF70: 1 | BH70: 1
D71: 1 | F71: 1 | H71: 1 | J71: 1 | L71: 1 | N71: 1 | P71: 1 | R71: =$X$69 -> 1 | S71: =$X$69 -> 1 | T71: 1 | U71: 1 | V71: 1 | W71: 1 | X71: 1 | Y71: =$X$69 -> 1 | AK71: =$AL$69 ->  | AX71: 1 | AZ71: 1 | BB71: 1 | BD71: 1 | BF71: 1 | BH71: 1
D72: 1 | F72: 1 | H72: 1 | J72: 1 | L72: 1 | N72: 1 | P72: 1 | R72: 1 | AA72: =IF(Y68="","",VLOOKUP(Y68,big_tabela,4,0)) ->  | AC72: =IF(Y68="","","anemostat") -> anemostat | AD72: =IF(Y68="","","x"&VLOOKUP(Y68,big_tabela,23,0)) -> x1 | AG72: =IF(AK68="","",VLOOKUP(AK68,big_tabela,4,0)) ->  | AI72: =IF(AK68="","","anemostat") ->  | AJ72: =IF(AK68="","","x"&VLOOKUP(AK68,big_tabela,22,0)) ->  | AT72: =$AL$69 ->  | AX72: 1 | AZ72: 1 | BB72: 1 | BD72: 1 | BF72: 1 | BH72: 1
D73: 1 | F73: 1 | H73: 1 | J73: 1 | L73: 1 | N73: 1 | P73: 1 | R73: 1 | AX73: =$AL$55 -> 1 | AZ73: 1 | BB73: 1 | BD73: 1 | BF73: 1 | BH73: 1
D74: 1 | F74: 1 | H74: 1 | J74: 1 | L74: 1 | N74: 1 | P74: 1 | R74: 1 | AX74: 1 | AZ74: 1 | BB74: 1 | BD74: 1 | BF74: 1 | BH74: 1
D75: 1 | F75: 1 | H75: 1 | J75: 1 | L75: 1 | N75: 1 | P75: 1 | R75: 1 | Y75: =IF(Obliczenia!E69="10","",Obliczenia!E69) ->  | AK75: =IF(Obliczenia!E45="10","",Obliczenia!E45) ->  | AX75: 1 | AZ75: 1 | BB75: 1 | BD75: 1 | BF75: 1 | BH75: 1
D76: 1 | F76: 1 | H76: 1 | J76: 1 | L76: 1 | N76: 1 | P76: 1 | R76: 1 | X76: =IF(Y75<>"","1","") ->  | AA76: =IF(Y75="","",VLOOKUP(Y75,big_tabela,3,0)) ->  | AC76: =IF(Y75="","",VLOOKUP(Y75,big_tabela,12,0)) ->  | AD76: m3/h | AG76: =IF(AK75="","",VLOOKUP(AK75,big_tabela,3,0)) ->  | AI76: =IF(AK75="","",VLOOKUP(AK75,big_tabela,12,0)) ->  | AJ76: m3/h | AL76: =IF(AK75<>"","1","") ->  | AX76: 1 | AZ76: 1 | BB76: 1 | BD76: 1 | BF76: 1 | BH76: 1
D77: 1 | F77: 1 | H77: 1 | J77: 1 | L77: 1 | N77: 1 | P77: 1 | R77: 1 | W77: =IF(Y75="","","Φ63") ->  | X77: =IF(Y75="","","x"&VLOOKUP(Y75,big_tabela,20,0)) ->  | Y77: =IF(Y75="","","◄") ->  | AK77: =IF(AK75="","","◄") ->  | AL77: =IF(AK75="","","Φ63") ->  | AM77: =IF(AK75="","","x"&VLOOKUP(AK75,big_tabela,19,0)) ->  | AX77: 1 | AZ77: 1 | BB77: 1 | BD77: 1 | BF77: 1 | BH77: 1
D78: 1 | F78: 1 | H78: 1 | J78: 1 | L78: 1 | N78: 1 | P78: 1 | R78: 1 | T78: =$X$76 ->  | U78: =$X$76 ->  | Y78: =$X$76 ->  | AK78: =$AL$76 ->  | AL78: =$AL$76 ->  | AX78: 1 | AZ78: 1 | BB78: 1 | BD78: 1 | BF78: 1 | BH78: 1
D79: 1 | F79: 1 | H79: 1 | J79: 1 | L79: 1 | N79: 1 | P79: 1 | R79: 1 | AA79: =IF(Y75="","",VLOOKUP(Y75,big_tabela,4,0)) ->  | AC79: =IF(Y75="","","anemostat") ->  | AD79: =IF(Y75="","","x"&VLOOKUP(Y75,big_tabela,23,0)) ->  | AG79: =IF(AK75="","",VLOOKUP(AK75,big_tabela,4,0)) ->  | AI79: =IF(AK75="","","anemostat") ->  | AJ79: =IF(AK75="","","x"&VLOOKUP(AK75,big_tabela,22,0)) ->  | AX79: 1 | AZ79: 1 | BB79: 1 | BD79: 1 | BF79: 1 | BH79: 1
D80: 1 | F80: 1 | H80: 1 | J80: 1 | L80: 1 | N80: 1 | P80: 1 | R80: 1 | AV80: =$AL$62 ->  | AX80: 1 | AZ80: 1 | BB80: 1 | BD80: 1 | BF80: 1 | BH80: 1
D81: 1 | F81: 1 | H81: 1 | J81: 1 | L81: 1 | N81: 1 | P81: 1 | R81: 1 | AX81: 1 | AZ81: 1 | BB81: 1 | BD81: 1 | BF81: 1 | BH81: 1
D82: 1 | F82: 1 | H82: 1 | J82: 1 | L82: 1 | N82: 1 | P82: 1 | R82: 1 | Y82: =IF(Obliczenia!E70="10","",Obliczenia!E70) ->  | AK82: =IF(Obliczenia!E46="10","",Obliczenia!E46) ->  | AX82: 1 | AZ82: 1 | BB82: 1 | BD82: 1 | BF82: 1 | BH82: 1
D83: 1 | F83: 1 | H83: 1 | J83: 1 | L83: 1 | N83: 1 | P83: 1 | R83: 1 | X83: =IF(Y82<>"","1","") ->  | AA83: =IF(Y82="","",VLOOKUP(Y82,big_tabela,3,0)) ->  | AC83: =IF(Y82="","",VLOOKUP(Y82,big_tabela,12,0)) ->  | AD83: m3/h | AG83: =IF(AK82="","",VLOOKUP(AK82,big_tabela,3,0)) ->  | AI83: =IF(AK82="","",VLOOKUP(AK82,big_tabela,12,0)) ->  | AJ83: m3/h | AL83: =IF(AK82<>"","1","") ->  | AX83: 1 | AZ83: 1 | BB83: 1 | BD83: 1 | BF83: 1 | BH83: 1
D84: 1 | F84: 1 | H84: 1 | J84: 1 | L84: 1 | N84: 1 | P84: 1 | R84: 1 | W84: =IF(Y82="","","Φ63") ->  | X84: =IF(Y82="","","x"&VLOOKUP(Y82,big_tabela,20,0)) ->  | Y84: =IF(Y82="","","◄") ->  | AK84: =IF(AK82="","","◄") ->  | AL84: =IF(AK82="","","Φ63") ->  | AM84: =IF(AK82="","","x"&VLOOKUP(AK82,big_tabela,19,0)) ->  | AX84: 1 | AZ84: 1 | BB84: 1 | BD84: 1 | BF84: 1 | BH84: 1
D85: 1 | F85: 1 | H85: 1 | J85: 1 | L85: 1 | N85: 1 | P85: 1 | R85: 1 | V85: =$X$83 ->  | W85: =$X$83 ->  | Y85: =$X$83 ->  | AK85: =$AL$83 ->  | AX85: 1 | AZ85: 1 | BB85: 1 | BD85: 1 | BF85: 1 | BH85: 1
D86: 1 | F86: 1 | H86: 1 | J86: 1 | L86: 1 | N86: 1 | P86: 1 | R86: 1 | AA86: =IF(Y82="","",VLOOKUP(Y82,big_tabela,4,0)) ->  | AC86: =IF(Y82="","","anemostat") ->  | AD86: =IF(Y82="","","x"&VLOOKUP(Y82,big_tabela,23,0)) ->  | AG86: =IF(AK82="","",VLOOKUP(AK82,big_tabela,4,0)) ->  | AI86: =IF(AK82="","","anemostat") ->  | AJ86: =IF(AK82="","","x"&VLOOKUP(AK82,big_tabela,22,0)) ->  | AP86: =$AL$83 ->  | AX86: 1 | AZ86: 1 | BB86: 1 | BD86: 1 | BF86: 1 | BH86: 1
D87: =$X$20 -> 1 | F87: 1 | H87: 1 | J87: 1 | L87: 1 | N87: 1 | P87: 1 | R87: 1 | AP87: =$AL$83 ->  | AT87: =$AL$69 ->  | AX87: 1 | AZ87: 1 | BB87: 1 | BD87: 1 | BF87: 1 | BH87: 1
E88: =Obliczenia!Y47 ->  | AQ88: =Obliczenia!AA47 -> 
E89: =IF(E88<>"",IF(E90<>"","+",""),"") ->  | W89: =" "&Obliczenia!U30&"x rur DN63" -> 14x rur DN63 | AM89: =Obliczenia!T30&"x rur DN63" -> 14x rur DN63 | AQ89: =IF(AQ88<>"",IF(AQ90<>"","+",""),"") -> 
E90: =Obliczenia!Y48 -> 18x63 | W90: =IF(Obliczenia!AB29=2,"! Należy zastosować dwa rozdzielacze lub inną średnicę systemu","") ->  | AI90: =IF(Obliczenia!Z29=2,"! Należy zastosować dwa rozdzielacze lub inną średnicę systemu","") ->  | AQ90: =Obliczenia!AA48 -> 18x63
P91: =$X$113 ->  | R91: =$X$106 ->  | T91: =$X$99 ->  | V91: =$X$92 ->  | Y91: =IF(Obliczenia!E71="10","",Obliczenia!E71) ->  | AK91: =IF(Obliczenia!E47="10","",Obliczenia!E47) ->  | AP91: =$AL$92 ->  | AR91: =$AL$99 ->  | AT91: =$AL$106 ->  | AV91: =$AL$113 -> 
X92: =IF(Y91<>"","1","") ->  | AA92: =IF(Y91="","",VLOOKUP(Y91,big_tabela,3,0)) ->  | AC92: =IF(Y91="","",VLOOKUP(Y91,big_tabela,12,0)) ->  | AD92: m3/h | AG92: =IF(AK91="","",VLOOKUP(AK91,big_tabela,3,0)) ->  | AI92: =IF(AK91="","",VLOOKUP(AK91,big_tabela,12,0)) ->  | AJ92: m3/h | AL92: =IF(AK91<>"","1","") -> 
W93: =IF(Y91="","","Φ63") ->  | X93: =IF(Y91="","","x"&VLOOKUP(Y91,big_tabela,20,0)) ->  | Y93: =IF(Y91="","","◄") ->  | AK93: =IF(AK91="","","◄") ->  | AL93: =IF(AK91="","","Φ63") ->  | AM93: =IF(AK91="","","x"&VLOOKUP(AK91,big_tabela,19,0)) -> 
W94: =$X$92 ->  | Y94: =$X$92 ->  | AK94: =$AL$92 ->  | AL94: =$AL$92 ->  | AM94: =$AL$92 ->  | AN94: =$AL$92 ->  | AO94: =$AL$92 -> 
AA95: =IF(Y91="","",VLOOKUP(Y91,big_tabela,4,0)) ->  | AC95: =IF(Y91="","","anemostat") ->  | AD95: =IF(Y91="","","x"&VLOOKUP(Y91,big_tabela,23,0)) ->  | AG95: =IF(AK91="","",VLOOKUP(AK91,big_tabela,4,0)) ->  | AI95: =IF(AK91="","","anemostat") ->  | AJ95: =IF(AK91="","","x"&VLOOKUP(AK91,big_tabela,22,0)) -> 
Y98: =IF(Obliczenia!E72="10","",Obliczenia!E72) ->  | AK98: =IF(Obliczenia!E48="10","",Obliczenia!E48) -> 
X99: =IF(Y98<>"","1","") ->  | AA99: =IF(Y98="","",VLOOKUP(Y98,big_tabela,3,0)) ->  | AC99: =IF(Y98="","",VLOOKUP(Y98,big_tabela,12,0)) ->  | AD99: m3/h | AG99: =IF(AK98="","",VLOOKUP(AK98,big_tabela,3,0)) ->  | AI99: =IF(AK98="","",VLOOKUP(AK98,big_tabela,12,0)) ->  | AJ99: m3/h | AL99: =IF(AK98<>"","1","") -> 
W100: =IF(Y98="","","Φ63") ->  | X100: =IF(Y98="","","x"&VLOOKUP(Y98,big_tabela,20,0)) ->  | Y100: =IF(Y98="","","◄") ->  | AK100: =IF(AK98="","","◄") ->  | AL100: =IF(AK98="","","Φ63") ->  | AM100: =IF(AK98="","","x"&VLOOKUP(AK98,big_tabela,19,0)) -> 
U101: =$X$99 ->  | Y101: =$X$99 ->  | AK101: =$AL$99 -> 
AA102: =IF(Y98="","",VLOOKUP(Y98,big_tabela,4,0)) ->  | AC102: =IF(Y98="","","anemostat") ->  | AD102: =IF(Y98="","","x"&VLOOKUP(Y98,big_tabela,23,0)) ->  | AG102: =IF(AK98="","",VLOOKUP(AK98,big_tabela,4,0)) ->  | AI102: =IF(AK98="","","anemostat") ->  | AJ102: =IF(AK98="","","x"&VLOOKUP(AK98,big_tabela,22,0)) -> 
Y105: =IF(Obliczenia!E73="10","",Obliczenia!E73) ->  | AK105: =IF(Obliczenia!E49="10","",Obliczenia!E49) -> 
X106: =IF(Y105<>"","1","") ->  | AA106: =IF(Y105="","",VLOOKUP(Y105,big_tabela,3,0)) ->  | AC106: =IF(Y105="","",VLOOKUP(Y105,big_tabela,12,0)) ->  | AD106: m3/h | AG106: =IF(AK105="","",VLOOKUP(AK105,big_tabela,3,0)) ->  | AI106: =IF(AK105="","",VLOOKUP(AK105,big_tabela,12,0)) ->  | AJ106: m3/h | AL106: =IF(AK105<>"","1","") -> 
W107: =IF(Y105="","","Φ63") ->  | X107: =IF(Y105="","","x"&VLOOKUP(Y105,big_tabela,20,0)) ->  | Y107: =IF(Y105="","","◄") ->  | AK107: =IF(AK105="","","◄") ->  | AL107: =IF(AK105="","","Φ63") ->  | AM107: =IF(AK105="","","x"&VLOOKUP(AK105,big_tabela,19,0)) -> 
S108: =$X$106 ->  | Y108: =$X$106 ->  | AK108: =$AL$106 -> 
AA109: =IF(Y105="","",VLOOKUP(Y105,big_tabela,4,0)) ->  | AC109: =IF(Y105="","","anemostat") ->  | AD109: =IF(Y105="","","x"&VLOOKUP(Y105,big_tabela,23,0)) ->  | AG109: =IF(AK105="","",VLOOKUP(AK105,big_tabela,4,0)) ->  | AI109: =IF(AK105="","","anemostat") ->  | AJ109: =IF(AK105="","","x"&VLOOKUP(AK105,big_tabela,22,0)) -> 
Y112: =IF(Obliczenia!E74="10","",Obliczenia!E74) ->  | AK112: =IF(Obliczenia!E50="10","",Obliczenia!E50) -> 
X113: =IF(Y112<>"","1","") ->  | AA113: =IF(Y112="","",VLOOKUP(Y112,big_tabela,3,0)) ->  | AC113: =IF(Y112="","",VLOOKUP(Y112,big_tabela,12,0)) ->  | AD113: m3/h | AG113: =IF(AK112="","",VLOOKUP(AK112,big_tabela,3,0)) ->  | AI113: =IF(AK112="","",VLOOKUP(AK112,big_tabela,12,0)) ->  | AJ113: m3/h | AL113: =IF(AK112<>"","1","") -> 
W114: =IF(Y112="","","Φ63") ->  | X114: =IF(Y112="","","x"&VLOOKUP(Y112,big_tabela,20,0)) ->  | Y114: =IF(Y112="","","◄") ->  | AK114: =IF(AK112="","","◄") ->  | AL114: =IF(AK112="","","Φ63") ->  | AM114: =IF(AK112="","","x"&VLOOKUP(AK112,big_tabela,19,0)) -> 
Q115: =$X$113 ->  | Y115: =$X$113 ->  | AK115: =$AL$113 -> 
AA116: =IF(Y112="","",VLOOKUP(Y112,big_tabela,4,0)) ->  | AC116: =IF(Y112="","","anemostat") ->  | AD116: =IF(Y112="","","x"&VLOOKUP(Y112,big_tabela,23,0)) ->  | AG116: =IF(AK112="","",VLOOKUP(AK112,big_tabela,4,0)) ->  | AI116: =IF(AK112="","","anemostat") ->  | AJ116: =IF(AK112="","","x"&VLOOKUP(AK112,big_tabela,22,0)) -> 
AC119: =X137 -> Vitoair FS 300E MA 300m3/h
X122: ="Kanał zbiorczy 200/174, króciec przyłączeniowy Φ "&Obliczenia!N59 -> Kanał zbiorczy 200/174, króciec przyłączeniowy Φ 160 | AH122: =" Kanał zbiorczy 200/174, króciec przyłączeniowy Φ "&Obliczenia!N59 -> Kanał zbiorczy 200/174, króciec przyłączeniowy Φ 160
X125: ="Kanał zbiorczy 200/174, króciec przyłączeniowy Φ "&Obliczenia!N59 -> Kanał zbiorczy 200/174, króciec przyłączeniowy Φ 160 | AH125: =" Kanał zbiorczy 200/174, króciec przyłączeniowy Φ "&Obliczenia!N59 -> Kanał zbiorczy 200/174, króciec przyłączeniowy Φ 160
C128: Szacunkowy dobór centrali wentylacyjnej i systemu dystrybucji powietrza
W133: Centrala wentylacyjna
K137: =Obliczenia!J83 ->  | X137: Vitoair FS 300E MA 300m3/h | AC137: ="R "&AC138&" %" -> R 0 % | AD137: =VLOOKUP(X137,rozdzial,4,0)-VLOOKUP(X137,rozdzial,4,0)*(AC138/100) -> 13,824.00 zł | AG137: Sprawność temperaturowa ErP | AL137: =VLOOKUP($X$137,Obliczenia!J37:W45,8,0) -> 80 | AM137: [%]
X138: =IF(X137="Vitoair FS 300E MA 300m3/h","Centrala wentylacji mechanicznej z odzyskiem ciepła i wilgoci","Centrala wentylacji mechanicznej z odzyskiem ciepła") -> Centrala wentylacji mechanicznej z odzyskiem ciepła i wilgoci | AC138: 0 | AG138: Stopień zmiany wilgotności | AL138: =VLOOKUP($X$137,Obliczenia!J37:W45,9,0) -> 74 | AM138: [%]
X139: =VLOOKUP(X137,rozdzial,3,0) -> Z029138 | AG139: Rodzaj wymiennika ciepła | AL139: =VLOOKUP($X$137,Obliczenia!J37:W45,11,0) -> Krzyżowy, entalpiczny
AG140: Klapa bypass | AL140: =VLOOKUP($X$137,Obliczenia!J37:W45,13,0) -> Tak
X141: =" "&VLOOKUP($X$137,Obliczenia!J37:W45,6,0) -> 39 | Y141: =VLOOKUP($X$137,Obliczenia!J37:W45,4,0)&" [m3/h]" -> 300 [m3/h] | AB141: =VLOOKUP($X$137,Obliczenia!J37:AA45,16,0) -> A | AG141: Nagrzewnica powietrza zewnęrznego | AL141: =VLOOKUP($X$137,Obliczenia!J37:W45,14,0) -> Opcja 1,8kW
AB142: =VLOOKUP($X$137,Obliczenia!J37:AA45,17,0) -> A | AG142: Odpływ kondensatu | AL142: =VLOOKUP($X$137,Obliczenia!J37:W45,12,0) -> Nie
AB143: =VLOOKUP($X$137,Obliczenia!J37:AA45,18,0) -> A | AG143: Wymiary zewnętrzne D x W x S | AL143: =VLOOKUP($X$137,Obliczenia!J37:W45,10,0) -> 1254 x 244 x 800 | AM143: [mm]
X145: =IF(X137="Vitoair FS 300E MA 300m3/h","Nagrzewnica elektryczna powietrza 1,8kW","") -> Nagrzewnica elektryczna powietrza 1,8kW | AD145: =IFERROR(VLOOKUP(X145,rozdzial,4,0)-VLOOKUP(X145,rozdzial,4,0)*(AC138/100),"") -> 1,913.00 zł
X146: =IF(X137="Vitoair FS 300E MA 300m3/h","Do ogrzewania wstępnego powietrza, montaż wewn. centrali","") -> Do ogrzewania wstępnego powietrza, montaż wewn. centrali
X147: =IFERROR(VLOOKUP(X145,rozdzial,3,0),"") -> 7372079
W149: Sterowanie
AG153: Vitotrol 300-E
K154: =Obliczenia!J82 ->  | X154: Sterowanie przez aplikację ViCare | AD154: =IF(X154="Sterowanie przez aplikację ViCare","0 zł",VLOOKUP(X154,rozdzial,4,0)-VLOOKUP(X154,rozdzial,4,0)*(AC138/100)) -> 0 zł | AI154: Radio
X155: do obsługi zdalnej centrali wentylacyjnej | AG155: Przełącznik 4-pozycyjny | AJ155: Can-Bus
X156: =IF(X154="Sterowanie przez aplikację ViCare","",VLOOKUP(X154,rozdzial,3,0)) ->  | AI156: Can-Bus | AN156: ViCare
AI157: Vitoair FS 300E MA | AK157: opcja Vitocal x5x-A i 2xx-S
AD158: =IFERROR(VLOOKUP(X158,rozdzial,4,0)-VLOOKUP(X158,rozdzial,4,0)*(AC138/100),"") ->  | AG158: Stand Alone
X159: =IF(X137="Vitoair FS 300E MA 300m3/h","Opcja: do komunikacji z pompą ciepłą z regulatorem E3",IF(X158="Przewód komunikacyjny Can-Bus 5m","Uwaga! Nie ma zastosowanie w tym rozwiązaniu","")) -> Opcja: do komunikacji z pompą ciepłą z regulatorem E3 | AG159: bez ViCare App
X160: =IFERROR(VLOOKUP(X158,rozdzial,3,0),"") ->  | AJ160: Mod-Bus
AG161: Moduł LB1
W162: System dystrybucji // po stronie pomieszczeń | AG162: (nie z Vitoconnect V) | AJ162: Vitoconnect V | AN162: ViCare
AI163: Vitovent 300-W
X167: Skrzynka do anemostatu | AC167: =Obliczenia!V30 -> 15 | AD167: =VLOOKUP(X167,rozdzial,4,0)*AC167*(1-$AM$236/100) -> 4,875.00 zł | AH167: Element usztywniający do skrzynki anemostatu | AL167: 0 | AM167: =VLOOKUP(AH167,rozdzial,4,0)*AL167*(1-$AM$236/100) -> 0.00 zł
X168: Skrzynka rozprężna do mocowania anemostatu | AH168: Poprawia osadzanie anemostatów w skrzynkach
X169: =VLOOKUP(X167,rozdzial,3,0) -> 7546057 | Y169: =VLOOKUP(X167,rozdzial,4,0) -> 325.00 zł | AH169: =VLOOKUP(AH167,rozdzial,3,0) -> 7634370 | AI169: =VLOOKUP(AH167,rozdzial,4,0) -> 12.00 zł | AK169: =AC167 -> 15
X172: Anemostat metalowy wywiewny | AC172: =Obliczenia!X30 -> 8 | AD172: =VLOOKUP(X172,rozdzial,4,0)*AC172*(1-$AM$236/100) -> 408.00 zł | AH172: Anemostat metalowy nawiewny | AL172: =Obliczenia!W30 -> 7 | AM172: =VLOOKUP(AH172,rozdzial,4,0)*AL172*(1-$AM$236/100) -> 441.00 zł
X173: Do wywiewania powietrza z pomieszczenia | AH173: Do nawiewania powietrza świeżego do pomieszczenia
X174: =VLOOKUP(X172,rozdzial,3,0) -> 7546060 | Y174: =VLOOKUP(X172,rozdzial,4,0) -> 51.00 zł | AH174: =VLOOKUP(AH172,rozdzial,3,0) -> 7546059 | AI174: =VLOOKUP(AH172,rozdzial,4,0) -> 63.00 zł
X177: Skrzynka rozdzielcza 18x63 | AC177: =Obliczenia!Z34+Obliczenia!AB34 -> 2 | AD177: =VLOOKUP(X177,rozdzial,4,0)*AC177*(1-$AM$236/100) -> 2,414.00 zł | AH177: Skrzynka rozdzielcza 12x63 | AL177: =Obliczenia!Y33+Obliczenia!AA33 -> 0 | AM177: =VLOOKUP(AH177,rozdzial,4,0)*AL177*(1-$AM$236/100) -> 0.00 zł
X178: Rozdzielacz powietrza podwójny | AH178: Pozdzielacz powietrza pojedynczy
X179: =VLOOKUP(X177,rozdzial,3,0) -> 7546061 | Y179: =VLOOKUP(X177,rozdzial,4,0) -> 1,207.00 zł | AH179: =VLOOKUP(AH177,rozdzial,3,0) -> 7546062 | AI179: =VLOOKUP(AH177,rozdzial,4,0) -> 1,032.00 zł
X182: Elastyczny kanał okrągły DN63 | AC182: =AB184 -> 6 | AD182: =VLOOKUP(X182,rozdzial,4,0)*AC182*(1-$AM$236/100) -> 2,502.00 zł
X183: 1 rolka = 50 m długości
X184: =VLOOKUP(X182,rozdzial,3,0) -> 7228294 | Y184: =VLOOKUP(X182,rozdzial,4,0) -> 417.00 zł | AB184: =ROUNDUP(AC167*20/50,0) -> 6
W187: System dystrybucji // po stronie zewnętrznej
X191: Kanał izolowany 200/174 | AC191: =AB193 -> 6 | AD191: =VLOOKUP(X191,rozdzial,4,0)*AC191*(1-$AM$236/100) -> 2,754.00 zł | AH191: Kolano izolowane z mufą 90 stopni | AL191: =AK193 -> 4 | AM191: =VLOOKUP(AH191,rozdzial,4,0)*AL191*(1-$AM$236/100) -> 816.00 zł
X192: 1 sztuka = 2 m długości, przepływ maksymalny 400 m3/h | AH192: Do zmiany kierunku kanałów izolowanych 200/174
X193: =VLOOKUP(X191,rozdzial,3,0) -> 7546070 | Y193: =VLOOKUP(X191,rozdzial,4,0) -> 459.00 zł | AB193: =ROUNDUP(Obliczenia!V30*20/50,0) -> 6 | AH193: =VLOOKUP(AH191,rozdzial,3,0) -> 7546071 | AI193: =VLOOKUP(AH191,rozdzial,4,0) -> 204.00 zł | AK193: 4
X196: Czerpnia/wyrzutnia ścienna z rurą | AC196: 2 | AD196: =VLOOKUP(X196,rozdzial,4,0)*AC196*(1-$AM$236/100) -> 616.00 zł | AH196: =IF(Obliczenia!N57="Vitovent 300-W 325m3/h lewa","Mufa/redukcja 200/150",IF(Obliczenia!N57="Vitovent 300-W 325m3/h prawa","Mufa/redukcja 200/150",IF(Obliczenia!N57="Vitovent 300-W 400m3/h lewa","Mufa/redukcja 200/180",IF(Obliczenia!N57="Vitovent 300-W 400m3/h prawa","Mufa/redukcja 200/180",IF(Obliczenia!N57="Vitovent 300-W 225m3/h lewa","Mufa/redukcja 200/125",IF(Obliczenia!N57="Vitovent 300-W 225m3/h prawa","Mufa/redukcja 200/125","Mufa/redukcja 200/150")))))) -> Mufa/redukcja 200/150 | AL196: 4 | AM196: =VLOOKUP(AH196,rozdzial,4,0)*AL196*(1-$AM$236/100) -> 336.00 zł
X197: Do bezpośredniego podłączenia kanału izolowanego 200/174 | AH197: Do przyłączenia kanału 200/174 do króćców centrali
X198: =VLOOKUP(X196,rozdzial,3,0) -> 7663729 | Y198: =VLOOKUP(X196,rozdzial,4,0) -> 308.00 zł | AH198: =VLOOKUP(AH196,rozdzial,3,0) -> 7546075 | AI198: =VLOOKUP(AH196,rozdzial,4,0) -> 84.00 zł
W206: Elementy uzupełniające
X210: Nóż do kanałów DN63 | AC210: 0 | AD210: =VLOOKUP(X210,rozdzial,4,0)*AC210*(1-$AM$236/100) -> 0.00 zł | AH210: Łącznik kanałów DN63 | AL210: 0 | AM210: =VLOOKUP(AH210,rozdzial,4,0)*AL210*(1-$AM$236/100) -> 0.00 zł
X211: Do szybkiego i precyzyjnego obcinania rur | AH211: Do szczelnego łączenia kanałów elastycznych DN63
X212: =VLOOKUP(X210,rozdzial,3,0) -> 7546068 | Y212: =VLOOKUP(X210,rozdzial,4,0) -> 305.00 zł | AH212: =VLOOKUP(AH210,rozdzial,3,0) -> 7546067 | AI212: =VLOOKUP(AH210,rozdzial,4,0) -> 40.00 zł
X215: Kolano izolowane z mufą 45 stopni | AC215: 0 | AD215: =VLOOKUP(X215,rozdzial,4,0)*AC215*(1-$AM$236/100) -> 0.00 zł | AH215: Trójnik izolowany 200/174 bez mufy | AL215: =AL217 -> 0 | AM215: =VLOOKUP(AH215,rozdzial,4,0)*AL215*(1-$AM$236/100) -> 0.00 zł
X216: Do zmiany kierunku kanałów izolowanych 200/174 | AH216: Do rozdzielenia kanału izolowanego 200/174
X217: =VLOOKUP(X215,rozdzial,3,0) -> 7546072 | Y217: =VLOOKUP(X215,rozdzial,4,0) -> 143.00 zł | AH217: =VLOOKUP(AH215,rozdzial,3,0) -> 7775845 | AI217: =VLOOKUP(AH215,rozdzial,4,0) -> 824.00 zł | AL217: =IF(AC177>2,INT(AC177/2),0) -> 0
X220: Mufa łącząca 200/200 | AC220: 0 | AD220: =VLOOKUP(X220,rozdzial,4,0)*AC220*(1-$AM$236/100) -> 0.00 zł | AH220: Króciec przyłączeniowy do przedłużania DN125 | AL220: 0 | AM220: =VLOOKUP(AH220,rozdzial,4,0)*AL220*(1-$AM$236/100) -> 0.00 zł
X221: do sterowania i diagnostyki centrali Vitovent | AH221: Do przedłużenia króćca przyłączeniowego skrzynki rozpr.
X222: =VLOOKUP(X220,rozdzial,3,0) -> 7546073 | Y222: =VLOOKUP(X220,rozdzial,4,0) -> 68.00 zł | AH222: =VLOOKUP(AH220,rozdzial,3,0) -> 7546058 | AI222: =VLOOKUP(AH220,rozdzial,4,0) -> 35.00 zł
X225: Uchwyt mocujący do kanałów DN63 | AC225: 0 | AD225: =VLOOKUP(X225,rozdzial,4,0)*AC225*(1-$AM$236/100) -> 0.00 zł | AH225: Tłumik dźwięku, giętki; 1,1m; DN180; 50mm | AL225: 0 | AM225: =VLOOKUP(AH225,rozdzial,4,0)*AL225*(1-$AM$236/100) -> 0.00 zł
X226: do sterowania i diagnostyki centrali Vitovent | AH226: do sterowania i diagnostyki centrali Vitovent
X227: =VLOOKUP(X225,rozdzial,3,0) -> 7546069 | Y227: =VLOOKUP(X225,rozdzial,4,0) -> 9.50 zł | AH227: =VLOOKUP(AH225,rozdzial,3,0) -> ZK03037 | AI227: =VLOOKUP(AH225,rozdzial,4,0) -> 684.00 zł
C235: =Dane!S241 -> Autor: | H235: =Dane!T241 -> PanD, 2023 | AJ235: Cena: | AK235: =AD137+IFERROR(VLOOKUP(X145,rozdzial,4,0),0)+AD154+IFERROR(VLOOKUP(X158,rozdzial,4,0),0)+AD167+AM167+AM172+AD172+AD177+AM177+AD182+AD191+AD196+AM191+AM196+AD210+AM210+AD215+AM215+AM220+AD220+AD225+AM225 -> 30,899.00 zł | AM235: ="R "&AM236&" %" -> R 0 % | AN235: (rabat na system)
AM236: 0
AO238: =IF(Obliczenia!AP10<>0,Obliczenia!AP10,"") -> 
AO240: =IF(Obliczenia!AP11<>0,Obliczenia!AP11,"") -> 3
AO242: =IF(Obliczenia!AP12<>0,Obliczenia!AP12,"") -> 
AO244: =IF(Obliczenia!AP13<>0,Obliczenia!AP13,"") -> 1
AO251: =IF(Obliczenia!AP14<>0,Obliczenia!AP14,"") -> 
AO252: =IF(Obliczenia!AP15<>0,Obliczenia!AP15,"") -> 1
AO253: =IF(Obliczenia!AP16<>0,Obliczenia!AP16,"") -> 2
AO254: =IF(Obliczenia!AP17<>0,Obliczenia!AP17,"") -> 
AO255: =IF(Obliczenia!AP18<>0,Obliczenia!AP18,"") -> 

Sheet System DN75
AD1: R system | AE1: =AM236/100 -> 0% | AG1: R centrala | AH1: =AC138/100 -> 0% | AK1: Suma | AL1: =AK235 -> 28,207.00 zł
AJ3: Data: | AK3: =TODAY() -> 2024-09-11 | AM3: =Dane!S3 -> wersja 17/09/2024
C8: System dystrybucji powietrza | okrągły Φ75
C11: Uproszczony schemat instalacji
Z17: Powietrze wywiewane | AF17: Powietrze nawiewane
Y19: =IF(Obliczenia!E61="10","",Obliczenia!E61) -> 0.1 | AK19: =IF(Obliczenia!E37="10","",Obliczenia!E37) -> 0.9
X20: =IF(Y19<>"","1","") -> 1 | AA20: =IF(Y19="","",VLOOKUP(Y19,big_tabela,3,0)) -> Wiatrołap | AC20: =IF(Y19="","",VLOOKUP(Y19,big_tabela,12,0)) -> 15 | AD20: m3/h | AG20: =IF(AK19="","",VLOOKUP(AK19,big_tabela,3,0)) -> Sypialnia | AI20: =IF(AK19="","",VLOOKUP(AK19,big_tabela,12,0)) -> 60 | AJ20: m3/h | AL20: =IF(AK19<>"","1","") -> 1
W21: =IF(Y19="","","Φ75") -> Φ75 | X21: =IF(Y19="","","x"&VLOOKUP(Y19,big_tabela,42,0)) -> x1 | Y21: =IF(Y19="","","◄") -> ◄ | AK21: =IF(AK19="","","◄") -> ◄ | AL21: =IF(AK19="","","Φ75") -> Φ75 | AM21: =IF(AK19="","","x"&VLOOKUP(AK19,big_tabela,41,0)) -> x2
D22: =$X$20 -> 1 | E22: =$X$20 -> 1 | F22: =$X$20 -> 1 | G22: 1 | H22: 1 | I22: 1 | J22: 1 | K22: 1 | L22: 1 | M22: 1 | N22: 1 | O22: 1 | P22: 1 | Q22: 1 | R22: 1 | S22: 1 | T22: 1 | U22: 1 | V22: 1 | W22: 1 | X22: 1 | Y22: 1 | AK22: =$AL$20 -> 1 | AL22: =$AL$20 -> 1 | AM22: 1 | AN22: 1 | AO22: 1 | AP22: 1 | AQ22: 1 | AR22: 1 | AS22: 1 | AT22: 1 | AU22: 1 | AV22: 1 | AW22: 1 | AX22: 1 | AY22: 1 | AZ22: 1 | BA22: 1 | BB22: 1 | BC22: 1 | BD22: 1 | BE22: 1 | BF22: 1 | BG22: 1 | BH22: 1
D23: =$X$20 -> 1 | AA23: =IF(Y19="","",VLOOKUP(Y19,big_tabela,4,0)) ->  | AC23: =IF(Y19="","","anemostat") -> anemostat | AD23: =IF(Y19="","","x"&VLOOKUP(Y19,big_tabela,45,0)) -> x1 | AG23: =IF(AK19="","",VLOOKUP(AK19,big_tabela,4,0)) ->  | AI23: =IF(AK19="","","anemostat") -> anemostat | AJ23: =IF(AK19="","","x"&VLOOKUP(AK19,big_tabela,44,0)) -> x1 | BH23: 1
D24: 1 | BH24: 1
D25: 1 | BH25: 1
D26: 1 | Y26: =IF(Obliczenia!E62="10","",Obliczenia!E62) -> 0.5 | AK26: =IF(Obliczenia!E38="10","",Obliczenia!E38) -> 0.12 | BH26: 1
D27: 1 | X27: =IF(Y26<>"","1","") -> 1 | AA27: =IF(Y26="","",VLOOKUP(Y26,big_tabela,3,0)) -> WC (bez wanny lub kabiny prysznicowej) | AC27: =IF(Y26="","",VLOOKUP(Y26,big_tabela,12,0)) -> 30 | AD27: m3/h | AG27: =IF(AK26="","",VLOOKUP(AK26,big_tabela,3,0)) -> Sypialnia | AI27: =IF(AK26="","",VLOOKUP(AK26,big_tabela,12,0)) -> 30 | AJ27: m3/h | AL27: =IF(AK26<>"","1","") -> 1 | BH27: 1
D28: 1 | W28: =IF(Y26="","","Φ75") -> Φ75 | X28: =IF(Y26="","","x"&VLOOKUP(Y26,big_tabela,42,0)) -> x1 | Y28: =IF(Y26="","","◄") -> ◄ | AK28: =IF(AK26="","","◄") -> ◄ | AL28: =IF(AK26="","","Φ75") -> Φ75 | AM28: =IF(AK26="","","x"&VLOOKUP(AK26,big_tabela,41,0)) -> x1 | BH28: 1
D29: 1 | F29: =$X$27 -> 1 | G29: 1 | H29: 1 | I29: 1 | J29: 1 | K29: 1 | L29: 1 | M29: 1 | N29: 1 | O29: 1 | P29: 1 | Q29: 1 | R29: 1 | S29: 1 | T29: 1 | U29: 1 | V29: 1 | W29: 1 | X29: 1 | Y29: =$X$27 -> 1 | AK29: =$AL$27 -> 1 | AL29: =$AL$27 -> 1 | AM29: 1 | AN29: 1 | AO29: 1 | AP29: 1 | AQ29: 1 | AR29: 1 | AS29: 1 | AT29: 1 | AU29: 1 | AV29: 1 | AW29: 1 | AX29: 1 | AY29: 1 | AZ29: 1 | BA29: 1 | BB29: 1 | BC29: 1 | BD29: 1 | BE29: 1 | BF29: 1 | BH29: 1
D30: 1 | F30: 1 | AA30: =IF(Y26="","",VLOOKUP(Y26,big_tabela,4,0)) ->  | AC30: =IF(Y26="","","anemostat") -> anemostat | AD30: =IF(Y26="","","x"&VLOOKUP(Y26,big_tabela,45,0)) -> x1 | AG30: =IF(AK26="","",VLOOKUP(AK26,big_tabela,4,0)) ->  | AI30: =IF(AK26="","","anemostat") -> anemostat | AJ30: =IF(AK26="","","x"&VLOOKUP(AK26,big_tabela,44,0)) -> x1 | BF30: 1 | BH30: 1
D31: 1 | F31: 1 | BF31: 1 | BH31: 1
D32: 1 | F32: 1 | BF32: 1 | BH32: 1
D33: 1 | F33: 1 | Y33: =IF(Obliczenia!E63="10","",Obliczenia!E63) -> 0.3 | AK33: =IF(Obliczenia!E39="10","",Obliczenia!E39) -> 1.1 | BF33: 1 | BH33: 1
D34: 1 | F34: 1 | G34: 1 | X34: =IF(Y33<>"","1","") -> 1 | AA34: =IF(Y33="","",VLOOKUP(Y33,big_tabela,3,0)) -> Spiżarnia | AC34: =IF(Y33="","",VLOOKUP(Y33,big_tabela,12,0)) -> 15 | AD34: m3/h | AG34: =IF(AK33="","",VLOOKUP(AK33,big_tabela,3,0)) -> Sypialnia | AI34: =IF(AK33="","",VLOOKUP(AK33,big_tabela,12,0)) -> 40 | AJ34: m3/h | AL34: =IF(AK33<>"","1","") -> 1 | BF34: 1 | BH34: 1
D35: 1 | F35: 1 | W35: =IF(Y33="","","Φ75") -> Φ75 | X35: =IF(Y33="","","x"&VLOOKUP(Y33,big_tabela,42,0)) -> x1 | Y35: =IF(Y33="","","◄") -> ◄ | AK35: =IF(AK33="","","◄") -> ◄ | AL35: =IF(AK33="","","Φ75") -> Φ75 | AM35: =IF(AK33="","","x"&VLOOKUP(AK33,big_tabela,41,0)) -> x2 | BF35: 1 | BH35: 1
D36: 1 | F36: 1 | H36: =$X$34 -> 1 | I36: 1 | J36: 1 | K36: 1 | L36: 1 | M36: 1 | N36: 1 | O36: 1 | P36: 1 | Q36: 1 | R36: 1 | S36: 1 | T36: 1 | U36: 1 | V36: 1 | W36: 1 | X36: =$X$34 -> 1 | Y36: =$X$34 -> 1 | AK36: =$AL$34 -> 1 | AL36: =$AL$34 -> 1 | AM36: 1 | AN36: 1 | AO36: 1 | AP36: 1 | AQ36: 1 | AR36: 1 | AS36: 1 | AT36: 1 | AU36: 1 | AV36: 1 | AW36: 1 | AX36: 1 | AY36: 1 | AZ36: 1 | BA36: 1 | BB36: 1 | BC36: 1 | BD36: 1 | BF36: 1 | BH36: 1
D37: 1 | F37: 1 | H37: 1 | AA37: =IF(Y33="","",VLOOKUP(Y33,big_tabela,4,0)) ->  | AC37: =IF(Y33="","","anemostat") -> anemostat | AD37: =IF(Y33="","","x"&VLOOKUP(Y33,big_tabela,45,0)) -> x1 | AG37: =IF(AK33="","",VLOOKUP(AK33,big_tabela,4,0)) ->  | AI37: =IF(AK33="","","anemostat") -> anemostat | AJ37: =IF(AK33="","","x"&VLOOKUP(AK33,big_tabela,44,0)) -> x1 | BD37: 1 | BF37: 1 | BH37: 1
D38: 1 | F38: 1 | H38: 1 | BD38: 1 | BF38: 1 | BH38: =$AL$20 -> 1
D39: 1 | F39: 1 | H39: 1 | BD39: 1 | BF39: 1 | BH39: 1
D40: 1 | F40: 1 | H40: 1 | Y40: =IF(Obliczenia!E64="10","",Obliczenia!E64) -> 0.7 | AK40: =IF(Obliczenia!E40="10","",Obliczenia!E40) -> 0.4 | BD40: 1 | BF40: 1 | BH40: 1
D41: 1 | F41: 1 | H41: 1 | X41: =IF(Y40<>"","1","") -> 1 | AA41: =IF(Y40="","",VLOOKUP(Y40,big_tabela,3,0)) -> Pomieszczenie gospodarcze | AC41: =IF(Y40="","",VLOOKUP(Y40,big_tabela,12,0)) -> 15 | AD41: m3/h | AG41: =IF(AK40="","",VLOOKUP(AK40,big_tabela,3,0)) -> Pokój dzienny | AI41: =IF(AK40="","",VLOOKUP(AK40,big_tabela,12,0)) -> 80 | AJ41: m3/h | AL41: =IF(AK40<>"","1","") -> 1 | BD41: 1 | BF41: 1 | BH41: 1
D42: 1 | F42: 1 | H42: 1 | W42: =IF(Y40="","","Φ75") -> Φ75 | X42: =IF(Y40="","","x"&VLOOKUP(Y40,big_tabela,42,0)) -> x1 | Y42: =IF(Y40="","","◄") -> ◄ | AK42: =IF(AK40="","","◄") -> ◄ | AL42: =IF(AK40="","","Φ75") -> Φ75 | AM42: =IF(AK40="","","x"&VLOOKUP(AK40,big_tabela,41,0)) -> x3 | BD42: 1 | BF42: 1 | BH42: 1
D43: 1 | F43: 1 | H43: 1 | J43: =$X$41 -> 1 | K43: 1 | L43: 1 | M43: 1 | N43: 1 | O43: 1 | P43: 1 | Q43: 1 | R43: 1 | S43: 1 | T43: 1 | U43: 1 | V43: 1 | W43: 1 | X43: 1 | Y43: =$X$41 -> 1 | AK43: =$AL$41 -> 1 | AL43: =$AL$41 -> 1 | AM43: 1 | AN43: 1 | AO43: 1 | AP43: 1 | AQ43: 1 | AR43: 1 | AS43: 1 | AT43: 1 | AU43: 1 | AV43: 1 | AW43: 1 | AX43: 1 | AY43: 1 | AZ43: 1 | BA43: 1 | BB43: 1 | BD43: 1 | BF43: 1 | BH43: 1
D44: 1 | F44: 1 | H44: 1 | J44: 1 | AA44: =IF(Y40="","",VLOOKUP(Y40,big_tabela,4,0)) ->  | AC44: =IF(Y40="","","anemostat") -> anemostat | AD44: =IF(Y40="","","x"&VLOOKUP(Y40,big_tabela,45,0)) -> x1 | AG44: =IF(AK40="","",VLOOKUP(AK40,big_tabela,4,0)) ->  | AI44: =IF(AK40="","","anemostat") -> anemostat | AJ44: =IF(AK40="","","x"&VLOOKUP(AK40,big_tabela,44,0)) -> x2 | BB44: 1 | BD44: 1 | BF44: 1 | BH44: 1
D45: 1 | F45: =$X$27 -> 1 | H45: 1 | J45: 1 | BB45: 1 | BD45: 1 | BF45: =$AL$27 -> 1 | BH45: 1
D46: 1 | F46: 1 | H46: 1 | J46: 1 | BB46: 1 | BD46: 1 | BF46: 1 | BH46: 1
D47: 1 | F47: 1 | H47: 1 | J47: 1 | Y47: =IF(Obliczenia!E65="10","",Obliczenia!E65) -> 0.11 | AK47: =IF(Obliczenia!E41="10","",Obliczenia!E41) -> 0.8 | BB47: 1 | BD47: 1 | BF47: 1 | BH47: 1
D48: 1 | F48: 1 | H48: 1 | J48: 1 | X48: =IF(Y47<>"","1","") -> 1 | AA48: =IF(Y47="","",VLOOKUP(Y47,big_tabela,3,0)) -> Łazienka | AC48: =IF(Y47="","",VLOOKUP(Y47,big_tabela,12,0)) -> 55 | AD48: m3/h | AG48: =IF(AK47="","",VLOOKUP(AK47,big_tabela,3,0)) -> Jadalnia - nawiew | AI48: =IF(AK47="","",VLOOKUP(AK47,big_tabela,12,0)) -> 20 | AJ48: m3/h | AL48: =IF(AK47<>"","1","") -> 1 | BB48: 1 | BD48: 1 | BF48: 1 | BH48: 1
D49: 1 | F49: 1 | H49: 1 | J49: 1 | W49: =IF(Y47="","","Φ75") -> Φ75 | X49: =IF(Y47="","","x"&VLOOKUP(Y47,big_tabela,42,0)) -> x2 | Y49: =IF(Y47="","","◄") -> ◄ | AK49: =IF(AK47="","","◄") -> ◄ | AL49: =IF(AK47="","","Φ75") -> Φ75 | AM49: =IF(AK47="","","x"&VLOOKUP(AK47,big_tabela,41,0)) -> x1 | BB49: 1 | BD49: 1 | BF49: 1 | BH49: 1
D50: 1 | F50: 1 | H50: 1 | J50: 1 | L50: =$X$48 -> 1 | M50: 1 | N50: 1 | O50: 1 | P50: 1 | Q50: 1 | R50: 1 | S50: 1 | T50: 1 | U50: 1 | V50: 1 | W50: 1 | X50: 1 | Y50: =$X$48 -> 1 | AK50: =$AL$48 -> 1 | AL50: 1 | AM50: 1 | AN50: 1 | AO50: 1 | AP50: 1 | AQ50: 1 | AR50: 1 | AS50: 1 | AT50: 1 | AU50: 1 | AV50: 1 | AW50: 1 | AX50: 1 | AY50: 1 | AZ50: 1 | BB50: 1 | BD50: 1 | BF50: 1 | BH50: 1
D51: 1 | F51: 1 | H51: 1 | J51: 1 | L51: 1 | AA51: =IF(Y47="","",VLOOKUP(Y47,big_tabela,4,0)) ->  | AC51: =IF(Y47="","","anemostat") -> anemostat | AD51: =IF(Y47="","","x"&VLOOKUP(Y47,big_tabela,45,0)) -> x1 | AG51: =IF(AK47="","",VLOOKUP(AK47,big_tabela,4,0)) ->  | AI51: =IF(AK47="","","anemostat") -> anemostat | AJ51: =IF(AK47="","","x"&VLOOKUP(AK47,big_tabela,44,0)) -> x1 | AZ51: 1 | BB51: 1 | BD51: 1 | BF51: 1 | BH51: 1
D52: 1 | F52: 1 | H52: 1 | J52: 1 | L52: 1 | AZ52: 1 | BB52: 1 | BD52: =$AL$34 -> 1 | BF52: 1 | BH52: 1
D53: 1 | F53: 1 | H53: 1 | J53: 1 | L53: 1 | AZ53: 1 | BB53: 1 | BD53: 1 | BF53: 1 | BH53: 1
D54: 1 | F54: 1 | H54: 1 | J54: 1 | L54: 1 | Y54: =IF(Obliczenia!E66="10","",Obliczenia!E66) -> 1.2 | AK54: =IF(Obliczenia!E42="10","",Obliczenia!E42) -> 0.6 | AZ54: 1 | BB54: 1 | BD54: 1 | BF54: 1 | BH54: 1
D55: 1 | F55: 1 | H55: 1 | J55: 1 | L55: 1 | X55: =IF(Y54<>"","1","") -> 1 | AA55: =IF(Y54="","",VLOOKUP(Y54,big_tabela,3,0)) -> Łazienka | AC55: =IF(Y54="","",VLOOKUP(Y54,big_tabela,12,0)) -> 50 | AD55: m3/h | AG55: =IF(AK54="","",VLOOKUP(AK54,big_tabela,3,0)) -> Gabinet | AI55: =IF(AK54="","",VLOOKUP(AK54,big_tabela,12,0)) -> 30 | AJ55: m3/h | AL55: =IF(AK54<>"","1","") -> 1 | AZ55: 1 | BB55: 1 | BD55: 1 | BF55: 1 | BH55: 1
D56: 1 | F56: 1 | H56: 1 | J56: 1 | L56: 1 | W56: =IF(Y54="","","Φ75") -> Φ75 | X56: =IF(Y54="","","x"&VLOOKUP(Y54,big_tabela,42,0)) -> x2 | Y56: =IF(Y54="","","◄") -> ◄ | AK56: =IF(AK54="","","◄") -> ◄ | AL56: =IF(AK54="","","Φ75") -> Φ75 | AM56: =IF(AK54="","","x"&VLOOKUP(AK54,big_tabela,41,0)) -> x1 | AZ56: 1 | BB56: 1 | BD56: 1 | BF56: 1 | BH56: 1
D57: 1 | F57: 1 | H57: 1 | J57: 1 | L57: 1 | N57: =$X$55 -> 1 | O57: 1 | P57: 1 | Q57: 1 | R57: 1 | S57: 1 | T57: 1 | U57: 1 | V57: 1 | W57: 1 | X57: 1 | Y57: =$X$55 -> 1 | AK57: =$AL$55 -> 1 | AL57: 1 | AM57: 1 | AN57: 1 | AO57: 1 | AP57: 1 | AQ57: 1 | AR57: 1 | AS57: 1 | AT57: 1 | AU57: 1 | AV57: 1 | AW57: 1 | AX57: 1 | AZ57: 1 | BB57: 1 | BD57: 1 | BF57: 1 | BH57: 1
D58: 1 | F58: 1 | H58: 1 | J58: 1 | L58: 1 | N58: 1 | AA58: =IF(Y54="","",VLOOKUP(Y54,big_tabela,4,0)) ->  | AC58: =IF(Y54="","","anemostat") -> anemostat | AD58: =IF(Y54="","","x"&VLOOKUP(Y54,big_tabela,45,0)) -> x1 | AG58: =IF(AK54="","",VLOOKUP(AK54,big_tabela,4,0)) ->  | AI58: =IF(AK54="","","anemostat") -> anemostat | AJ58: =IF(AK54="","","x"&VLOOKUP(AK54,big_tabela,44,0)) -> x1 | AX58: 1 | AZ58: 1 | BB58: 1 | BD58: 1 | BF58: 1 | BH58: 1
D59: 1 | F59: 1 | H59: 1 | J59: =$X$41 -> 1 | L59: 1 | N59: 1 | AX59: 1 | AZ59: 1 | BB59: =$AL$41 -> 1 | BD59: 1 | BF59: 1 | BH59: 1
D60: 1 | F60: 1 | H60: 1 | J60: 1 | L60: 1 | N60: 1 | AX60: 1 | AZ60: 1 | BB60: 1 | BD60: 1 | BF60: 1 | BH60: 1
D61: 1 | F61: 1 | H61: 1 | J61: 1 | L61: 1 | N61: 1 | Y61: =IF(Obliczenia!E67="10","",Obliczenia!E67) -> 0.2 | AK61: =IF(Obliczenia!E43="10","",Obliczenia!E43) ->  | AX61: 1 | AZ61: 1 | BB61: 1 | BD61: 1 | BF61: 1 | BH61: 1
D62: 1 | F62: 1 | H62: 1 | J62: 1 | L62: 1 | N62: 1 | X62: =IF(Y61<>"","1","") -> 1 | AA62: =IF(Y61="","",VLOOKUP(Y61,big_tabela,3,0)) -> Kuchnia otwarta z kuchenką elektryczną | AC62: =IF(Y61="","",VLOOKUP(Y61,big_tabela,12,0)) -> 50 | AD62: m3/h | AG62: =IF(AK61="","",VLOOKUP(AK61,big_tabela,3,0)) ->  | AI62: =IF(AK61="","",VLOOKUP(AK61,big_tabela,12,0)) ->  | AJ62: m3/h | AL62: =IF(AK61<>"","1","") ->  | AX62: 1 | AZ62: 1 | BB62: 1 | BD62: 1 | BF62: 1 | BH62: 1
D63: 1 | F63: 1 | H63: 1 | J63: 1 | L63: 1 | N63: 1 | W63: =IF(Y61="","","Φ75") -> Φ75 | X63: =IF(Y61="","","x"&VLOOKUP(Y61,big_tabela,42,0)) -> x2 | Y63: =IF(Y61="","","◄") -> ◄ | AK63: =IF(AK61="","","◄") ->  | AL63: =IF(AK61="","","Φ75") ->  | AM63: =IF(AK61="","","x"&VLOOKUP(AK61,big_tabela,41,0)) ->  | AX63: 1 | AZ63: 1 | BB63: 1 | BD63: 1 | BF63: 1 | BH63: 1
D64: 1 | F64: 1 | H64: 1 | J64: 1 | L64: 1 | N64: 1 | P64: =$X$62 -> 1 | Q64: =$X$62 -> 1 | R64: 1 | S64: 1 | T64: 1 | U64: 1 | V64: 1 | W64: 1 | X64: 1 | Y64: 1 | AK64: =$AL$62 ->  | AX64: 1 | AZ64: 1 | BB64: 1 | BD64: 1 | BF64: 1 | BH64: 1
D65: 1 | F65: 1 | H65: 1 | J65: 1 | L65: 1 | N65: 1 | P65: =$X$62 -> 1 | AA65: =IF(Y61="","",VLOOKUP(Y61,big_tabela,4,0)) ->  | AC65: =IF(Y61="","","anemostat") -> anemostat | AD65: =IF(Y61="","","x"&VLOOKUP(Y61,big_tabela,45,0)) -> x1 | AG65: =IF(AK61="","",VLOOKUP(AK61,big_tabela,4,0)) ->  | AI65: =IF(AK61="","","anemostat") ->  | AJ65: =IF(AK61="","","x"&VLOOKUP(AK61,big_tabela,44,0)) ->  | AX65: 1 | AZ65: 1 | BB65: 1 | BD65: 1 | BF65: 1 | BH65: 1
D66: 1 | F66: 1 | H66: 1 | J66: 1 | L66: 1 | N66: 1 | P66: 1 | AX66: 1 | AZ66: =$AL$48 -> 1 | BB66: 1 | BD66: 1 | BF66: 1 | BH66: 1
D67: 1 | F67: 1 | H67: 1 | J67: 1 | L67: 1 | N67: 1 | P67: 1 | AX67: 1 | AZ67: 1 | BB67: 1 | BD67: 1 | BF67: 1 | BH67: 1
D68: 1 | F68: 1 | H68: 1 | J68: 1 | L68: 1 | N68: 1 | P68: 1 | Y68: =IF(Obliczenia!E68="10","",Obliczenia!E68) -> 0.10 | AK68: =IF(Obliczenia!E44="10","",Obliczenia!E44) ->  | AX68: 1 | AZ68: 1 | BB68: 1 | BD68: 1 | BF68: 1 | BH68: 1
D69: 1 | F69: 1 | H69: 1 | J69: 1 | L69: 1 | N69: 1 | P69: 1 | X69: =IF(Y68<>"","1","") -> 1 | AA69: =IF(Y68="","",VLOOKUP(Y68,big_tabela,3,0)) -> Garderoba | AC69: =IF(Y68="","",VLOOKUP(Y68,big_tabela,12,0)) -> 30 | AD69: m3/h | AG69: =IF(AK68="","",VLOOKUP(AK68,big_tabela,3,0)) ->  | AI69: =IF(AK68="","",VLOOKUP(AK68,big_tabela,12,0)) ->  | AJ69: m3/h | AL69: =IF(AK68<>"","1","") ->  | AX69: 1 | AZ69: 1 | BB69: 1 | BD69: 1 | BF69: 1 | BH69: 1
D70: 1 | F70: 1 | H70: 1 | J70: 1 | L70: 1 | N70: 1 | P70: 1 | W70: =IF(Y68="","","Φ75") -> Φ75 | X70: =IF(Y68="","","x"&VLOOKUP(Y68,big_tabela,42,0)) -> x1 | Y70: =IF(Y68="","","◄") -> ◄ | AK70: =IF(AK68="","","◄") ->  | AL70: =IF(AK68="","","Φ75") ->  | AM70: =IF(AK68="","","x"&VLOOKUP(AK68,big_tabela,41,0)) ->  | AX70: 1 | AZ70: 1 | BB70: 1 | BD70: 1 | BF70: 1 | BH70: 1
D71: 1 | F71: 1 | H71: 1 | J71: 1 | L71: 1 | N71: 1 | P71: 1 | R71: =$X$69 -> 1 | S71: 1 | T71: 1 | U71: 1 | V71: 1 | W71: 1 | X71: 1 | Y71: =$X$69 -> 1 | AK71: =$AL$69 ->  | AX71: 1 | AZ71: 1 | BB71: 1 | BD71: 1 | BF71: 1 | BH71: 1
D72: 1 | F72: 1 | H72: 1 | J72: 1 | L72: 1 | N72: 1 | P72: 1 | R72: 1 | AA72: =IF(Y68="","",VLOOKUP(Y68,big_tabela,4,0)) ->  | AC72: =IF(Y68="","","anemostat") -> anemostat | AD72: =IF(Y68="","","x"&VLOOKUP(Y68,big_tabela,45,0)) -> x1 | AG72: =IF(AK68="","",VLOOKUP(AK68,big_tabela,4,0)) ->  | AI72: =IF(AK68="","","anemostat") ->  | AJ72: =IF(AK68="","","x"&VLOOKUP(AK68,big_tabela,44,0)) ->  | AX72: 1 | AZ72: 1 | BB72: 1 | BD72: 1 | BF72: 1 | BH72: 1
D73: 1 | F73: 1 | H73: 1 | J73: 1 | L73: 1 | N73: 1 | P73: 1 | R73: 1 | AX73: =$AL$55 -> 1 | AZ73: 1 | BB73: 1 | BD73: 1 | BF73: 1 | BH73: 1
D74: 1 | F74: 1 | H74: 1 | J74: 1 | L74: 1 | N74: 1 | P74: 1 | R74: 1 | AX74: 1 | AZ74: 1 | BB74: 1 | BD74: 1 | BF74: 1 | BH74: 1
D75: 1 | F75: 1 | H75: 1 | J75: 1 | L75: 1 | N75: 1 | P75: 1 | R75: 1 | Y75: =IF(Obliczenia!E69="10","",Obliczenia!E69) ->  | AK75: =IF(Obliczenia!E45="10","",Obliczenia!E45) ->  | AX75: 1 | AZ75: 1 | BB75: 1 | BD75: 1 | BF75: 1 | BH75: 1
D76: 1 | F76: 1 | H76: 1 | J76: 1 | L76: 1 | N76: 1 | P76: 1 | R76: 1 | X76: =IF(Y75<>"","1","") ->  | AA76: =IF(Y75="","",VLOOKUP(Y75,big_tabela,3,0)) ->  | AC76: =IF(Y75="","",VLOOKUP(Y75,big_tabela,12,0)) ->  | AD76: m3/h | AG76: =IF(AK75="","",VLOOKUP(AK75,big_tabela,3,0)) ->  | AI76: =IF(AK75="","",VLOOKUP(AK75,big_tabela,12,0)) ->  | AJ76: m3/h | AL76: =IF(AK75<>"","1","") ->  | AX76: 1 | AZ76: 1 | BB76: 1 | BD76: 1 | BF76: 1 | BH76: 1
D77: 1 | F77: 1 | H77: 1 | J77: 1 | L77: 1 | N77: 1 | P77: 1 | R77: 1 | W77: =IF(Y75="","","Φ75") ->  | X77: =IF(Y75="","","x"&VLOOKUP(Y75,big_tabela,42,0)) ->  | Y77: =IF(Y75="","","◄") ->  | AK77: =IF(AK75="","","◄") ->  | AL77: =IF(AK75="","","Φ75") ->  | AM77: =IF(AK75="","","x"&VLOOKUP(AK75,big_tabela,41,0)) ->  | AX77: 1 | AZ77: 1 | BB77: 1 | BD77: 1 | BF77: 1 | BH77: 1
D78: 1 | F78: 1 | H78: 1 | J78: 1 | L78: 1 | N78: 1 | P78: 1 | R78: 1 | T78: =$X$76 ->  | Y78: =$X$76 ->  | AK78: =$AL$76 ->  | AL78: =$AL$76 ->  | AX78: 1 | AZ78: 1 | BB78: 1 | BD78: 1 | BF78: 1 | BH78: 1
D79: 1 | F79: 1 | H79: 1 | J79: 1 | L79: 1 | N79: 1 | P79: 1 | R79: 1 | AA79: =IF(Y75="","",VLOOKUP(Y75,big_tabela,4,0)) ->  | AC79: =IF(Y75="","","anemostat") ->  | AD79: =IF(Y75="","","x"&VLOOKUP(Y75,big_tabela,45,0)) ->  | AG79: =IF(AK75="","",VLOOKUP(AK75,big_tabela,4,0)) ->  | AI79: =IF(AK75="","","anemostat") ->  | AJ79: =IF(AK75="","","x"&VLOOKUP(AK75,big_tabela,44,0)) ->  | AX79: 1 | AZ79: 1 | BB79: 1 | BD79: 1 | BF79: 1 | BH79: 1
D80: 1 | F80: 1 | H80: 1 | J80: 1 | L80: 1 | N80: 1 | P80: 1 | R80: 1 | AV80: =$AL$62 ->  | AX80: 1 | AZ80: 1 | BB80: 1 | BD80: 1 | BF80: 1 | BH80: 1
D81: 1 | F81: 1 | H81: 1 | J81: 1 | L81: 1 | N81: 1 | P81: 1 | R81: 1 | AX81: 1 | AZ81: 1 | BB81: 1 | BD81: 1 | BF81: 1 | BH81: 1
D82: 1 | F82: 1 | H82: 1 | J82: 1 | L82: 1 | N82: 1 | P82: 1 | R82: 1 | Y82: =IF(Obliczenia!E70="10","",Obliczenia!E70) ->  | AK82: =IF(Obliczenia!E46="10","",Obliczenia!E46) ->  | AX82: 1 | AZ82: 1 | BB82: 1 | BD82: 1 | BF82: 1 | BH82: 1
D83: 1 | F83: 1 | H83: 1 | J83: 1 | L83: 1 | N83: 1 | P83: 1 | R83: 1 | X83: =IF(Y82<>"","1","") ->  | AA83: =IF(Y82="","",VLOOKUP(Y82,big_tabela,3,0)) ->  | AC83: =IF(Y82="","",VLOOKUP(Y82,big_tabela,12,0)) ->  | AD83: m3/h | AG83: =IF(AK82="","",VLOOKUP(AK82,big_tabela,3,0)) ->  | AI83: =IF(AK82="","",VLOOKUP(AK82,big_tabela,12,0)) ->  | AJ83: m3/h | AL83: =IF(AK82<>"","1","") ->  | AX83: 1 | AZ83: 1 | BB83: 1 | BD83: 1 | BF83: 1 | BH83: 1
D84: 1 | F84: 1 | H84: 1 | J84: 1 | L84: 1 | N84: 1 | P84: 1 | R84: 1 | W84: =IF(Y82="","","Φ75") ->  | X84: =IF(Y82="","","x"&VLOOKUP(Y82,big_tabela,42,0)) ->  | Y84: =IF(Y82="","","◄") ->  | AK84: =IF(AK82="","","◄") ->  | AL84: =IF(AK82="","","Φ75") ->  | AM84: =IF(AK82="","","x"&VLOOKUP(AK82,big_tabela,41,0)) ->  | AX84: 1 | AZ84: 1 | BB84: 1 | BD84: 1 | BF84: 1 | BH84: 1
D85: 1 | F85: 1 | H85: 1 | J85: 1 | L85: 1 | N85: 1 | P85: 1 | R85: 1 | V85: =$X$83 ->  | Y85: =$X$83 ->  | AK85: =$AL$83 ->  | AX85: 1 | AZ85: 1 | BB85: 1 | BD85: 1 | BF85: 1 | BH85: 1
D86: 1 | F86: 1 | H86: 1 | J86: 1 | L86: 1 | N86: 1 | P86: 1 | R86: 1 | AA86: =IF(Y82="","",VLOOKUP(Y82,big_tabela,4,0)) ->  | AC86: =IF(Y82="","","anemostat") ->  | AD86: =IF(Y82="","","x"&VLOOKUP(Y82,big_tabela,45,0)) ->  | AG86: =IF(AK82="","",VLOOKUP(AK82,big_tabela,4,0)) ->  | AI86: =IF(AK82="","","anemostat") ->  | AJ86: =IF(AK82="","","x"&VLOOKUP(AK82,big_tabela,44,0)) ->  | AP86: =$AL$83 ->  | AX86: 1 | AZ86: 1 | BB86: 1 | BD86: 1 | BF86: 1 | BH86: 1
D87: =$X$20 -> 1 | F87: 1 | H87: 1 | J87: 1 | L87: 1 | N87: 1 | P87: 1 | R87: 1 | AP87: =$AL$83 ->  | AT87: =$AL$69 ->  | AX87: 1 | AZ87: 1 | BB87: 1 | BD87: 1 | BF87: 1 | BH87: 1
E88: =Obliczenia!AX31 -> 12x75 | AQ88: =Obliczenia!AV31 -> 12x75
E89: =IF(E90<>"","+","") ->  | W89: =" "&Obliczenia!AQ30&"x kanał DN75" -> 11x kanał DN75 | AM89: =Obliczenia!AP30&"x kanał DN75" -> 10x kanał DN75 | AQ89: =IF(AQ90<>"","+","") -> 
E90: =Obliczenia!AX34 ->  | W90: =IF(Obliczenia!AX29=2,"! Należy zastosować dwa rozdzielacze lub inną średnicę systemu","") ->  | AI90: =IF(Obliczenia!AV29=2,"! Należy zastosować dwa rozdzielacze lub inną średnicę systemu","") ->  | AQ90: =Obliczenia!AV34 -> 
P91: =$X$113 ->  | R91: =$X$106 ->  | T91: =$X$99 ->  | V91: =$X$92 ->  | Y91: =IF(Obliczenia!E71="10","",Obliczenia!E71) ->  | AK91: =IF(Obliczenia!E47="10","",Obliczenia!E47) ->  | AP91: =$AL$92 ->  | AR91: =$AL$99 ->  | AT91: =$AL$106 ->  | AV91: =$AL$113 -> 
X92: =IF(Y91<>"","1","") ->  | AA92: =IF(Y91="","",VLOOKUP(Y91,big_tabela,3,0)) ->  | AC92: =IF(Y91="","",VLOOKUP(Y91,big_tabela,12,0)) ->  | AD92: m3/h | AG92: =IF(AK91="","",VLOOKUP(AK91,big_tabela,3,0)) ->  | AI92: =IF(AK91="","",VLOOKUP(AK91,big_tabela,12,0)) ->  | AJ92: m3/h | AL92: =IF(AK91<>"","1","") -> 
W93: =IF(Y91="","","Φ75") ->  | X93: =IF(Y91="","","x"&VLOOKUP(Y91,big_tabela,42,0)) ->  | Y93: =IF(Y91="","","◄") ->  | AK93: =IF(AK91="","","◄") ->  | AL93: =IF(AK91="","","Φ75") ->  | AM93: =IF(AK91="","","x"&VLOOKUP(AK91,big_tabela,41,0)) -> 
Y94: =$X$92 ->  | AK94: =$AL$92 ->  | AL94: =$AL$92 ->  | AM94: =$AL$92 ->  | AN94: =$AL$92 ->  | AO94: =$AL$92 -> 
AA95: =IF(Y91="","",VLOOKUP(Y91,big_tabela,4,0)) ->  | AC95: =IF(Y91="","","anemostat") ->  | AD95: =IF(Y91="","","x"&VLOOKUP(Y91,big_tabela,45,0)) ->  | AG95: =IF(AK91="","",VLOOKUP(AK91,big_tabela,4,0)) ->  | AI95: =IF(AK91="","","anemostat") ->  | AJ95: =IF(AK91="","","x"&VLOOKUP(AK91,big_tabela,44,0)) -> 
Y98: =IF(Obliczenia!E72="10","",Obliczenia!E72) ->  | AK98: =IF(Obliczenia!E48="10","",Obliczenia!E48) -> 
X99: =IF(Y98<>"","1","") ->  | AA99: =IF(Y98="","",VLOOKUP(Y98,big_tabela,3,0)) ->  | AC99: =IF(Y98="","",VLOOKUP(Y98,big_tabela,12,0)) ->  | AD99: m3/h | AG99: =IF(AK98="","",VLOOKUP(AK98,big_tabela,3,0)) ->  | AI99: =IF(AK98="","",VLOOKUP(AK98,big_tabela,12,0)) ->  | AJ99: m3/h | AL99: =IF(AK98<>"","1","") -> 
W100: =IF(Y98="","","Φ75") ->  | X100: =IF(Y98="","","x"&VLOOKUP(Y98,big_tabela,42,0)) ->  | Y100: =IF(Y98="","","◄") ->  | AK100: =IF(AK98="","","◄") ->  | AL100: =IF(AK98="","","Φ75") ->  | AM100: =IF(AK98="","","x"&VLOOKUP(AK98,big_tabela,41,0)) -> 
Y101: =$X$99 ->  | AK101: =$AL$99 -> 
AA102: =IF(Y98="","",VLOOKUP(Y98,big_tabela,4,0)) ->  | AC102: =IF(Y98="","","anemostat") ->  | AD102: =IF(Y98="","","x"&VLOOKUP(Y98,big_tabela,45,0)) ->  | AG102: =IF(AK98="","",VLOOKUP(AK98,big_tabela,4,0)) ->  | AI102: =IF(AK98="","","anemostat") ->  | AJ102: =IF(AK98="","","x"&VLOOKUP(AK98,big_tabela,44,0)) -> 
Y105: =IF(Obliczenia!E73="10","",Obliczenia!E73) ->  | AK105: =IF(Obliczenia!E49="10","",Obliczenia!E49) -> 
X106: =IF(Y105<>"","1","") ->  | AA106: =IF(Y105="","",VLOOKUP(Y105,big_tabela,3,0)) ->  | AC106: =IF(Y105="","",VLOOKUP(Y105,big_tabela,12,0)) ->  | AD106: m3/h | AG106: =IF(AK105="","",VLOOKUP(AK105,big_tabela,3,0)) ->  | AI106: =IF(AK105="","",VLOOKUP(AK105,big_tabela,12,0)) ->  | AJ106: m3/h | AL106: =IF(AK105<>"","1","") -> 
W107: =IF(Y105="","","Φ75") ->  | X107: =IF(Y105="","","x"&VLOOKUP(Y105,big_tabela,42,0)) ->  | Y107: =IF(Y105="","","◄") ->  | AK107: =IF(AK105="","","◄") ->  | AL107: =IF(AK105="","","Φ75") ->  | AM107: =IF(AK105="","","x"&VLOOKUP(AK105,big_tabela,41,0)) -> 
Y108: =$X$106 ->  | AK108: =$AL$106 -> 
AA109: =IF(Y105="","",VLOOKUP(Y105,big_tabela,4,0)) ->  | AC109: =IF(Y105="","","anemostat") ->  | AD109: =IF(Y105="","","x"&VLOOKUP(Y105,big_tabela,45,0)) ->  | AG109: =IF(AK105="","",VLOOKUP(AK105,big_tabela,4,0)) ->  | AI109: =IF(AK105="","","anemostat") ->  | AJ109: =IF(AK105="","","x"&VLOOKUP(AK105,big_tabela,44,0)) -> 
Y112: =IF(Obliczenia!E74="10","",Obliczenia!E74) ->  | AK112: =IF(Obliczenia!E50="10","",Obliczenia!E50) -> 
X113: =IF(Y112<>"","1","") ->  | AA113: =IF(Y112="","",VLOOKUP(Y112,big_tabela,3,0)) ->  | AC113: =IF(Y112="","",VLOOKUP(Y112,big_tabela,12,0)) ->  | AD113: m3/h | AG113: =IF(AK112="","",VLOOKUP(AK112,big_tabela,3,0)) ->  | AI113: =IF(AK112="","",VLOOKUP(AK112,big_tabela,12,0)) ->  | AJ113: m3/h | AL113: =IF(AK112<>"","1","") -> 
W114: =IF(Y112="","","Φ75") ->  | X114: =IF(Y112="","","x"&VLOOKUP(Y112,big_tabela,42,0)) ->  | Y114: =IF(Y112="","","◄") ->  | AK114: =IF(AK112="","","◄") ->  | AL114: =IF(AK112="","","Φ75") ->  | AM114: =IF(AK112="","","x"&VLOOKUP(AK112,big_tabela,41,0)) -> 
Y115: =$X$113 ->  | AK115: =$AL$113 -> 
AA116: =IF(Y112="","",VLOOKUP(Y112,big_tabela,4,0)) ->  | AC116: =IF(Y112="","","anemostat") ->  | AD116: =IF(Y112="","","x"&VLOOKUP(Y112,big_tabela,45,0)) ->  | AG116: =IF(AK112="","",VLOOKUP(AK112,big_tabela,4,0)) ->  | AI116: =IF(AK112="","","anemostat") ->  | AJ116: =IF(AK112="","","x"&VLOOKUP(AK112,big_tabela,44,0)) -> 
AC119: =X137 -> Vitovent 300-W 400m3/h lewa
X122: ="Kanał zbiorczy 200/174, króciec przyłączeniowy Φ "&Obliczenia!Y59 -> Kanał zbiorczy 200/174, króciec przyłączeniowy Φ 180 | AH122: =" Kanał zbiorczy 200/174, króciec przyłączeniowy Φ "&Obliczenia!Y59 -> Kanał zbiorczy 200/174, króciec przyłączeniowy Φ 180
X125: ="Kanał zbiorczy 200/174, króciec przyłączeniowy Φ "&Obliczenia!Y59 -> Kanał zbiorczy 200/174, króciec przyłączeniowy Φ 180 | AH125: =" Kanał zbiorczy 200/174, króciec przyłączeniowy Φ "&Obliczenia!Y59 -> Kanał zbiorczy 200/174, króciec przyłączeniowy Φ 180
C128: Szacunkowy dobór centrali wentylacyjnej i systemu dystrybucji powietrza
W133: Centrala wentylacyjna
K137: =Obliczenia!V84 ->  | X137: Vitovent 300-W 400m3/h lewa | AC137: ="R "&AC138&" %" -> R 0 % | AD137: =VLOOKUP(X137,rozdzial,4,0)-VLOOKUP(X137,rozdzial,4,0)*(AC138/100) -> 13,685.00 zł | AG137: Sprawność temperaturowa ErP | AL137: =VLOOKUP($X$137,Obliczenia!J37:W45,8,0) -> 92 | AM137: [%]
X138: =IF(X137="Vitoair FS 300E MA 300m3/h","Centrala wentylacji mechanicznej z odzyskiem ciepła i wilgoci","Centrala wentylacji mechanicznej z odzyskiem ciepła") -> Centrala wentylacji mechanicznej z odzyskiem ciepła | AC138: 0 | AG138: Stopień zmiany wilgotności | AL138: =VLOOKUP($X$137,Obliczenia!J37:W45,9,0) -> n.d. | AM138: [%]
X139: =VLOOKUP(X137,rozdzial,3,0) -> Z029134 | AG139: Rodzaj wymiennika ciepła | AL139: =VLOOKUP($X$137,Obliczenia!J37:W45,11,0) -> Krzyżowy
AG140: Klapa bypass | AL140: =VLOOKUP($X$137,Obliczenia!J37:W45,13,0) -> Tak
X141: =" "&VLOOKUP($X$137,Obliczenia!J37:W45,6,0) -> 50 | Y141: =VLOOKUP($X$137,Obliczenia!J37:W45,4,0)&" [m3/h]" -> 400 [m3/h] | AB141: =VLOOKUP($X$137,Obliczenia!J37:AA45,16,0) -> A | AG141: Nagrzewnica powietrza zewnęrznego | AL141: =VLOOKUP($X$137,Obliczenia!J37:W45,14,0) -> Tak, 1kW
AB142: =VLOOKUP($X$137,Obliczenia!J37:AA45,17,0) -> A+ | AG142: Odpływ kondensatu | AL142: =VLOOKUP($X$137,Obliczenia!J37:W45,12,0) -> Tak
AB143: =VLOOKUP($X$137,Obliczenia!J37:AA45,18,0) -> A+ | AG143: Wymiary zewnętrzne D x W x S | AL143: =VLOOKUP($X$137,Obliczenia!J37:W45,10,0) -> 560 x 695 x 750 | AM143: [mm]
X145: =IF(X137="Vitoair FS 300E MA 300m3/h","Nagrzewnica elektryczna powietrza 1,8kW","") ->  | AD145: =IFERROR(VLOOKUP(X145,rozdzial,4,0)-VLOOKUP(X145,rozdzial,4,0)*(AC138/100),"") -> 
X146: =IF(X137="Vitoair FS 300E MA 300m3/h","Do ogrzewania wstępnego powietrza, montaż wewn. centrali","") -> 
X147: =IFERROR(VLOOKUP(X145,rozdzial,3,0),"") -> 
W149: Sterowanie
AG153: Vitotrol 300-E
K154: =Obliczenia!V82 ->  | X154: Moduł obsługowy ścienny LB1 | AD154: =IF(X154="Sterowanie przez aplikację ViCare","0 zł",VLOOKUP(X154,rozdzial,4,0)-VLOOKUP(X154,rozdzial,4,0)*(AC138/100)) -> 1,259.00 zł | AI154: Radio
X155: do obsługi zdalnej centrali wentylacyjnej | AG155: Przełącznik 4-pozycyjny | AJ155: Can-Bus
X156: =IF(X154="Sterowanie przez aplikację ViCare","",VLOOKUP(X154,rozdzial,3,0)) -> Z015318 | AI156: Can-Bus | AN156: ViCare
AI157: Vitoair FS 300E MA | AK157: opcja Vitocal x5x-A i 2xx-S
AD158: =IFERROR(VLOOKUP(X158,rozdzial,4,0)-VLOOKUP(X158,rozdzial,4,0)*(AC138/100),"") ->  | AG158: Stand Alone
X159: =IF(X137="Vitoair FS 300E MA 300m3/h","Opcja: do komunikacji z pompą ciepłą z regulatorem E3",IF(X158="Przewód komunikacyjny Can-Bus 5m","Uwaga! Nie ma zastosowanie w tym rozwiązaniu","")) ->  | AG159: bez ViCare App
X160: =IFERROR(VLOOKUP(X158,rozdzial,3,0),"") ->  | AJ160: Mod-Bus
AG161: Moduł LB1
W162: System dystrybucji // po stronie pomieszczeń | AG162: (nie z Vitoconnect V) | AJ162: Vitoconnect V | AN162: ViCare
AI163: Vitovent 300-W
X167: Skrzynka rozprężna DN125 dla 2 kanałów DN75 | AC167: =Obliczenia!AR30 -> 15 | AD167: =VLOOKUP(X167,rozdzial75,4,0)*AC167*(1-$AM$236/100) -> 1,380.00 zł | AH167: ='Elementy DN75&90 2024-09'!D41 -> Kanał elastyczny okrągły DN75, 50 m | AL167: =AK170 -> 5 | AM167: =VLOOKUP(AH167,rozdzial75,4,0)*AL167*(1-$AM$236/100) -> 2,600.00 zł
X168: Skrzynka rozprężna do mocowania anemostatu | AH168: ='Elementy DN75&90 2024-09'!H41 -> Krąg o długości 50 m, nadrukowane znaczniki długości, powierzchnia antybakteryjna i antystatyczna
X169: =VLOOKUP(X167,rozdzial75,3,0) -> 7988045 | Y169: =VLOOKUP(X167,rozdzial75,4,0) -> 92.00 zł
AH170: =VLOOKUP(AH167,rozdzial75,3,0) -> 7228295 | AI170: =VLOOKUP(AH167,rozdzial75,4,0) -> 520.00 zł | AK170: =ROUNDUP(AC167*15/50,0) -> 5
X172: ='Elementy DN75&90 2024-09'!D55 -> Anemostat nawiewno-wywiewny, biały | AC172: =Obliczenia!AT30+Obliczenia!AS30 -> 15 | AD172: =VLOOKUP(X172,rozdzial75,4,0)*AC172*(1-$AM$236/100) -> 2,535.00 zł
X173: Do wywiewania powietrza z pomieszczenia
X174: =VLOOKUP(X172,rozdzial75,3,0) -> 7974004 | Y174: =VLOOKUP(X172,rozdzial75,4,0) -> 169.00 zł
X177: =Obliczenia!AW31 -> Skrzynka rozdzielacza 12xDN75 | AC177: =Obliczenia!AX33 -> 1 | AD177: =VLOOKUP(X177,'Elementy DN75&90 2024-09'!D3:H57,4,0)*AC177*(1-$AM$236/100)+AC177*AB180 -> 1,057.00 zł | AG177: =IF(AL177>0,"+","") ->  | AH177: =Obliczenia!AW34 ->  | AL177: =Obliczenia!AX36 -> 0 | AM177: =IF(AH177="",0,VLOOKUP(AH177,'Elementy DN75&90 2024-09'!D3:H55,4,0)*AL177*(1-$AM$236/100)+AL177*AK180) -> 0.00 zł
X178: =VLOOKUP(X177,rozdzial75,5,0) -> dop. Strumień 400 m3/h | AH178: =IF(AH177="","",VLOOKUP(AH177,rozdzial75,5,0)) -> 
X180: =VLOOKUP(X177,rozdzial75,3,0) -> 7988052 | Y180: =VLOOKUP(X177,rozdzial75,4,0) -> 1,057.00 zł | AH180: =IF(AH177="","",VLOOKUP(AH177,rozdzial75,3,0)) ->  | AI180: =IF(AH177="","",VLOOKUP(AH177,rozdzial75,4,0)) ->  | AJ180: =IF(AH177="","",IF(Obliczenia!Y59=125,'Elementy DN75&90 2024-09'!F37,IF(Obliczenia!Y59=160,'Elementy DN75&90 2024-09'!F38,'Elementy DN75&90 2024-09'!F39))) ->  | AK180: =IF(AH177="","",VLOOKUP(AJ180,'Elementy DN75&90 2024-09'!F3:G57,2,0)) -> 
X182: =Obliczenia!AU42 -> Element przyłączeniowy rozdzielacza DN180 | AC182: =AC177 -> 1 | AD182: =VLOOKUP(X182,'Elementy DN75&90 2024-09'!D3:H57,4,0)*AC182*(1-$AM$236/100) -> 56.00 zł | AG182: =IF(AL182>0,"+","") ->  | AH182: =IF(AH177="","",X182) ->  | AL182: =AL177 -> 0 | AM182: =IF(AH182="",0,VLOOKUP(AH182,'Elementy DN75&90 2024-09'!D8:H60,4,0)*AL182*(1-$AM$236/100)+AL182*AK185) -> 0.00 zł
X183: =VLOOKUP(X182,rozdzial75,5,0) -> Do przyłączenia kanału powietrza do rozdzielacza | AH183: =IF(AH182="","",VLOOKUP(AH182,rozdzial75,5,0)) -> 
X185: =VLOOKUP(X182,rozdzial75,3,0) -> 7775844 | Y185: =IF(X182="","","w zakresie dostawy") -> w zakresie dostawy | AH185: =IF(AH182="","",VLOOKUP(AH182,rozdzial75,3,0)) ->  | AI185: =IF(AH182="","","w zakresie dostawy") -> 
X187: =Obliczenia!AU31 -> Skrzynka rozdzielacza 12xDN75 | AC187: =Obliczenia!AV33 -> 1 | AD187: =VLOOKUP(X187,'Elementy DN75&90 2024-09'!D13:H67,4,0)*AC187*(1-$AM$236/100)+AC187*AB190 -> 1,057.00 zł | AG187: =IF(AL187>0,"+","") ->  | AH187: =Obliczenia!AU34 ->  | AL187: =Obliczenia!AV36 -> 0 | AM187: =IF(AH187="",0,VLOOKUP(AH187,'Elementy DN75&90 2024-09'!D13:H65,4,0)*AL187*(1-$AM$236/100)+AL187*AK190) -> 0.00 zł
X188: =VLOOKUP(X187,rozdzial75,5,0) -> dop. Strumień 400 m3/h | AH188: =IF(AH187="","",VLOOKUP(AH187,rozdzial75,5,0)) -> 
X190: =VLOOKUP(X187,rozdzial75,3,0) -> 7988052 | Y190: =VLOOKUP(X187,rozdzial75,4,0) -> 1,057.00 zł | AH190: =IF(AH187="","",VLOOKUP(AH187,rozdzial75,3,0)) ->  | AI190: =IF(AH187="","",VLOOKUP(AH187,rozdzial75,4,0)) ->  | AJ190: =IF(AH187="","",IF(Obliczenia!Y69=125,'Elementy DN75&90 2024-09'!F47,IF(Obliczenia!Y69=160,'Elementy DN75&90 2024-09'!F48,'Elementy DN75&90 2024-09'!F49))) ->  | AK190: =IF(AH187="","",VLOOKUP(AJ190,'Elementy DN75&90 2024-09'!F13:G67,2,0)) -> 
X192: =Obliczenia!BF42 -> Element przyłączeniowy rozdzielacza DN180 | AC192: =AC187 -> 1 | AD192: =VLOOKUP(X192,'Elementy DN75&90 2024-09'!D13:H67,4,0)*AC192*(1-$AM$236/100) -> 56.00 zł | AG192: =IF(AL192>0,"+","") ->  | AH192: =IF(AH187="","",X192) ->  | AL192: =AL187 -> 0 | AM192: =IF(AH192="",0,VLOOKUP(AH192,'Elementy DN75&90 2024-09'!D18:H70,4,0)*AL192*(1-$AM$236/100)+AL192*AK195) -> 0.00 zł
X193: =VLOOKUP(X192,rozdzial75,5,0) -> Do przyłączenia kanału powietrza do rozdzielacza | AH193: =IF(AH192="","",VLOOKUP(AH192,rozdzial75,5,0)) -> 
X195: =VLOOKUP(X192,rozdzial75,3,0) -> 7775844 | Y195: =IF(X192="","","w zakresie dostawy") -> w zakresie dostawy | AH195: =IF(AH192="","",VLOOKUP(AH192,rozdzial75,3,0)) ->  | AI195: =IF(AH192="","","w zakresie dostawy") -> 
W197: System dystrybucji // po stronie zewnętrznej
X201: Kanał izolowany 200/174 | AC201: =AB203 -> 6 | AD201: =VLOOKUP(X201,rozdzial,4,0)*AC201 -> 2,754.00 zł | AH201: Kolano izolowane z mufą 90 stopni | AL201: =AK203 -> 4 | AM201: =VLOOKUP(AH201,rozdzial,4,0)*AL201 -> 816.00 zł
X202: 1 sztuka = 2 m długości, przepływ maksymalny 400 m3/h | AH202: Do zmiany kierunku kanałów izolowanych 200/174
X203: =VLOOKUP(X201,rozdzial,3,0) -> 7546070 | Y203: =VLOOKUP(X201,rozdzial,4,0) -> 459.00 zł | AB203: 6 | AH203: =VLOOKUP(AH201,rozdzial,3,0) -> 7546071 | AI203: =VLOOKUP(AH201,rozdzial,4,0) -> 204.00 zł | AK203: 4
X206: Czerpnia/wyrzutnia ścienna z rurą | AC206: 2 | AD206: =VLOOKUP(X206,rozdzial,4,0)*AC206 -> 616.00 zł | AH206: =IF(Obliczenia!Y57="Vitovent 300-W 325m3/h lewa","Mufa/redukcja 200/150",IF(Obliczenia!Y57="Vitovent 300-W 325m3/h prawa","Mufa/redukcja 200/150",IF(Obliczenia!Y57="Vitovent 300-W 400m3/h lewa","Mufa/redukcja 200/180",IF(Obliczenia!Y57="Vitovent 300-W 400m3/h prawa","Mufa/redukcja 200/180",IF(Obliczenia!Y57="Vitovent 300-W 225m3/h lewa","Mufa/redukcja 200/125",IF(Obliczenia!Y57="Vitovent 300-W 225m3/h prawa","Mufa/redukcja 200/125","Mufa/redukcja 200/150")))))) -> Mufa/redukcja 200/180 | AL206: 4 | AM206: =VLOOKUP(AH206,rozdzial,4,0)*AL206 -> 336.00 zł
X207: Do bezpośredniego podłączenia kanału izolowanego 200/174 | AH207: Do przyłączenia kanału 200/174 do króćców centrali
X208: =VLOOKUP(X206,rozdzial,3,0) -> 7663729 | Y208: =VLOOKUP(X206,rozdzial,4,0) -> 308.00 zł | AH208: =VLOOKUP(AH206,rozdzial,3,0) -> 7546074 | AI208: =VLOOKUP(AH206,rozdzial,4,0) -> 84.00 zł
AL210: 1
W216: Elementy uzupełniające
X220: ='Elementy DN75&90 2024-09'!D57 -> Nóż do cięcia kanałów płaskich i okrągłych | AC220: 0 | AD220: =VLOOKUP(X220,rozdzial75,4,0)*AC220*(1-$AM$236/100) -> 0.00 zł | AH220: ='Elementy DN75&90 2024-09'!D44 -> Łącznik kanałów DN75 | AL220: 0 | AM220: =VLOOKUP(AH220,rozdzial75,4,0)*AL220*(1-$AM$236/100) -> 0.00 zł
X221: Do szybkiego i precyzyjnego obcinania rur | AH221: Do szczelnego łączenia kanałów elastycznych DN63
X222: =VLOOKUP(X220,rozdzial75,3,0) -> 7372852 | Y222: =VLOOKUP(X220,rozdzial75,4,0) -> 335.00 zł | AH222: =VLOOKUP(AH220,rozdzial75,3,0) -> 7372825 | AI222: =VLOOKUP(AH220,rozdzial75,4,0) -> 72.00 zł
X225: Kolano izolowane z mufą 45 stopni | AC225: 0 | AD225: =VLOOKUP(X225,rozdzial,4,0)*AC225*(1-$AM$236/100) -> 0.00 zł | AH225: ='Elementy DN75&90 2024-09'!D46 -> Kolano 90, DN75 | AL225: 0 | AM225: =VLOOKUP(AH225,rozdzial75,4,0)*AL225*(1-$AM$236/100) -> 0.00 zł
X226: Do zmiany kierunku kanałów izolowanych 200/174 | AH226: ='Elementy DN75&90 2024-09'!H46 -> Do zmiany kierunki w ciasnych miejscach, możliwość przycięcia i podłączenia wrost do rozdzielacza
X227: =VLOOKUP(X225,rozdzial,3,0) -> 7546072 | Y227: =VLOOKUP(X225,rozdzial,4,0) -> 143.00 zł
AH228: =VLOOKUP(AH225,rozdzial75,3,0) -> 7372923 | AI228: =VLOOKUP(AH225,rozdzial75,4,0) -> 142.00 zł
X230: Mufa łącząca 200/200 | AC230: 0 | AD230: =VLOOKUP(X230,rozdzial,4,0)*AC230*(1-$AM$236/100) -> 0.00 zł | AH230: Trójnik izolowany 200/174 bez mufy | AL230: =AK232 -> 0 | AM230: =VLOOKUP(AH230,rozdzial,4,0)*AL230 -> 0.00 zł
AH231: Do rozdzielenia kanału izolowanego 200/174
X232: =VLOOKUP(X230,rozdzial,3,0) -> 7546073 | Y232: =VLOOKUP(X230,rozdzial,4,0) -> 68.00 zł | AH232: =VLOOKUP(AH230,rozdzial,3,0) -> 7775845 | AI232: =VLOOKUP(AH230,rozdzial,4,0) -> 824.00 zł | AK232: =AL177+AL187 -> 0
AM233: 1
C235: =Dane!S241 -> Autor: | H235: =Dane!T241 -> PanD, 2023 | AJ235: Cena: | AK235: =AD137+IFERROR(VLOOKUP(X145,rozdzial,4,0),0)+AD154+IFERROR(VLOOKUP(X158,rozdzial,4,0),0)+AD167+AM167+AM172+AD172+AD177+AM177+AD182+AD201+AD206+AM201+AM206+AD220+AM220+AD225+AM225+AM182+AD230+AM230+AD187+AD192+AM187+AM192 -> 28,207.00 zł | AM235: ="R "&AM236&" %" -> R 0 % | AO235: (rabat na system)
AM236: 0
AO238: =IF(Obliczenia!AP10<>0,Obliczenia!AP10,"") -> 
AO240: =IF(Obliczenia!AP11<>0,Obliczenia!AP11,"") -> 3
AO242: =IF(Obliczenia!AP12<>0,Obliczenia!AP12,"") -> 
AO244: =IF(Obliczenia!AP13<>0,Obliczenia!AP13,"") -> 1
AO251: =IF(Obliczenia!AP14<>0,Obliczenia!AP14,"") -> 
AO252: =IF(Obliczenia!AP15<>0,Obliczenia!AP15,"") -> 1
AO253: =IF(Obliczenia!AP16<>0,Obliczenia!AP16,"") -> 2
AO254: =IF(Obliczenia!AP17<>0,Obliczenia!AP17,"") -> 
AO255: =IF(Obliczenia!AP18<>0,Obliczenia!AP18,"") -> 

Sheet System DN90
AD1: R system | AE1: =AM236/100 -> 0% | AG1: R centrala | AH1: =AC138/100 -> 0% | AK1: Suma | AL1: =AK235 -> 28,399.00 zł
AJ3: Data: | AK3: =TODAY() -> 2024-09-11 | AM3: =Dane!S3 -> wersja 17/09/2024
C8: System dystrybucji powietrza | okrągły Φ90
C11: Uproszczony schemat instalacji
Z17: Powietrze wywiewane | AF17: Powietrze nawiewane
Y19: =IF(Obliczenia!E61="10","",Obliczenia!E61) -> 0.1 | AK19: =IF(Obliczenia!E37="10","",Obliczenia!E37) -> 0.9
X20: =IF(Y19<>"","1","") -> 1 | AA20: =IF(Y19="","",VLOOKUP(Y19,big_tabela,3,0)) -> Wiatrołap | AC20: =IF(Y19="","",VLOOKUP(Y19,big_tabela,12,0)) -> 15 | AD20: m3/h | AG20: =IF(AK19="","",VLOOKUP(AK19,big_tabela,3,0)) -> Sypialnia | AI20: =IF(AK19="","",VLOOKUP(AK19,big_tabela,12,0)) -> 60 | AJ20: m3/h | AL20: =IF(AK19<>"","1","") -> 1
W21: =IF(Y19="","","Φ90") -> Φ90 | X21: =IF(Y19="","","x"&VLOOKUP(Y19,big_tabela,53,0)) -> x1 | Y21: =IF(Y19="","","◄") -> ◄ | AK21: =IF(AK19="","","◄") -> ◄ | AL21: =IF(AK19="","","Φ90") -> Φ90 | AM21: =IF(AK19="","","x"&VLOOKUP(AK19,big_tabela,52,0)) -> x2
D22: =$X$20 -> 1 | E22: =$X$20 -> 1 | F22: =$X$20 -> 1 | G22: 1 | H22: 1 | I22: 1 | J22: 1 | K22: 1 | L22: 1 | M22: 1 | N22: 1 | O22: 1 | P22: 1 | Q22: 1 | R22: 1 | S22: 1 | T22: 1 | U22: 1 | V22: 1 | W22: 1 | X22: 1 | Y22: 1 | AK22: =$AL$20 -> 1 | AL22: =$AL$20 -> 1 | AM22: 1 | AN22: 1 | AO22: 1 | AP22: 1 | AQ22: 1 | AR22: 1 | AS22: 1 | AT22: 1 | AU22: 1 | AV22: 1 | AW22: 1 | AX22: 1 | AY22: 1 | AZ22: 1 | BA22: 1 | BB22: 1 | BC22: 1 | BD22: 1 | BE22: 1 | BF22: 1 | BG22: 1 | BH22: 1
D23: =$X$20 -> 1 | AA23: =IF(Y19="","",VLOOKUP(Y19,big_tabela,4,0)) ->  | AC23: =IF(Y19="","","anemostat") -> anemostat | AD23: =IF(Y19="","","x"&VLOOKUP(Y19,big_tabela,56,0)) -> x1 | AG23: =IF(AK19="","",VLOOKUP(AK19,big_tabela,4,0)) ->  | AI23: =IF(AK19="","","anemostat") -> anemostat | AJ23: =IF(AK19="","","x"&VLOOKUP(AK19,big_tabela,55,0)) -> x2 | BH23: 1
D24: 1 | BH24: 1
D25: 1 | BH25: 1
D26: 1 | Y26: =IF(Obliczenia!E62="10","",Obliczenia!E62) -> 0.5 | AK26: =IF(Obliczenia!E38="10","",Obliczenia!E38) -> 0.12 | BH26: 1
D27: 1 | X27: =IF(Y26<>"","1","") -> 1 | AA27: =IF(Y26="","",VLOOKUP(Y26,big_tabela,3,0)) -> WC (bez wanny lub kabiny prysznicowej) | AC27: =IF(Y26="","",VLOOKUP(Y26,big_tabela,12,0)) -> 30 | AD27: m3/h | AG27: =IF(AK26="","",VLOOKUP(AK26,big_tabela,3,0)) -> Sypialnia | AI27: =IF(AK26="","",VLOOKUP(AK26,big_tabela,12,0)) -> 30 | AJ27: m3/h | AL27: =IF(AK26<>"","1","") -> 1 | BH27: 1
D28: 1 | W28: =IF(Y26="","","Φ90") -> Φ90 | X28: =IF(Y26="","","x"&VLOOKUP(Y26,big_tabela,53,0)) -> x1 | Y28: =IF(Y26="","","◄") -> ◄ | AK28: =IF(AK26="","","◄") -> ◄ | AL28: =IF(AK26="","","Φ90") -> Φ90 | AM28: =IF(AK26="","","x"&VLOOKUP(AK26,big_tabela,52,0)) -> x1 | BH28: 1
D29: 1 | F29: =$X$27 -> 1 | G29: 1 | H29: 1 | I29: 1 | J29: 1 | K29: 1 | L29: 1 | M29: 1 | N29: 1 | O29: 1 | P29: 1 | Q29: 1 | R29: 1 | S29: 1 | T29: 1 | U29: 1 | V29: 1 | W29: 1 | X29: 1 | Y29: =$X$27 -> 1 | AK29: =$AL$27 -> 1 | AL29: =$AL$27 -> 1 | AM29: 1 | AN29: 1 | AO29: 1 | AP29: 1 | AQ29: 1 | AR29: 1 | AS29: 1 | AT29: 1 | AU29: 1 | AV29: 1 | AW29: 1 | AX29: 1 | AY29: 1 | AZ29: 1 | BA29: 1 | BB29: 1 | BC29: 1 | BD29: 1 | BE29: 1 | BF29: 1 | BH29: 1
D30: 1 | F30: 1 | AA30: =IF(Y26="","",VLOOKUP(Y26,big_tabela,4,0)) ->  | AC30: =IF(Y26="","","anemostat") -> anemostat | AD30: =IF(Y26="","","x"&VLOOKUP(Y26,big_tabela,56,0)) -> x1 | AG30: =IF(AK26="","",VLOOKUP(AK26,big_tabela,4,0)) ->  | AI30: =IF(AK26="","","anemostat") -> anemostat | AJ30: =IF(AK26="","","x"&VLOOKUP(AK26,big_tabela,55,0)) -> x1 | BF30: 1 | BH30: 1
D31: 1 | F31: 1 | BF31: 1 | BH31: 1
D32: 1 | F32: 1 | BF32: 1 | BH32: 1
D33: 1 | F33: 1 | Y33: =IF(Obliczenia!E63="10","",Obliczenia!E63) -> 0.3 | AK33: =IF(Obliczenia!E39="10","",Obliczenia!E39) -> 1.1 | BF33: 1 | BH33: 1
D34: 1 | F34: 1 | G34: 1 | X34: =IF(Y33<>"","1","") -> 1 | AA34: =IF(Y33="","",VLOOKUP(Y33,big_tabela,3,0)) -> Spiżarnia | AC34: =IF(Y33="","",VLOOKUP(Y33,big_tabela,12,0)) -> 15 | AD34: m3/h | AG34: =IF(AK33="","",VLOOKUP(AK33,big_tabela,3,0)) -> Sypialnia | AI34: =IF(AK33="","",VLOOKUP(AK33,big_tabela,12,0)) -> 40 | AJ34: m3/h | AL34: =IF(AK33<>"","1","") -> 1 | BF34: 1 | BH34: 1
D35: 1 | F35: 1 | W35: =IF(Y33="","","Φ90") -> Φ90 | X35: =IF(Y33="","","x"&VLOOKUP(Y33,big_tabela,53,0)) -> x1 | Y35: =IF(Y33="","","◄") -> ◄ | AK35: =IF(AK33="","","◄") -> ◄ | AL35: =IF(AK33="","","Φ90") -> Φ90 | AM35: =IF(AK33="","","x"&VLOOKUP(AK33,big_tabela,52,0)) -> x1 | BF35: 1 | BH35: 1
D36: 1 | F36: 1 | H36: =$X$34 -> 1 | I36: 1 | J36: 1 | K36: 1 | L36: 1 | M36: 1 | N36: 1 | O36: 1 | P36: 1 | Q36: 1 | R36: 1 | S36: 1 | T36: 1 | U36: 1 | V36: 1 | W36: 1 | X36: =$X$34 -> 1 | Y36: =$X$34 -> 1 | AK36: =$AL$34 -> 1 | AL36: =$AL$34 -> 1 | AM36: 1 | AN36: 1 | AO36: 1 | AP36: 1 | AQ36: 1 | AR36: 1 | AS36: 1 | AT36: 1 | AU36: 1 | AV36: 1 | AW36: 1 | AX36: 1 | AY36: 1 | AZ36: 1 | BA36: 1 | BB36: 1 | BC36: 1 | BD36: 1 | BF36: 1 | BH36: 1
D37: 1 | F37: 1 | H37: 1 | AA37: =IF(Y33="","",VLOOKUP(Y33,big_tabela,4,0)) ->  | AC37: =IF(Y33="","","anemostat") -> anemostat | AD37: =IF(Y33="","","x"&VLOOKUP(Y33,big_tabela,56,0)) -> x1 | AG37: =IF(AK33="","",VLOOKUP(AK33,big_tabela,4,0)) ->  | AI37: =IF(AK33="","","anemostat") -> anemostat | AJ37: =IF(AK33="","","x"&VLOOKUP(AK33,big_tabela,55,0)) -> x1 | BD37: 1 | BF37: 1 | BH37: 1
D38: 1 | F38: 1 | H38: 1 | BD38: 1 | BF38: 1 | BH38: =$AL$20 -> 1
D39: 1 | F39: 1 | H39: 1 | BD39: 1 | BF39: 1 | BH39: 1
D40: 1 | F40: 1 | H40: 1 | Y40: =IF(Obliczenia!E64="10","",Obliczenia!E64) -> 0.7 | AK40: =IF(Obliczenia!E40="10","",Obliczenia!E40) -> 0.4 | BD40: 1 | BF40: 1 | BH40: 1
D41: 1 | F41: 1 | H41: 1 | X41: =IF(Y40<>"","1","") -> 1 | AA41: =IF(Y40="","",VLOOKUP(Y40,big_tabela,3,0)) -> Pomieszczenie gospodarcze | AC41: =IF(Y40="","",VLOOKUP(Y40,big_tabela,12,0)) -> 15 | AD41: m3/h | AG41: =IF(AK40="","",VLOOKUP(AK40,big_tabela,3,0)) -> Pokój dzienny | AI41: =IF(AK40="","",VLOOKUP(AK40,big_tabela,12,0)) -> 80 | AJ41: m3/h | AL41: =IF(AK40<>"","1","") -> 1 | BD41: 1 | BF41: 1 | BH41: 1
D42: 1 | F42: 1 | H42: 1 | W42: =IF(Y40="","","Φ90") -> Φ90 | X42: =IF(Y40="","","x"&VLOOKUP(Y40,big_tabela,53,0)) -> x1 | Y42: =IF(Y40="","","◄") -> ◄ | AK42: =IF(AK40="","","◄") -> ◄ | AL42: =IF(AK40="","","Φ90") -> Φ90 | AM42: =IF(AK40="","","x"&VLOOKUP(AK40,big_tabela,52,0)) -> x2 | BD42: 1 | BF42: 1 | BH42: 1
D43: 1 | F43: 1 | H43: 1 | J43: =$X$41 -> 1 | K43: 1 | L43: 1 | M43: 1 | N43: 1 | O43: 1 | P43: 1 | Q43: 1 | R43: 1 | S43: 1 | T43: 1 | U43: 1 | V43: 1 | W43: 1 | X43: 1 | Y43: =$X$41 -> 1 | AK43: =$AL$41 -> 1 | AL43: =$AL$41 -> 1 | AM43: 1 | AN43: 1 | AO43: 1 | AP43: 1 | AQ43: 1 | AR43: 1 | AS43: 1 | AT43: 1 | AU43: 1 | AV43: 1 | AW43: 1 | AX43: 1 | AY43: 1 | AZ43: 1 | BA43: 1 | BB43: 1 | BD43: 1 | BF43: 1 | BH43: 1
D44: 1 | F44: 1 | H44: 1 | J44: 1 | AA44: =IF(Y40="","",VLOOKUP(Y40,big_tabela,4,0)) ->  | AC44: =IF(Y40="","","anemostat") -> anemostat | AD44: =IF(Y40="","","x"&VLOOKUP(Y40,big_tabela,56,0)) -> x1 | AG44: =IF(AK40="","",VLOOKUP(AK40,big_tabela,4,0)) ->  | AI44: =IF(AK40="","","anemostat") -> anemostat | AJ44: =IF(AK40="","","x"&VLOOKUP(AK40,big_tabela,55,0)) -> x2 | BB44: 1 | BD44: 1 | BF44: 1 | BH44: 1
D45: 1 | F45: =$X$27 -> 1 | H45: 1 | J45: 1 | BB45: 1 | BD45: 1 | BF45: =$AL$27 -> 1 | BH45: 1
D46: 1 | F46: 1 | H46: 1 | J46: 1 | BB46: 1 | BD46: 1 | BF46: 1 | BH46: 1
D47: 1 | F47: 1 | H47: 1 | J47: 1 | Y47: =IF(Obliczenia!E65="10","",Obliczenia!E65) -> 0.11 | AK47: =IF(Obliczenia!E41="10","",Obliczenia!E41) -> 0.8 | BB47: 1 | BD47: 1 | BF47: 1 | BH47: 1
D48: 1 | F48: 1 | H48: 1 | J48: 1 | X48: =IF(Y47<>"","1","") -> 1 | AA48: =IF(Y47="","",VLOOKUP(Y47,big_tabela,3,0)) -> Łazienka | AC48: =IF(Y47="","",VLOOKUP(Y47,big_tabela,12,0)) -> 55 | AD48: m3/h | AG48: =IF(AK47="","",VLOOKUP(AK47,big_tabela,3,0)) -> Jadalnia - nawiew | AI48: =IF(AK47="","",VLOOKUP(AK47,big_tabela,12,0)) -> 20 | AJ48: m3/h | AL48: =IF(AK47<>"","1","") -> 1 | BB48: 1 | BD48: 1 | BF48: 1 | BH48: 1
D49: 1 | F49: 1 | H49: 1 | J49: 1 | W49: =IF(Y47="","","Φ90") -> Φ90 | X49: =IF(Y47="","","x"&VLOOKUP(Y47,big_tabela,53,0)) -> x2 | Y49: =IF(Y47="","","◄") -> ◄ | AK49: =IF(AK47="","","◄") -> ◄ | AL49: =IF(AK47="","","Φ90") -> Φ90 | AM49: =IF(AK47="","","x"&VLOOKUP(AK47,big_tabela,52,0)) -> x1 | BB49: 1 | BD49: 1 | BF49: 1 | BH49: 1
D50: 1 | F50: 1 | H50: 1 | J50: 1 | L50: =$X$48 -> 1 | M50: 1 | N50: 1 | O50: 1 | P50: 1 | Q50: 1 | R50: 1 | S50: 1 | T50: 1 | U50: 1 | V50: 1 | W50: 1 | X50: 1 | Y50: =$X$48 -> 1 | AK50: =$AL$48 -> 1 | AL50: 1 | AM50: 1 | AN50: 1 | AO50: 1 | AP50: 1 | AQ50: 1 | AR50: 1 | AS50: 1 | AT50: 1 | AU50: 1 | AV50: 1 | AW50: 1 | AX50: 1 | AY50: 1 | AZ50: 1 | BB50: 1 | BD50: 1 | BF50: 1 | BH50: 1
D51: 1 | F51: 1 | H51: 1 | J51: 1 | L51: 1 | AA51: =IF(Y47="","",VLOOKUP(Y47,big_tabela,4,0)) ->  | AC51: =IF(Y47="","","anemostat") -> anemostat | AD51: =IF(Y47="","","x"&VLOOKUP(Y47,big_tabela,56,0)) -> x2 | AG51: =IF(AK47="","",VLOOKUP(AK47,big_tabela,4,0)) ->  | AI51: =IF(AK47="","","anemostat") -> anemostat | AJ51: =IF(AK47="","","x"&VLOOKUP(AK47,big_tabela,55,0)) -> x1 | AZ51: 1 | BB51: 1 | BD51: 1 | BF51: 1 | BH51: 1
D52: 1 | F52: 1 | H52: 1 | J52: 1 | L52: 1 | AZ52: 1 | BB52: 1 | BD52: =$AL$34 -> 1 | BF52: 1 | BH52: 1
D53: 1 | F53: 1 | H53: 1 | J53: 1 | L53: 1 | AZ53: 1 | BB53: 1 | BD53: 1 | BF53: 1 | BH53: 1
D54: 1 | F54: 1 | H54: 1 | J54: 1 | L54: 1 | Y54: =IF(Obliczenia!E66="10","",Obliczenia!E66) -> 1.2 | AK54: =IF(Obliczenia!E42="10","",Obliczenia!E42) -> 0.6 | AZ54: 1 | BB54: 1 | BD54: 1 | BF54: 1 | BH54: 1
D55: 1 | F55: 1 | H55: 1 | J55: 1 | L55: 1 | X55: =IF(Y54<>"","1","") -> 1 | AA55: =IF(Y54="","",VLOOKUP(Y54,big_tabela,3,0)) -> Łazienka | AC55: =IF(Y54="","",VLOOKUP(Y54,big_tabela,12,0)) -> 50 | AD55: m3/h | AG55: =IF(AK54="","",VLOOKUP(AK54,big_tabela,3,0)) -> Gabinet | AI55: =IF(AK54="","",VLOOKUP(AK54,big_tabela,12,0)) -> 30 | AJ55: m3/h | AL55: =IF(AK54<>"","1","") -> 1 | AZ55: 1 | BB55: 1 | BD55: 1 | BF55: 1 | BH55: 1
D56: 1 | F56: 1 | H56: 1 | J56: 1 | L56: 1 | W56: =IF(Y54="","","Φ90") -> Φ90 | X56: =IF(Y54="","","x"&VLOOKUP(Y54,big_tabela,53,0)) -> x1 | Y56: =IF(Y54="","","◄") -> ◄ | AK56: =IF(AK54="","","◄") -> ◄ | AL56: =IF(AK54="","","Φ90") -> Φ90 | AM56: =IF(AK54="","","x"&VLOOKUP(AK54,big_tabela,52,0)) -> x1 | AZ56: 1 | BB56: 1 | BD56: 1 | BF56: 1 | BH56: 1
D57: 1 | F57: 1 | H57: 1 | J57: 1 | L57: 1 | N57: =$X$55 -> 1 | O57: 1 | P57: 1 | Q57: 1 | R57: 1 | S57: 1 | T57: 1 | U57: 1 | V57: 1 | W57: 1 | X57: 1 | Y57: =$X$55 -> 1 | AK57: =$AL$55 -> 1 | AL57: 1 | AM57: 1 | AN57: 1 | AO57: 1 | AP57: 1 | AQ57: 1 | AR57: 1 | AS57: 1 | AT57: 1 | AU57: 1 | AV57: 1 | AW57: 1 | AX57: 1 | AZ57: 1 | BB57: 1 | BD57: 1 | BF57: 1 | BH57: 1
D58: 1 | F58: 1 | H58: 1 | J58: 1 | L58: 1 | N58: 1 | AA58: =IF(Y54="","",VLOOKUP(Y54,big_tabela,4,0)) ->  | AC58: =IF(Y54="","","anemostat") -> anemostat | AD58: =IF(Y54="","","x"&VLOOKUP(Y54,big_tabela,56,0)) -> x1 | AG58: =IF(AK54="","",VLOOKUP(AK54,big_tabela,4,0)) ->  | AI58: =IF(AK54="","","anemostat") -> anemostat | AJ58: =IF(AK54="","","x"&VLOOKUP(AK54,big_tabela,55,0)) -> x1 | AX58: 1 | AZ58: 1 | BB58: 1 | BD58: 1 | BF58: 1 | BH58: 1
D59: 1 | F59: 1 | H59: 1 | J59: =$X$41 -> 1 | L59: 1 | N59: 1 | AX59: 1 | AZ59: 1 | BB59: =$AL$41 -> 1 | BD59: 1 | BF59: 1 | BH59: 1
D60: 1 | F60: 1 | H60: 1 | J60: 1 | L60: 1 | N60: 1 | AX60: 1 | AZ60: 1 | BB60: 1 | BD60: 1 | BF60: 1 | BH60: 1
D61: 1 | F61: 1 | H61: 1 | J61: 1 | L61: 1 | N61: 1 | Y61: =IF(Obliczenia!E67="10","",Obliczenia!E67) -> 0.2 | AK61: =IF(Obliczenia!E43="10","",Obliczenia!E43) ->  | AX61: 1 | AZ61: 1 | BB61: 1 | BD61: 1 | BF61: 1 | BH61: 1
D62: 1 | F62: 1 | H62: 1 | J62: 1 | L62: 1 | N62: 1 | X62: =IF(Y61<>"","1","") -> 1 | AA62: =IF(Y61="","",VLOOKUP(Y61,big_tabela,3,0)) -> Kuchnia otwarta z kuchenką elektryczną | AC62: =IF(Y61="","",VLOOKUP(Y61,big_tabela,12,0)) -> 50 | AD62: m3/h | AG62: =IF(AK61="","",VLOOKUP(AK61,big_tabela,3,0)) ->  | AI62: =IF(AK61="","",VLOOKUP(AK61,big_tabela,12,0)) ->  | AJ62: m3/h | AL62: =IF(AK61<>"","1","") ->  | AX62: 1 | AZ62: 1 | BB62: 1 | BD62: 1 | BF62: 1 | BH62: 1
D63: 1 | F63: 1 | H63: 1 | J63: 1 | L63: 1 | N63: 1 | W63: =IF(Y61="","","Φ90") -> Φ90 | X63: =IF(Y61="","","x"&VLOOKUP(Y61,big_tabela,53,0)) -> x1 | Y63: =IF(Y61="","","◄") -> ◄ | AK63: =IF(AK61="","","◄") ->  | AL63: =IF(AK61="","","Φ90") ->  | AM63: =IF(AK61="","","x"&VLOOKUP(AK61,big_tabela,52,0)) ->  | AX63: 1 | AZ63: 1 | BB63: 1 | BD63: 1 | BF63: 1 | BH63: 1
D64: 1 | F64: 1 | H64: 1 | J64: 1 | L64: 1 | N64: 1 | P64: =$X$62 -> 1 | Q64: =$X$62 -> 1 | R64: 1 | S64: 1 | T64: 1 | U64: 1 | V64: 1 | W64: 1 | X64: 1 | Y64: 1 | AK64: =$AL$62 ->  | AX64: 1 | AZ64: 1 | BB64: 1 | BD64: 1 | BF64: 1 | BH64: 1
D65: 1 | F65: 1 | H65: 1 | J65: 1 | L65: 1 | N65: 1 | P65: =$X$62 -> 1 | AA65: =IF(Y61="","",VLOOKUP(Y61,big_tabela,4,0)) ->  | AC65: =IF(Y61="","","anemostat") -> anemostat | AD65: =IF(Y61="","","x"&VLOOKUP(Y61,big_tabela,56,0)) -> x1 | AG65: =IF(AK61="","",VLOOKUP(AK61,big_tabela,4,0)) ->  | AI65: =IF(AK61="","","anemostat") ->  | AJ65: =IF(AK61="","","x"&VLOOKUP(AK61,big_tabela,55,0)) ->  | AX65: 1 | AZ65: 1 | BB65: 1 | BD65: 1 | BF65: 1 | BH65: 1
D66: 1 | F66: 1 | H66: 1 | J66: 1 | L66: 1 | N66: 1 | P66: 1 | AX66: 1 | AZ66: =$AL$48 -> 1 | BB66: 1 | BD66: 1 | BF66: 1 | BH66: 1
D67: 1 | F67: 1 | H67: 1 | J67: 1 | L67: 1 | N67: 1 | P67: 1 | AX67: 1 | AZ67: 1 | BB67: 1 | BD67: 1 | BF67: 1 | BH67: 1
D68: 1 | F68: 1 | H68: 1 | J68: 1 | L68: 1 | N68: 1 | P68: 1 | Y68: =IF(Obliczenia!E68="10","",Obliczenia!E68) -> 0.10 | AK68: =IF(Obliczenia!E44="10","",Obliczenia!E44) ->  | AX68: 1 | AZ68: 1 | BB68: 1 | BD68: 1 | BF68: 1 | BH68: 1
D69: 1 | F69: 1 | H69: 1 | J69: 1 | L69: 1 | N69: 1 | P69: 1 | X69: =IF(Y68<>"","1","") -> 1 | AA69: =IF(Y68="","",VLOOKUP(Y68,big_tabela,3,0)) -> Garderoba | AC69: =IF(Y68="","",VLOOKUP(Y68,big_tabela,12,0)) -> 30 | AD69: m3/h | AG69: =IF(AK68="","",VLOOKUP(AK68,big_tabela,3,0)) ->  | AI69: =IF(AK68="","",VLOOKUP(AK68,big_tabela,12,0)) ->  | AJ69: m3/h | AL69: =IF(AK68<>"","1","") ->  | AX69: 1 | AZ69: 1 | BB69: 1 | BD69: 1 | BF69: 1 | BH69: 1
D70: 1 | F70: 1 | H70: 1 | J70: 1 | L70: 1 | N70: 1 | P70: 1 | W70: =IF(Y68="","","Φ90") -> Φ90 | X70: =IF(Y68="","","x"&VLOOKUP(Y68,big_tabela,53,0)) -> x1 | Y70: =IF(Y68="","","◄") -> ◄ | AK70: =IF(AK68="","","◄") ->  | AL70: =IF(AK68="","","Φ90") ->  | AM70: =IF(AK68="","","x"&VLOOKUP(AK68,big_tabela,52,0)) ->  | AX70: 1 | AZ70: 1 | BB70: 1 | BD70: 1 | BF70: 1 | BH70: 1
D71: 1 | F71: 1 | H71: 1 | J71: 1 | L71: 1 | N71: 1 | P71: 1 | R71: =$X$69 -> 1 | S71: 1 | T71: 1 | U71: 1 | V71: 1 | W71: 1 | X71: 1 | Y71: =$X$69 -> 1 | AK71: =$AL$69 ->  | AX71: 1 | AZ71: 1 | BB71: 1 | BD71: 1 | BF71: 1 | BH71: 1
D72: 1 | F72: 1 | H72: 1 | J72: 1 | L72: 1 | N72: 1 | P72: 1 | R72: 1 | AA72: =IF(Y68="","",VLOOKUP(Y68,big_tabela,4,0)) ->  | AC72: =IF(Y68="","","anemostat") -> anemostat | AD72: =IF(Y68="","","x"&VLOOKUP(Y68,big_tabela,56,0)) -> x1 | AG72: =IF(AK68="","",VLOOKUP(AK68,big_tabela,4,0)) ->  | AI72: =IF(AK68="","","anemostat") ->  | AJ72: =IF(AK68="","","x"&VLOOKUP(AK68,big_tabela,55,0)) ->  | AX72: 1 | AZ72: 1 | BB72: 1 | BD72: 1 | BF72: 1 | BH72: 1
D73: 1 | F73: 1 | H73: 1 | J73: 1 | L73: 1 | N73: 1 | P73: 1 | R73: 1 | AX73: =$AL$55 -> 1 | AZ73: 1 | BB73: 1 | BD73: 1 | BF73: 1 | BH73: 1
D74: 1 | F74: 1 | H74: 1 | J74: 1 | L74: 1 | N74: 1 | P74: 1 | R74: 1 | AX74: 1 | AZ74: 1 | BB74: 1 | BD74: 1 | BF74: 1 | BH74: 1
D75: 1 | F75: 1 | H75: 1 | J75: 1 | L75: 1 | N75: 1 | P75: 1 | R75: 1 | Y75: =IF(Obliczenia!E69="10","",Obliczenia!E69) ->  | AK75: =IF(Obliczenia!E45="10","",Obliczenia!E45) ->  | AX75: 1 | AZ75: 1 | BB75: 1 | BD75: 1 | BF75: 1 | BH75: 1
D76: 1 | F76: 1 | H76: 1 | J76: 1 | L76: 1 | N76: 1 | P76: 1 | R76: 1 | X76: =IF(Y75<>"","1","") ->  | AA76: =IF(Y75="","",VLOOKUP(Y75,big_tabela,3,0)) ->  | AC76: =IF(Y75="","",VLOOKUP(Y75,big_tabela,12,0)) ->  | AD76: m3/h | AG76: =IF(AK75="","",VLOOKUP(AK75,big_tabela,3,0)) ->  | AI76: =IF(AK75="","",VLOOKUP(AK75,big_tabela,12,0)) ->  | AJ76: m3/h | AL76: =IF(AK75<>"","1","") ->  | AX76: 1 | AZ76: 1 | BB76: 1 | BD76: 1 | BF76: 1 | BH76: 1
D77: 1 | F77: 1 | H77: 1 | J77: 1 | L77: 1 | N77: 1 | P77: 1 | R77: 1 | W77: =IF(Y75="","","Φ90") ->  | X77: =IF(Y75="","","x"&VLOOKUP(Y75,big_tabela,53,0)) ->  | Y77: =IF(Y75="","","◄") ->  | AK77: =IF(AK75="","","◄") ->  | AL77: =IF(AK75="","","Φ90") ->  | AM77: =IF(AK75="","","x"&VLOOKUP(AK75,big_tabela,52,0)) ->  | AX77: 1 | AZ77: 1 | BB77: 1 | BD77: 1 | BF77: 1 | BH77: 1
D78: 1 | F78: 1 | H78: 1 | J78: 1 | L78: 1 | N78: 1 | P78: 1 | R78: 1 | T78: =$X$76 ->  | Y78: =$X$76 ->  | AK78: =$AL$76 ->  | AL78: =$AL$76 ->  | AX78: 1 | AZ78: 1 | BB78: 1 | BD78: 1 | BF78: 1 | BH78: 1
D79: 1 | F79: 1 | H79: 1 | J79: 1 | L79: 1 | N79: 1 | P79: 1 | R79: 1 | AA79: =IF(Y75="","",VLOOKUP(Y75,big_tabela,4,0)) ->  | AC79: =IF(Y75="","","anemostat") ->  | AD79: =IF(Y75="","","x"&VLOOKUP(Y75,big_tabela,56,0)) ->  | AG79: =IF(AK75="","",VLOOKUP(AK75,big_tabela,4,0)) ->  | AI79: =IF(AK75="","","anemostat") ->  | AJ79: =IF(AK75="","","x"&VLOOKUP(AK75,big_tabela,55,0)) ->  | AX79: 1 | AZ79: 1 | BB79: 1 | BD79: 1 | BF79: 1 | BH79: 1
D80: 1 | F80: 1 | H80: 1 | J80: 1 | L80: 1 | N80: 1 | P80: 1 | R80: 1 | AV80: =$AL$62 ->  | AX80: 1 | AZ80: 1 | BB80: 1 | BD80: 1 | BF80: 1 | BH80: 1
D81: 1 | F81: 1 | H81: 1 | J81: 1 | L81: 1 | N81: 1 | P81: 1 | R81: 1 | AX81: 1 | AZ81: 1 | BB81: 1 | BD81: 1 | BF81: 1 | BH81: 1
D82: 1 | F82: 1 | H82: 1 | J82: 1 | L82: 1 | N82: 1 | P82: 1 | R82: 1 | Y82: =IF(Obliczenia!E70="10","",Obliczenia!E70) ->  | AK82: =IF(Obliczenia!E46="10","",Obliczenia!E46) ->  | AX82: 1 | AZ82: 1 | BB82: 1 | BD82: 1 | BF82: 1 | BH82: 1
D83: 1 | F83: 1 | H83: 1 | J83: 1 | L83: 1 | N83: 1 | P83: 1 | R83: 1 | X83: =IF(Y82<>"","1","") ->  | AA83: =IF(Y82="","",VLOOKUP(Y82,big_tabela,3,0)) ->  | AC83: =IF(Y82="","",VLOOKUP(Y82,big_tabela,12,0)) ->  | AD83: m3/h | AG83: =IF(AK82="","",VLOOKUP(AK82,big_tabela,3,0)) ->  | AI83: =IF(AK82="","",VLOOKUP(AK82,big_tabela,12,0)) ->  | AJ83: m3/h | AL83: =IF(AK82<>"","1","") ->  | AX83: 1 | AZ83: 1 | BB83: 1 | BD83: 1 | BF83: 1 | BH83: 1
D84: 1 | F84: 1 | H84: 1 | J84: 1 | L84: 1 | N84: 1 | P84: 1 | R84: 1 | W84: =IF(Y82="","","Φ90") ->  | X84: =IF(Y82="","","x"&VLOOKUP(Y82,big_tabela,53,0)) ->  | Y84: =IF(Y82="","","◄") ->  | AK84: =IF(AK82="","","◄") ->  | AL84: =IF(AK82="","","Φ90") ->  | AM84: =IF(AK82="","","x"&VLOOKUP(AK82,big_tabela,52,0)) ->  | AX84: 1 | AZ84: 1 | BB84: 1 | BD84: 1 | BF84: 1 | BH84: 1
D85: 1 | F85: 1 | H85: 1 | J85: 1 | L85: 1 | N85: 1 | P85: 1 | R85: 1 | V85: =$X$83 ->  | Y85: =$X$83 ->  | AK85: =$AL$83 ->  | AX85: 1 | AZ85: 1 | BB85: 1 | BD85: 1 | BF85: 1 | BH85: 1
D86: 1 | F86: 1 | H86: 1 | J86: 1 | L86: 1 | N86: 1 | P86: 1 | R86: 1 | AA86: =IF(Y82="","",VLOOKUP(Y82,big_tabela,4,0)) ->  | AC86: =IF(Y82="","","anemostat") ->  | AD86: =IF(Y82="","","x"&VLOOKUP(Y82,big_tabela,56,0)) ->  | AG86: =IF(AK82="","",VLOOKUP(AK82,big_tabela,4,0)) ->  | AI86: =IF(AK82="","","anemostat") ->  | AJ86: =IF(AK82="","","x"&VLOOKUP(AK82,big_tabela,55,0)) ->  | AP86: =$AL$83 ->  | AX86: 1 | AZ86: 1 | BB86: 1 | BD86: 1 | BF86: 1 | BH86: 1
D87: =$X$20 -> 1 | F87: 1 | H87: 1 | J87: 1 | L87: 1 | N87: 1 | P87: 1 | R87: 1 | AP87: =$AL$83 ->  | AT87: =$AL$69 ->  | AX87: 1 | AZ87: 1 | BB87: 1 | BD87: 1 | BF87: 1 | BH87: 1
E88: =Obliczenia!BI31 -> 12x75 | AQ88: =Obliczenia!BG31 -> 8x75
E89: =IF(E90<>"","+","") ->  | W89: =" "&Obliczenia!BB30&"x kanał DN90" -> 9x kanał DN90 | AM89: =Obliczenia!BA30&"x kanał DN90" -> 8x kanał DN90 | AQ89: =IF(AQ90<>"","+","") -> 
E90: =Obliczenia!BI34 ->  | AQ90: =Obliczenia!BG34 -> 
P91: =$X$113 ->  | R91: =$X$106 ->  | T91: =$X$99 ->  | V91: =$X$92 ->  | Y91: =IF(Obliczenia!E71="10","",Obliczenia!E71) ->  | AK91: =IF(Obliczenia!E47="10","",Obliczenia!E47) ->  | AP91: =$AL$92 ->  | AR91: =$AL$99 ->  | AT91: =$AL$106 ->  | AV91: =$AL$113 -> 
X92: =IF(Y91<>"","1","") ->  | AA92: =IF(Y91="","",VLOOKUP(Y91,big_tabela,3,0)) ->  | AC92: =IF(Y91="","",VLOOKUP(Y91,big_tabela,12,0)) ->  | AD92: m3/h | AG92: =IF(AK91="","",VLOOKUP(AK91,big_tabela,3,0)) ->  | AI92: =IF(AK91="","",VLOOKUP(AK91,big_tabela,12,0)) ->  | AJ92: m3/h | AL92: =IF(AK91<>"","1","") -> 
W93: =IF(Y91="","","Φ90") ->  | X93: =IF(Y91="","","x"&VLOOKUP(Y91,big_tabela,53,0)) ->  | Y93: =IF(Y91="","","◄") ->  | AK93: =IF(AK91="","","◄") ->  | AL93: =IF(AK91="","","Φ90") ->  | AM93: =IF(AK91="","","x"&VLOOKUP(AK91,big_tabela,52,0)) -> 
Y94: =$X$92 ->  | AK94: =$AL$92 ->  | AL94: =$AL$92 ->  | AM94: =$AL$92 ->  | AN94: =$AL$92 ->  | AO94: =$AL$92 -> 
AA95: =IF(Y91="","",VLOOKUP(Y91,big_tabela,4,0)) ->  | AC95: =IF(Y91="","","anemostat") ->  | AD95: =IF(Y91="","","x"&VLOOKUP(Y91,big_tabela,56,0)) ->  | AG95: =IF(AK91="","",VLOOKUP(AK91,big_tabela,4,0)) ->  | AI95: =IF(AK91="","","anemostat") ->  | AJ95: =IF(AK91="","","x"&VLOOKUP(AK91,big_tabela,55,0)) -> 
Y98: =IF(Obliczenia!E72="10","",Obliczenia!E72) ->  | AK98: =IF(Obliczenia!E48="10","",Obliczenia!E48) -> 
X99: =IF(Y98<>"","1","") ->  | AA99: =IF(Y98="","",VLOOKUP(Y98,big_tabela,3,0)) ->  | AC99: =IF(Y98="","",VLOOKUP(Y98,big_tabela,12,0)) ->  | AD99: m3/h | AG99: =IF(AK98="","",VLOOKUP(AK98,big_tabela,3,0)) ->  | AI99: =IF(AK98="","",VLOOKUP(AK98,big_tabela,12,0)) ->  | AJ99: m3/h | AL99: =IF(AK98<>"","1","") -> 
W100: =IF(Y98="","","Φ90") ->  | X100: =IF(Y98="","","x"&VLOOKUP(Y98,big_tabela,53,0)) ->  | Y100: =IF(Y98="","","◄") ->  | AK100: =IF(AK98="","","◄") ->  | AL100: =IF(AK98="","","Φ90") ->  | AM100: =IF(AK98="","","x"&VLOOKUP(AK98,big_tabela,52,0)) -> 
Y101: =$X$99 ->  | AK101: =$AL$99 -> 
AA102: =IF(Y98="","",VLOOKUP(Y98,big_tabela,4,0)) ->  | AC102: =IF(Y98="","","anemostat") ->  | AD102: =IF(Y98="","","x"&VLOOKUP(Y98,big_tabela,56,0)) ->  | AG102: =IF(AK98="","",VLOOKUP(AK98,big_tabela,4,0)) ->  | AI102: =IF(AK98="","","anemostat") ->  | AJ102: =IF(AK98="","","x"&VLOOKUP(AK98,big_tabela,55,0)) -> 
Y105: =IF(Obliczenia!E73="10","",Obliczenia!E73) ->  | AK105: =IF(Obliczenia!E49="10","",Obliczenia!E49) -> 
X106: =IF(Y105<>"","1","") ->  | AA106: =IF(Y105="","",VLOOKUP(Y105,big_tabela,3,0)) ->  | AC106: =IF(Y105="","",VLOOKUP(Y105,big_tabela,12,0)) ->  | AD106: m3/h | AG106: =IF(AK105="","",VLOOKUP(AK105,big_tabela,3,0)) ->  | AI106: =IF(AK105="","",VLOOKUP(AK105,big_tabela,12,0)) ->  | AJ106: m3/h | AL106: =IF(AK105<>"","1","") -> 
W107: =IF(Y105="","","Φ90") ->  | X107: =IF(Y105="","","x"&VLOOKUP(Y105,big_tabela,53,0)) ->  | Y107: =IF(Y105="","","◄") ->  | AK107: =IF(AK105="","","◄") ->  | AL107: =IF(AK105="","","Φ90") ->  | AM107: =IF(AK105="","","x"&VLOOKUP(AK105,big_tabela,52,0)) -> 
Y108: =$X$106 ->  | AK108: =$AL$106 -> 
AA109: =IF(Y105="","",VLOOKUP(Y105,big_tabela,4,0)) ->  | AC109: =IF(Y105="","","anemostat") ->  | AD109: =IF(Y105="","","x"&VLOOKUP(Y105,big_tabela,56,0)) ->  | AG109: =IF(AK105="","",VLOOKUP(AK105,big_tabela,4,0)) ->  | AI109: =IF(AK105="","","anemostat") ->  | AJ109: =IF(AK105="","","x"&VLOOKUP(AK105,big_tabela,55,0)) -> 
Y112: =IF(Obliczenia!E74="10","",Obliczenia!E74) ->  | AK112: =IF(Obliczenia!E50="10","",Obliczenia!E50) -> 
X113: =IF(Y112<>"","1","") ->  | AA113: =IF(Y112="","",VLOOKUP(Y112,big_tabela,3,0)) ->  | AC113: =IF(Y112="","",VLOOKUP(Y112,big_tabela,12,0)) ->  | AD113: m3/h | AG113: =IF(AK112="","",VLOOKUP(AK112,big_tabela,3,0)) ->  | AI113: =IF(AK112="","",VLOOKUP(AK112,big_tabela,12,0)) ->  | AJ113: m3/h | AL113: =IF(AK112<>"","1","") -> 
W114: =IF(Y112="","","Φ90") ->  | X114: =IF(Y112="","","x"&VLOOKUP(Y112,big_tabela,53,0)) ->  | Y114: =IF(Y112="","","◄") ->  | AK114: =IF(AK112="","","◄") ->  | AL114: =IF(AK112="","","Φ90") ->  | AM114: =IF(AK112="","","x"&VLOOKUP(AK112,big_tabela,52,0)) -> 
Y115: =$X$113 ->  | AK115: =$AL$113 -> 
AA116: =IF(Y112="","",VLOOKUP(Y112,big_tabela,4,0)) ->  | AC116: =IF(Y112="","","anemostat") ->  | AD116: =IF(Y112="","","x"&VLOOKUP(Y112,big_tabela,56,0)) ->  | AG116: =IF(AK112="","",VLOOKUP(AK112,big_tabela,4,0)) ->  | AI116: =IF(AK112="","","anemostat") ->  | AJ116: =IF(AK112="","","x"&VLOOKUP(AK112,big_tabela,55,0)) -> 
AC119: =X137 -> Vitovent 300-W 400m3/h lewa
X122: ="Kanał zbiorczy 200/174, króciec przyłączeniowy Φ "&Obliczenia!AN59 -> Kanał zbiorczy 200/174, króciec przyłączeniowy Φ 180 | AH122: =" Kanał zbiorczy 200/174, króciec przyłączeniowy Φ "&Obliczenia!AN59 -> Kanał zbiorczy 200/174, króciec przyłączeniowy Φ 180
X125: ="Kanał zbiorczy 200/174, króciec przyłączeniowy Φ "&Obliczenia!AN59 -> Kanał zbiorczy 200/174, króciec przyłączeniowy Φ 180 | AH125: =" Kanał zbiorczy 200/174, króciec przyłączeniowy Φ "&Obliczenia!AN59 -> Kanał zbiorczy 200/174, króciec przyłączeniowy Φ 180
C128: Szacunkowy dobór centrali wentylacyjnej i systemu dystrybucji powietrza
W133: Centrala wentylacyjna
K137: =Obliczenia!AK84 ->  | X137: Vitovent 300-W 400m3/h lewa | AC137: ="R "&AC138&" %" -> R 0 % | AD137: =VLOOKUP(X137,rozdzial,4,0)-VLOOKUP(X137,rozdzial,4,0)*(AC138/100) -> 13,685.00 zł | AG137: Sprawność temperaturowa ErP | AL137: =VLOOKUP($X$137,Obliczenia!J37:W45,8,0) -> 92 | AM137: [%]
X138: =IF(X137="Vitoair FS 300E MA 300m3/h","Centrala wentylacji mechanicznej z odzyskiem ciepła i wilgoci","Centrala wentylacji mechanicznej z odzyskiem ciepła") -> Centrala wentylacji mechanicznej z odzyskiem ciepła | AC138: 0 | AG138: Stopień zmiany wilgotności | AL138: =VLOOKUP($X$137,Obliczenia!J37:W45,9,0) -> n.d. | AM138: [%]
X139: =VLOOKUP(X137,rozdzial,3,0) -> Z029134 | AG139: Rodzaj wymiennika ciepła | AL139: =VLOOKUP($X$137,Obliczenia!J37:W45,11,0) -> Krzyżowy
AG140: Klapa bypass | AL140: =VLOOKUP($X$137,Obliczenia!J37:W45,13,0) -> Tak
X141: =" "&VLOOKUP($X$137,Obliczenia!J37:W45,6,0) -> 50 | Y141: =VLOOKUP($X$137,Obliczenia!J37:W45,4,0)&" [m3/h]" -> 400 [m3/h] | AB141: =VLOOKUP($X$137,Obliczenia!J37:AA45,16,0) -> A | AG141: Nagrzewnica powietrza zewnęrznego | AL141: =VLOOKUP($X$137,Obliczenia!J37:W45,14,0) -> Tak, 1kW
AB142: =VLOOKUP($X$137,Obliczenia!J37:AA45,17,0) -> A+ | AG142: Odpływ kondensatu | AL142: =VLOOKUP($X$137,Obliczenia!J37:W45,12,0) -> Tak
AB143: =VLOOKUP($X$137,Obliczenia!J37:AA45,18,0) -> A+ | AG143: Wymiary zewnętrzne D x W x S | AL143: =VLOOKUP($X$137,Obliczenia!J37:W45,10,0) -> 560 x 695 x 750 | AM143: [mm]
X145: =IF(X137="Vitoair FS 300E MA 300m3/h","Nagrzewnica elektryczna powietrza 1,8kW","") ->  | AD145: =IFERROR(VLOOKUP(X145,rozdzial,4,0)-VLOOKUP(X145,rozdzial,4,0)*(AC138/100),"") -> 
X146: =IF(X137="Vitoair FS 300E MA 300m3/h","Do ogrzewania wstępnego powietrza, montaż wewn. centrali","") -> 
X147: =IFERROR(VLOOKUP(X145,rozdzial,3,0),"") -> 
W149: Sterowanie
AG153: Vitotrol 300-E
K154: =Obliczenia!AK82 ->  | X154: Przewód połączeniowy Vitocal (WO1C) | AD154: =IF(X154="Sterowanie przez aplikację ViCare","0 zł",VLOOKUP(X154,rozdzial,4,0)-VLOOKUP(X154,rozdzial,4,0)*(AC138/100)) -> 144.00 zł | AI154: Radio
X155: do obsługi zdalnej centrali wentylacyjnej | AG155: Przełącznik 4-pozycyjny | AJ155: Can-Bus
X156: =IF(X154="Sterowanie przez aplikację ViCare","",VLOOKUP(X154,rozdzial,3,0)) -> ZK02789 | AI156: Can-Bus | AN156: ViCare
AI157: Vitoair FS 300E MA | AK157: opcja Vitocal x5x-A i 2xx-S
AD158: =IFERROR(VLOOKUP(X158,rozdzial,4,0)-VLOOKUP(X158,rozdzial,4,0)*(AC138/100),"") ->  | AG158: Stand Alone
X159: =IF(X137="Vitoair FS 300E MA 300m3/h","Opcja: do komunikacji z pompą ciepłą z regulatorem E3",IF(X158="Przewód komunikacyjny Can-Bus 5m","Uwaga! Nie ma zastosowanie w tym rozwiązaniu","")) ->  | AG159: bez ViCare App
X160: =IFERROR(VLOOKUP(X158,rozdzial,3,0),"") ->  | AJ160: Mod-Bus
AG161: Moduł LB1
W162: System dystrybucji // po stronie pomieszczeń | AG162: (nie z Vitoconnect V) | AJ162: Vitoconnect V | AN162: ViCare
AI163: Vitovent 300-W
X167: Skrzynka rozprężna DN125 dla 1 kanału DN90 | AC167: =Obliczenia!BC30 -> 17 | AD167: =VLOOKUP(X167,rozdzial75,4,0)*AC167*(1-$AM$236/100) -> 2,278.00 zł | AH167: ='Elementy DN75&90 2024-09'!D43 -> Kanał elastyczny okrągły DN90, 50 m | AL167: =AK170 -> 4 | AM167: =VLOOKUP(AH167,rozdzial75,4,0)*AL167*(1-$AM$236/100) -> 2,904.00 zł
X168: Skrzynka rozprężna do mocowania anemostatu | AH168: ='Elementy DN75&90 2024-09'!H41 -> Krąg o długości 50 m, nadrukowane znaczniki długości, powierzchnia antybakteryjna i antystatyczna
X169: =VLOOKUP(X167,rozdzial75,3,0) -> 7988046 | Y169: =VLOOKUP(X167,rozdzial75,4,0) -> 134.00 zł
AH170: =VLOOKUP(AH167,rozdzial75,3,0) -> 7228296 | AI170: =VLOOKUP(AH167,rozdzial75,4,0) -> 726.00 zł | AK170: =ROUNDUP(AC167*10/50,0) -> 4
X172: ='Elementy DN75&90 2024-09'!D56 -> Anemostat nawiewno-wywiewny, czarny | AC172: =Obliczenia!BE30+Obliczenia!BD30 -> 17 | AD172: =VLOOKUP(X172,rozdzial75,4,0)*AC172*(1-$AM$236/100) -> 2,873.00 zł
X173: Do wywiewania powietrza z pomieszczenia
X174: =VLOOKUP(X172,rozdzial75,3,0) -> 7974005 | Y174: =VLOOKUP(X172,rozdzial75,4,0) -> 169.00 zł
X177: =Obliczenia!BH31 -> Skrzynka rozdzielacza 12xDN75 | AC177: =Obliczenia!BI33 -> 1 | AD177: =VLOOKUP(X177,'Elementy DN75&90 2024-09'!D3:H57,4,0)*AC177*(1-$AM$236/100)+AC177*AB180 -> 1,057.00 zł | AG177: =IF(AL177>0,"+","") ->  | AH177: =Obliczenia!BH34 ->  | AL177: =Obliczenia!BI36 -> 0 | AM177: =IF(AH177="",0,VLOOKUP(AH177,'Elementy DN75&90 2024-09'!D3:H55,4,0)*AL177*(1-$AM$236/100)+AL177*AK180) -> 0.00 zł
X178: =VLOOKUP(X177,rozdzial75,5,0) -> dop. Strumień 400 m3/h | AH178: =IF(AH177="","",VLOOKUP(AH177,rozdzial75,5,0)) -> 
X180: =VLOOKUP(X177,rozdzial75,3,0) -> 7988052 | Y180: =VLOOKUP(X177,rozdzial75,4,0) -> 1,057.00 zł | AH180: =IF(AH177="","",VLOOKUP(AH177,rozdzial75,3,0)) ->  | AI180: =IF(AH177="","",VLOOKUP(AH177,rozdzial75,4,0)) ->  | AJ180: =IF(AH177="","",IF(Obliczenia!Y59=125,'Elementy DN75&90 2024-09'!F37,IF(Obliczenia!Y59=160,'Elementy DN75&90 2024-09'!F38,'Elementy DN75&90 2024-09'!F39))) ->  | AK180: =IF(AH177="","",VLOOKUP(AJ180,'Elementy DN75&90 2024-09'!F3:G57,2,0)) -> 
X182: =Obliczenia!BF42 -> Element przyłączeniowy rozdzielacza DN180 | AC182: =AC177 -> 1 | AD182: =VLOOKUP(X182,'Elementy DN75&90 2024-09'!D3:H57,4,0)*AC182*(1-$AM$236/100) -> 56.00 zł | AG182: =IF(AL182>0,"+","") ->  | AH182: =IF(AH177="","",X182) ->  | AL182: =AL177 -> 0 | AM182: =IF(AH182="",0,VLOOKUP(AH182,'Elementy DN75&90 2024-09'!D8:H60,4,0)*AL182*(1-$AM$236/100)+AL182*AK185) -> 0.00 zł
X183: =VLOOKUP(X182,rozdzial75,5,0) -> Do przyłączenia kanału powietrza do rozdzielacza | AH183: =IF(AH182="","",VLOOKUP(AH182,rozdzial75,5,0)) -> 
X185: =VLOOKUP(X182,rozdzial75,3,0) -> 7775844 | Y185: =IF(X182="","","w zakresie dostawy") -> w zakresie dostawy | AH185: =IF(AH182="","",VLOOKUP(AH182,rozdzial75,3,0)) ->  | AI185: =IF(AH182="","","w zakresie dostawy") -> 
X187: =Obliczenia!BF31 -> Skrzynka rozdzielacza 8xDN75 | AC187: =Obliczenia!BG33 -> 1 | AD187: =VLOOKUP(X187,'Elementy DN75&90 2024-09'!D13:H67,4,0)*AC187*(1-$AM$236/100)+AC187*AB190 -> 824.00 zł | AG187: =IF(AL187>0,"+","") ->  | AH187: =Obliczenia!BF34 ->  | AL187: =Obliczenia!BG36 -> 0 | AM187: =IF(AH187="",0,VLOOKUP(AH187,'Elementy DN75&90 2024-09'!D13:H65,4,0)*AL187*(1-$AM$236/100)+AL187*AK190) -> 0.00 zł
X188: Do montażu w module skrzynki rozdzielaczowej typu XL, w zakresie dostawy 1 korek zaślepiający | AH188: =IF(AH187="","",VLOOKUP(AH187,rozdzial75,5,0)) -> 
X190: =VLOOKUP(X187,rozdzial75,3,0) -> 7988050 | Y190: =VLOOKUP(X187,rozdzial75,4,0) -> 824.00 zł | AH190: =IF(AH187="","",VLOOKUP(AH187,rozdzial75,3,0)) ->  | AI190: =IF(AH187="","",VLOOKUP(AH187,rozdzial75,4,0)) ->  | AJ190: =IF(AH187="","",IF(Obliczenia!Y69=125,'Elementy DN75&90 2024-09'!F47,IF(Obliczenia!Y69=160,'Elementy DN75&90 2024-09'!F48,'Elementy DN75&90 2024-09'!F49))) ->  | AK190: =IF(AH187="","",VLOOKUP(AJ190,'Elementy DN75&90 2024-09'!F13:G67,2,0)) -> 
X192: =Obliczenia!BF42 -> Element przyłączeniowy rozdzielacza DN180 | AC192: =AC187 -> 1 | AD192: =VLOOKUP(X192,'Elementy DN75&90 2024-09'!D13:H67,4,0)*AC192*(1-$AM$236/100) -> 56.00 zł | AG192: =IF(AL192>0,"+","") ->  | AH192: =IF(AH187="","",X192) ->  | AL192: =AL187 -> 0 | AM192: =IF(AH192="",0,VLOOKUP(AH192,'Elementy DN75&90 2024-09'!D18:H70,4,0)*AL192*(1-$AM$236/100)+AL192*AK195) -> 0.00 zł
X193: Do montażu w module skrzynki rozdzielaczowej typu XL, w zakresie dostawy 1 korek zaślepiający | AH193: =IF(AH192="","",VLOOKUP(AH192,rozdzial75,5,0)) -> 
X195: =VLOOKUP(X192,rozdzial75,3,0) -> 7775844 | Y195: =IF(X192="","","w zakresie dostawy") -> w zakresie dostawy | AH195: =IF(AH192="","",VLOOKUP(AH192,rozdzial75,3,0)) ->  | AI195: =IF(AH192="","","w zakresie dostawy") -> 
W197: System dystrybucji // po stronie zewnętrznej
X201: Kanał izolowany 200/174 | AC201: =AB203 -> 6 | AD201: =VLOOKUP(X201,rozdzial,4,0)*AC201 -> 2,754.00 zł | AH201: Kolano izolowane z mufą 90 stopni | AL201: =AK203 -> 4 | AM201: =VLOOKUP(AH201,rozdzial,4,0)*AL201 -> 816.00 zł
X202: 1 sztuka = 2 m długości, przepływ maksymalny 400 m3/h | AH202: Do zmiany kierunku kanałów izolowanych 200/174
X203: =VLOOKUP(X201,rozdzial,3,0) -> 7546070 | Y203: =VLOOKUP(X201,rozdzial,4,0) -> 459.00 zł | AB203: 6 | AH203: =VLOOKUP(AH201,rozdzial,3,0) -> 7546071 | AI203: =VLOOKUP(AH201,rozdzial,4,0) -> 204.00 zł | AK203: 4
X206: Czerpnia/wyrzutnia ścienna z rurą | AC206: 2 | AD206: =VLOOKUP(X206,rozdzial,4,0)*AC206 -> 616.00 zł | AH206: =IF(Obliczenia!Y57="Vitovent 300-W 325m3/h lewa","Mufa/redukcja 200/150",IF(Obliczenia!Y57="Vitovent 300-W 325m3/h prawa","Mufa/redukcja 200/150",IF(Obliczenia!Y57="Vitovent 300-W 400m3/h lewa","Mufa/redukcja 200/180",IF(Obliczenia!Y57="Vitovent 300-W 400m3/h prawa","Mufa/redukcja 200/180",IF(Obliczenia!Y57="Vitovent 300-W 225m3/h lewa","Mufa/redukcja 200/125",IF(Obliczenia!Y57="Vitovent 300-W 225m3/h prawa","Mufa/redukcja 200/125","Mufa/redukcja 200/150")))))) -> Mufa/redukcja 200/180 | AL206: 4 | AM206: =VLOOKUP(AH206,rozdzial,4,0)*AL206 -> 336.00 zł
X207: Do bezpośredniego podłączenia kanału izolowanego 200/174 | AH207: Do przyłączenia kanału 200/174 do króćców centrali
X208: =VLOOKUP(X206,rozdzial,3,0) -> 7663729 | Y208: =VLOOKUP(X206,rozdzial,4,0) -> 308.00 zł | AH208: =VLOOKUP(AH206,rozdzial,3,0) -> 7546074 | AI208: =VLOOKUP(AH206,rozdzial,4,0) -> 84.00 zł
W216: Elementy uzupełniające
X220: ='Elementy DN75&90 2024-09'!D57 -> Nóż do cięcia kanałów płaskich i okrągłych | AC220: 0 | AD220: =VLOOKUP(X220,rozdzial75,4,0)*AC220*(1-$AM$236/100) -> 0.00 zł | AH220: ='Elementy DN75&90 2024-09'!D45 -> Łącznik kanałów DN90 | AL220: 0 | AM220: =VLOOKUP(AH220,rozdzial75,4,0)*AL220*(1-$AM$236/100) -> 0.00 zł
X221: Do szybkiego i precyzyjnego obcinania rur | AH221: Do szczelnego łączenia kanałów elastycznych DN63
X222: =VLOOKUP(X220,rozdzial75,3,0) -> 7372852 | Y222: =VLOOKUP(X220,rozdzial75,4,0) -> 335.00 zł | AH222: =VLOOKUP(AH220,rozdzial75,3,0) -> 7372826 | AI222: =VLOOKUP(AH220,rozdzial75,4,0) -> 80.00 zł
X225: Kolano izolowane z mufą 45 stopni | AC225: 0 | AD225: =VLOOKUP(X225,rozdzial,4,0)*AC225*(1-$AM$236/100) -> 0.00 zł | AH225: ='Elementy DN75&90 2024-09'!D47 -> Kolano 90, DN90 | AL225: 0 | AM225: =VLOOKUP(AH225,rozdzial75,4,0)*AL225*(1-$AM$236/100) -> 0.00 zł
X226: Do zmiany kierunku kanałów izolowanych 200/174 | AH226: ='Elementy DN75&90 2024-09'!H46 -> Do zmiany kierunki w ciasnych miejscach, możliwość przycięcia i podłączenia wrost do rozdzielacza
X227: =VLOOKUP(X225,rozdzial,3,0) -> 7546072 | Y227: =VLOOKUP(X225,rozdzial,4,0) -> 143.00 zł
AH228: =VLOOKUP(AH225,rozdzial75,3,0) -> 7372924 | AI228: =VLOOKUP(AH225,rozdzial75,4,0) -> 142.00 zł
X230: Mufa łącząca 200/200 | AC230: 0 | AD230: =VLOOKUP(X230,rozdzial,4,0)*AC230*(1-$AM$236/100) -> 0.00 zł | AH230: Trójnik izolowany 200/174 bez mufy | AL230: =AK232 -> 0 | AM230: =VLOOKUP(AH230,rozdzial,4,0)*AL230 -> 0.00 zł
AH231: Do rozdzielenia kanału izolowanego 200/174
X232: =VLOOKUP(X230,rozdzial,3,0) -> 7546073 | Y232: =VLOOKUP(X230,rozdzial,4,0) -> 68.00 zł | AH232: =VLOOKUP(AH230,rozdzial,3,0) -> 7775845 | AI232: =VLOOKUP(AH230,rozdzial,4,0) -> 824.00 zł | AK232: =AL177+AL187 -> 0
C235: =Dane!S241 -> Autor: | H235: =Dane!T241 -> PanD, 2023 | AJ235: Cena: | AK235: =AD137+IFERROR(VLOOKUP(X145,rozdzial,4,0),0)+AD154+IFERROR(VLOOKUP(X158,rozdzial,4,0),0)+AD167+AM167+AM172+AD172+AD177+AM177+AD182+AD201+AD206+AM201+AM206+AD220+AM220+AD225+AM225+AM230+AD230+AD187+AD192+AM182+AM187+AM192 -> 28,399.00 zł | AM235: ="R "&AM236&" %" -> R 0 % | AO235: (rabat na system)
AM236: 0
AO238: =IF(Obliczenia!AP10<>0,Obliczenia!AP10,"") -> 
AO240: =IF(Obliczenia!AP11<>0,Obliczenia!AP11,"") -> 3
AO242: =IF(Obliczenia!AP12<>0,Obliczenia!AP12,"") -> 
AO244: =IF(Obliczenia!AP13<>0,Obliczenia!AP13,"") -> 1
AO251: =IF(Obliczenia!AP14<>0,Obliczenia!AP14,"") -> 
AO252: =IF(Obliczenia!AP15<>0,Obliczenia!AP15,"") -> 1
AO253: =IF(Obliczenia!AP16<>0,Obliczenia!AP16,"") -> 2
AO254: =IF(Obliczenia!AP17<>0,Obliczenia!AP17,"") -> 
AO255: =IF(Obliczenia!AP18<>0,Obliczenia!AP18,"") -> 

Sheet Centrala Vitovent
B2: Centrala wentylacyjna Vitovent 300-W
B4: wersja LEWA
I6: typ | P6: Wersja Lewa | AL6: Centrala Vitovent model B300/B400 (do 08-2020)
I7: H32S C225 | J7: H32S C325 | K7: H32S C400
I8: DN125 | J8: DN160 | K8: DN180 | L8: 1 | M8: Króciec do czerpni (powietrze świeże z zewnątrz)
I10: DN125 | J10: DN160 | K10: DN180 | L10: 2 | M10: Króciec powietrza wywiewanego z pomieszczeń
I12: DN125 | J12: DN160 | K12: DN180 | L12: 3 | M12: Króciec do wyrzutni (powietrze zużyte na zewnątrz)
I14: DN125 | J14: DN160 | K14: DN180 | L14: 4 | M14: Króciec powietrza nawiewanego do pomieszczeń
L16: 5 | M16: Klapa bypass (100%) do pracy z pominięciem wymiennika
L18: 6 | M18: Grzałka elektryczna, modulowana 125-1000 [W] powietrza świeżego
I20: G4 | J20: G4 | K20: G4 | L20: 7 | M20: Filtr powietrza usuwanego z pomieszczeń
I22: G4 | J22: G4 | K22: G4 | L22: 8 | M22: Filtr powietrza świeżego z zewnątrz
I24: 90% | J24: 90% | K24: 93% | L24: 9 | M24: Krzyżowy wymiennik ciepła
L26: 10 | M26: Energooszczędne wentylatory promieniowe prądu stałego
I28: 1¼ | J28: 1¼ | K28: 1¼ | L28: 11 | M28: Odprowadzenie kondensatu
L30: 12 | M30: Moduł obsługowy LB1 do sterowania i parametryzowania pracy
L32: 13 | M32: Przewód komunikacyjny Mod-bus do sterowania centralną z regulatora pompy ciepła
L34: 14 | M34: Komunikacja centrali Vitovent z pompą ciepła przewodem Mod-bus umożliwia sterowanie przez aplikację ViCare
B38: wersja PRAWA
I40: typ | P40: Wersja Prawa
I41: H32S C225 | J41: H32S C325 | K41: H32S C400
I42: DN125 | J42: DN160 | K42: DN180 | L42: 1 | M42: Króciec do czerpni (powietrze świeże z zewnątrz)
I44: DN125 | J44: DN160 | K44: DN180 | L44: 2 | M44: Króciec powietrza wywiewanego z pomieszczeń
I46: DN125 | J46: DN160 | K46: DN180 | L46: 3 | M46: Króciec do wyrzutni (powietrze zużyte na zewnątrz)
I48: DN125 | J48: DN160 | K48: DN180 | L48: 4 | M48: Króciec powietrza nawiewanego do pomieszczeń
L50: 5 | M50: Klapa bypass (100%) do pracy z pominięciem wymiennika
L52: 6 | M52: Grzałka elektryczna, modulowana 125-1000 [W] powietrza świeżego
I54: G4 | J54: G4 | K54: G4 | L54: 7 | M54: Filtr powietrza usuwanego z pomieszczeń
I56: G4 | J56: G4 | K56: G4 | L56: 8 | M56: Filtr powietrza świeżego z zewnątrz
I58: 90% | J58: 90% | K58: 93% | L58: 9 | M58: Krzyżowy wymiennik ciepła
L60: 10 | M60: Energooszczędne wentylatory promieniowe prądu stałego
I62: 1¼ | J62: 1¼ | K62: 1¼ | L62: 11 | M62: Odprowadzenie kondensatu
L64: 12 | M64: Moduł obsługowy LB1 do sterowania i parametryzowania pracy
L66: 13 | M66: Przewód komunikacyjny Mod-bus do sterowania centralną z regulatora pompy ciepła
L68: 14 | M68: Komunikacja centrali Vitovent z pompą ciepła przewodem Mod-bus umożliwia sterowanie przez aplikację ViCare
L70: 15 | M70: Bramka Vitoconnect V dla centrali Vitovent umożliwia sterowanie przez aplikację ViCare
B112: Uwagi i zalecenia dotyczące instalacji rozprowadzania powietrza
S113: 300m3/h
B114: • Ewentualny kominek będzie pobierał powietrze do spalania odzielnym kanałem z zewnątrz
B115: • Okap kuchenny będzie pracował na powietrzu obiegowym | S115: m3/h | T115: W
B116: • Dokładne lokalizacje nawieników i wywiewników, należy ustalić w koordynacji z innymi branżami oraz aranżacją wnętrz | S116: 300 | T116: 52 | U116: 300 | V116: 52
B117: • Inwestor zapewni 80mm przestrzeni w warstwach posadzkowych na system kanałów wentylacyjnych | S117: 100 | T117: 7 | U117: 100 | V117: 7
B118: • Zaprojektować przewody rurowe tak, aby się nie krzyżowały. | S118: a= | T118: b= | U118: a= | V118: b=
B119: • Czerpnia i wyrzutnia elewacyjne będą zlokalizowane, co najmniej 2 m ponad poziomem terenu | S119: =(T116-T117)/(200) -> 0.225 | T119: =T117-S119*S117 -> -15.5 | U119: =(V117-V116)/(-200) -> 0.225 | V119: =V116-U119*U116 -> -15.5
B120: • Rozdzielacze będę zlokalizowane bezpośrednio na stropie parteru, wewnątrz izolacji termicznej spełniającej warunki paroszczelności
B121: • Przewodów DN 63 bez izolacji nie wolno prowadzić w przestrzeni powietrznej poddasza
B122: • Nie stosować dłuższych odcinków przewodów DN63 niż 25m
B123: • Aby umożliwić przepływ powietrza z obszarów nawiewnych do obszarów wywiewnych, należy zapewnić szczeliną pod drzwiami.
B124: • Podczas montażu instalacji wentylacji należy systematycznie zaślepiać wszystkie otwory, aby zabezpieczyć ją przed zapyleniem.
B125: • Zaleca się stosowanie tłumików na odcinku od centrali wentylacyjnej do rozdzielacza powietrza nawiewanego do pomieszczeń
B127: Uwagi i zalecenia dotyczące centrali wentylacyjnej
B129: • Centralę wentylacyjną należy ustawiać wewnątrz pomieszczeń ogrzewanych
B130: • Centralę wentylacyjną można zamontować w pozycji stojącej lub wiszącej
B131: • Należy zapewnić swobodny dostęp do centrali wentylacyjnej w celu wykonania prac konserwacyjnych
B133: Uwagi i zalecenia dotyczące eksploatacji centrali wentylacyjnej
B135: • Panel zdalnego sterowania należy umieścić w ogólnodostępnym miejscu
B136: • Należy kontrolować jakość filtrów i w razie konieczności wymienić na nowe
S143: 400m3/h
S145: m3/h | T145: W
S146: 400 | T146: 83 | U146: 400 | V146: 83
S147: 300 | T147: 40 | U147: 300 | V147: 40
S148: a= | T148: b= | U148: a= | V148: b=
S149: =(T147-T146)/(-100) -> 0.43 | T149: =T146-S149*S146 -> -89 | U149: =(V147-V146)/(-100) -> 0.43 | V149: =V146-U149*U146 -> -89

Sheet Centrala Vitoair FS
B2: Centrala wentylacyjna Vitovent 300-W

Sheet Elementy DN63
D2: Nazwa materiału | E2: Jednostka | F2: Nr zamówieniowy | G2: Cena 2024-08
C3: 0 | D3: Vitovent 300-W 325m3/h lewa | E3: szt. | F3: Z029130 | G3: 12,628.00 zł | I3: 1
D4: Vitovent 300-W 325m3/h prawa | E4: szt. | F4: Z029128 | G4: 12,628.00 zł
C5: 1 | D5: Vitovent 300-W 400m3/h lewa | E5: szt. | F5: Z029134 | G5: 13,685.00 zł | I5: 2
D6: Vitovent 300-W 400m3/h prawa | E6: szt. | F6: Z029132 | G6: 13,685.00 zł
C7: 2 | D7: Vitovent 300-W 225m3/h lewa | E7: szt. | F7: Z029127 | G7: 11,693.00 zł
D8: Vitovent 300-W 225m3/h prawa | E8: szt. | F8: Z029126 | G8: 11,693.00 zł
D9: Vitovent 300-W 600m3/h lewa | E9: szt. | F9: Z029137 | G9: 16,393.00 zł
D10: Vitovent 300-W 600m3/h prawa | E10: szt. | F10: Z029136 | G10: 16,393.00 zł
D11: Vitoair FS 300E MA 300m3/h | E11: szt. | F11: Z029138 | G11: 13,824.00 zł
D12: Nagrzewnica elektryczna powietrza 1,8kW | E12: szt. | F12: 7372079 | G12: 1,913.00 zł
D13: Przewód komunikacyjny Can-Bus 5m | E13: szt. | F13: ZK06219 | G13: 153.00 zł
D14: Przewód komunikacyjny Can-Bus 15m | E14: szt. | F14: ZK06220 | G14: 299.00 zł
D15: Przewód komunikacyjny Can-Bus 30m | E15: szt. | F15: ZK06221 | G15: 525.00 zł
D16: Vitotrol 300-E | E16: szt. | F16: 7959522 | G16: 1,508.00 zł
D17: Zasilacz do 300-E do montażu podtynkowego | E17: szt. | F17: ZK03842 | G17: 323.00 zł
D18: Przełącznik 4-stopniowy | E18: szt. | F18: 7372092 | G18: 681.00 zł
D19: Bramka internetowa Vitoconnect V | E19: szt. | F19: Z027169 | G19: 1,173.00 zł
C20: 3 | D20: Moduł obsługowy ścienny LB1 | E20: szt. | F20: Z015318 | G20: 1,259.00 zł | I20: 3
C21: 4 | D21: Przewód połączeniowy Vitocal (WO1C) | E21: szt. | F21: ZK02789 | G21: 144.00 zł | I21: 4
C22: 5 | D22: Czujnik wilgotności | E22: szt. | F22: ZK02539 | G22: 1,449.00 zł | I22: 5
C23: 6 | D23: Czujnik CO2/wilgoci | E23: szt. | F23: 7501978 | G23: 1,826.00 zł | I23: 6
A24: do 20m3 3 Pa, do 25 m3/h 4 Pa/m | C24: 7 | D24: Elastyczny kanał okrągły DN63 | E24: 50m/rolka | F24: 7228294 | G24: 417.00 zł | I24: 7 | Y24: asd
A25: 10 Pa | C25: 8 | D25: Skrzynka do anemostatu | E25: szt. | F25: 7546057 | G25: 325.00 zł | I25: 8
C26: 9 | D26: Element usztywniający do skrzynki anemostatu | E26: szt. | F26: 7634370 | G26: 12.00 zł
C27: 10 | D27: Anemostat metalowy nawiewny | E27: szt. | F27: 7546059 | G27: 63.00 zł
C28: 11 | D28: Anemostat metalowy wywiewny | E28: szt. | F28: 7546060 | G28: 51.00 zł | I28: 9
C29: 12 | D29: Skrzynka rozdzielcza 18x63 | E29: szt. | F29: 7546061 | G29: 1,207.00 zł | I29: 10
A30: 10 Pa | C30: 13 | D30: Skrzynka rozdzielcza 12x63 | E30: szt. | F30: 7546062 | G30: 1,032.00 zł | I30: 11
A31: 10 Pa | C31: 14 | D31: Tłumik dźwięku, giętki; 1,1m; DN180; 25mm | E31: szt. | I31: 12
C32: 15 | D32: Tłumik dźwięku, giętki; 1,1m; DN180; 50mm | E32: szt. | F32: ZK03037 | G32: 684.00 zł | I32: 13
C33: 16 | D33: Kratka 200x100 podłączenie z góry | E33: szt. | F33: 7546065 | G33: 566.00 zł | I33: 14
C34: 17 | D34: Kratka 200x100 podłączenie z tyłu | E34: szt. | F34: 7546066 | G34: 566.00 zł | I34: 15
C35: 18 | D35: Łącznik kanałów DN63 | E35: szt. | F35: 7546067 | G35: 40.00 zł | I35: 16
C36: 19 | D36: Nóż do kanałów DN63 | E36: szt. | F36: 7546068 | G36: 305.00 zł | I36: 17
C37: 20 | D37: Uchwyt mocujący do kanałów DN63 | E37: szt. | F37: 7546069 | G37: 9.50 zł | I37: 18
C38: 21 | D38: Kanał izolowany 200/174 | E38: 2m/szt. | F38: 7546070 | G38: 459.00 zł | I38: 19
A39: 4 Pa/m | C39: 22 | D39: Kolano izolowane z mufą 90 stopni | E39: szt. | F39: 7546071 | G39: 204.00 zł | I39: 20
A40: 5 Pa/m | C40: 23 | D40: Kolano izolowane z mufą 45 stopni | E40: szt. | F40: 7546072 | G40: 143.00 zł | I40: 21
C41: 24 | D41: Trójnik izolowany 200/174 bez mufy | E41: szt. | F41: 7775845 | G41: 824.00 zł
A42: 3 Pa/m | C42: 25 | D42: Mufa łącząca 200/200 | E42: szt. | F42: 7546073 | G42: 68.00 zł | I42: 22
C43: 26 | D43: Mufa/redukcja 200/180 | E43: szt. | F43: 7546074 | G43: 84.00 zł | I43: 23
C44: 27 | D44: Mufa/redukcja 200/150 | E44: szt. | F44: 7546075 | G44: 84.00 zł | I44: 24
C45: 28 | D45: Czerpnia/wyrzutnia ścienna z rurą | E45: szt. | F45: 7663729 | G45: 308.00 zł | I45: 25
C46: 29 | D46: Czerpnia/wyrzutnia ścienna | E46: szt. | F46: 7546076 | G46: 502.00 zł | I46: 26
A47: 15 Pa | C47: 30 | D47: Wyrzutnia dachowa | E47: szt. | F47: 7547618 | G47: 877.00 zł | I47: 27
C48: 31 | D48: Króciec przyłączeniowy do przedłużania DN125 | E48: szt. | F48: 7546058 | G48: 35.00 zł | I48: 28
C80: Uwagi i zalecenia dotyczące instalacji rozprowadzania powietrza
C82: • Ewentualny kominek będzie pobierał powietrze do spalania odzielnym kanałem z zewnątrz
C83: • Okap kuchenny będzie pracował na powietrzu obiegowym
C84: • Dokładne lokalizacje nawieników i wywiewników, należy ustalić w koordynacji z innymi branżami oraz aranżacją wnętrz
C85: • Inwestor zapewni 80mm przestrzeni w warstwach posadzkowych na system kanałów wentylacyjnych
C86: • Zaprojektować przewody rurowe tak, aby się nie krzyżowały.
C87: • Czerpnia i wyrzutnia elewacyjne będą zlokalizowane, co najmniej 2 m ponad poziomem terenu
C88: • Rozdzielacze będę zlokalizowane bezpośrednio na stropie parteru, wewnątrz izolacji termicznej spełniającej warunki paroszczelności
C89: • Przewodów DN 63 bez izolacji nie wolno prowadzić w przestrzeni powietrznej poddasza
C90: • Nie stosować dłuższych odcinków przewodów DN63 niż 25m
C91: • Aby umożliwić przepływ powietrza z obszarów nawiewnych do obszarów wywiewnych, należy zapewnić szczeliną pod drzwiami.
C92: • Podczas montażu instalacji wentylacji należy systematycznie zaślepiać wszystkie otwory, aby zabezpieczyć ją przed zapyleniem.
C93: • Zaleca się stosowanie tłumików na odcinku od centrali wentylacyjnej do rozdzielacza powietrza nawiewanego do pomieszczeń
C95: Uwagi i zalecenia dotyczące centrali wentylacyjnej
C97: • Centralę wentylacyjną należy ustawiać wewnątrz pomieszczeń ogrzewanych
C98: • Centralę wentylacyjną można zamontować w pozycji stojącej lub wiszącej
C99: • Należy zapewnić swobodny dostęp do centrali wentylacyjnej w celu wykonania prac konserwacyjnych
C101: Uwagi i zalecenia dotyczące eksploatacji centrali wentylacyjnej
C103: • Panel zdalnego sterowania należy umieścić w ogólnodostępnym miejscu
C104: • Należy kontrolować jakość filtrów i w razie konieczności wymienić na nowe

Sheet Elementy DN75&90 ViAir (hidden)
D2: Nazwa materiału, przewody główne centrali | E2: Jednostka | F2: Nr zamówieniowy | G2: Cena 04/2024 | H2: Opis
C3: 0 | D3: Tłumik dźwięku DN125, L=1,1m, 50mm | E3: szt. | F3: 7249105 | G3: 658.00 zł | I3: 1
D4: Tłumik dźwięku DN160, L=1,1m, 50mm | E4: szt. | F4: ZK03036 | G4: 626.00 zł
D5: Tłumik dźwięku DN180, L=1,1m, 50 mm | E5: szt. | F5: ZK03037 | G5: 684.00 zł | I5: 2
C6: 1 | D6: Rura z mufą łączącą z EPP DN=125, L=1m | E6: szt. | F6: 7501764 | G6: 133.00 zł
D7: Rura z mufą łączącą z EPP DN=160, L=1m | E7: szt. | F7: 7501765 | G7: 186.00 zł
D8: Rura z mufą łączącą z EPP DN=180, L=1m | E8: szt. | F8: 7501766 | G8: 228.00 zł
C9: 2 | D9: Kolano 90° z mufą łączącą z EPP, DN125 | E9: szt. | F9: 7501767 | G9: 92.00 zł | H9: Z możliwością podziału i stosowania jako konalo 45 | I9: 3
D10: Kolano 90° z mufą łączącą z EPP, DN160 | E10: szt. | F10: 7501768 | G10: 133.00 zł | H10: Z możliwością podziału i stosowania jako konalo 45 | I10: 4
D11: Kolano 90° z mufą łączącą z EPP, DN180 | E11: szt. | F11: 7501769 | G11: 171.00 zł | H11: Z możliwością podziału i stosowania jako konalo 45 | I11: 5
C12: 3 | D12: Mufa łącząca z EPP DN125 | E12: szt. | F12: 7501770 | G12: 40.60 zł | I12: 6
A13: do 20m3 3 Pa, do 25 m3/h 4 Pa/m | D13: Mufa łącząca z EPP DN160 | E13: szt. | F13: 7501771 | G13: 42.10 zł | I13: 7 | Y13: asd
A14: 10 Pa | D14: Mufa łącząca z EPP DN180 | E14: szt. | F14: 7501772 | G14: 45.80 zł | I14: 8
C15: 3A | D15: Mufa łącząca, przesuwna z EPP DN125 | E15: szt. | F15: ZK01770 | G15: 143.00 zł | H15: Do późniejszego demontażu systemu rozdziału powietrza
D16: Mufa łącząca, przesuwna z EPP DN160 | E16: szt. | F16: ZK01890 | G16: 152.00 zł | H16: Do późniejszego demontażu systemu rozdziału powietrza
D17: Mufa łącząca, przesuwna z EPP DN180 | E17: szt. | F17: ZK01891 | G17: 152.00 zł | H17: Do późniejszego demontażu systemu rozdziału powietrza | I17: 9
D18: Kabłąk mocujący do ściany lub stropu | E18: szt. | F18: 7501773 | G18: 84.00 zł | I18: 10
A19: 10 Pa | C19: 4 | D19: Przpust przez ścianę zewnętrzną EPP DN125 | E19: szt. | F19: ZK03025 | G19: 335.00 zł | I19: 11
A20: 10 Pa | D20: Przpust przez ścianę zewnętrzną EPP DN160 | E20: szt. | F20: ZK03026 | G20: 318.00 zł | I20: 12
D21: Przpust przez ścianę zewnętrzną EPP DN180 | E21: szt. | F21: ZK03027 | G21: 357.00 zł | I21: 13
C22: 5XS | D22: Skrzynka rozdzielacza XS | E22: szt. | F22: 7377369 | G22: 1,049.00 zł | H22: Zintegrowany tłumik hałasów, montaż płyty przyłączeniowej z przodu lub od góry, 266 x 328 x 249
C23: 5S | D23: Skrzynka rozdzielacza S | E23: szt. | F23: 7377372 | G23: 1,115.00 zł | H23: Zintegrowany tłumik hałasów, montaż płyty przyłączeniowej z przodu lub od góry, 360 x 238 x 249
C24: 5M | D24: Skrzynka rozdzielacza M | E24: szt. | F24: 7377375 | G24: 1,171.00 zł | H24: Zintegrowany tłumik hałasów, montaż płyty przyłączeniowej z przodu lub od góry, 470 x 238 x 249
C25: 5L | D25: Skrzynka rozdzielacza L | E25: szt. | F25: 7377378 | G25: 1,225.00 zł | H25: Zintegrowany tłumik hałasów, montaż płyty przyłączeniowej z przodu lub od góry, 582 x 238 x 249
C26: 5XL | D26: Skrzynka rozdzielacza XL | E26: szt. | F26: 7377381 | G26: 1,956.00 zł | H26: Zintegrowany tłumik hałasów, montaż płyty przyłączeniowej z przodu lub od góry, 695 x 238 x 249
C27: 6XS | D27: Płyta przyłączeniowa XS 4 kanały DN75 | E27: szt. | F27: 7377370 | G27: 681.00 zł | H27: Do montażu w module skrzynki rozdzielaczowej typu XS, w zakresie dostawy 1 korek zaślepiający | I27: 14
C28: 6S | D28: Płyta przyłączeniowa S 6 kanały DN75 | E28: szt. | F28: 7377373 | G28: 726.00 zł | H28: Do montażu w module skrzynki rozdzielaczowej typu S, w zakresie dostawy 1 korek zaślepiający | I28: 15
C29: 6M | D29: Płyta przyłączeniowa M 8 kanałów DN75 | F29: 7377376 | G29: 903.00 zł | H29: Do montażu w module skrzynki rozdzielaczowej typu M, w zakresie dostawy 1 korek zaślepiający
C30: 6L | D30: Płyta przyłączeniowa L 10 kanałów DN75 | F30: 7377379 | G30: 1,178.00 zł | H30: Do montażu w module skrzynki rozdzielaczowej typu L, w zakresie dostawy 1 korek zaślepiający
C31: 6XL | D31: Płyta przyłączeniowa XL 12 kanałów DN75 | F31: 7377382 | G31: 1,488.00 zł | H31: Do montażu w module skrzynki rozdzielaczowej typu XL, w zakresie dostawy 1 korek zaślepiający
C32: 7XS | D32: Płyta przyłączeniowa XS 4 kanały DN90 | E32: szt. | F32: 7377371 | G32: 678.00 zł | H32: Do montażu w module skrzynki rozdzielaczowej typu XS, w zakresie dostawy 1 korek zaślepiający
C33: 7S | D33: Płyta przyłączeniowa S 6 kanały DN90 | E33: szt. | F33: 7377374 | G33: 728.00 zł | H33: Do montażu w module skrzynki rozdzielaczowej typu S, w zakresie dostawy 1 korek zaślepiający
C34: 7M | D34: Płyta przyłączeniowa M 8 kanałów DN90 | F34: 7377377 | G34: 893.00 zł | H34: Do montażu w module skrzynki rozdzielaczowej typu M, w zakresie dostawy 1 korek zaślepiający
C35: 7L | D35: Płyta przyłączeniowa L 10 kanałów DN90 | F35: 7377380 | G35: 1,187.00 zł | H35: Do montażu w module skrzynki rozdzielaczowej typu L, w zakresie dostawy 1 korek zaślepiający
C36: 7XL | D36: Płyta przyłączeniowa XL 12 kanałów DN90 | F36: 7377383 | G36: 1,497.00 zł | H36: Do montażu w module skrzynki rozdzielaczowej typu XL, w zakresie dostawy 1 korek zaślepiający
C37: 8 | D37: Element przyłączeniowy rozdzielacza DN125 | E37: szt. | F37: ZK01866 | G37: 124.00 zł | H37: Do przyłączenia kanału powietrza do rozdzielacza | I37: 16
D38: Element przyłączeniowy rozdzielacza DN160 | E38: szt. | F38: ZK01867 | G38: 124.00 zł | H38: Do przyłączenia kanału powietrza do rozdzielacza | I38: 17
D39: Element przyłączeniowy rozdzielacza DN180 | E39: szt. | F39: ZK01868 | G39: 129.00 zł | H39: Do przyłączenia kanału powietrza do rozdzielacza | I39: 18
C40: 9 | D40: Kanał elastyczny okrągły DN75, 25 m | E40: szt. | F40: Z023107 | G40: 494.00 zł | H40: Krąg o długości 25 m, nadrukowane znaczniki długości, powierzchnia antybakteryjna i antystatyczna | I40: 19
A41: 4 Pa/m | D41: Kanał elastyczny okrągły DN75, 50 m | E41: szt. | F41: 7228295 | G41: 520.00 zł | H41: Krąg o długości 50 m, nadrukowane znaczniki długości, powierzchnia antybakteryjna i antystatyczna | I41: 20
C42: 9A | D42: Kanał elastyczny okrągły DN90, 25 m | E42: szt. | F42: Z023110 | G42: 661.00 zł | H42: Krąg o długości 25 m, nadrukowane znaczniki długości, powierzchnia antybakteryjna i antystatyczna
D43: Kanał elastyczny okrągły DN90, 50 m | E43: szt. | F43: 7228296 | G43: 726.00 zł | H43: Krąg o długości 50 m, nadrukowane znaczniki długości, powierzchnia antybakteryjna i antystatyczna
A44: 5 Pa/m | C44: 10 | D44: Łącznik kanałów DN75 | E44: szt. | F44: 7372825 | G44: 72.00 zł | H44: Do połączenia dwóch kanałów powietrza DN75 | I44: 21
D45: Łącznik kanałów DN90 | E45: szt. | F45: 7372826 | G45: 80.00 zł | H45: Do połączenia dwóch kanałów powietrza DN75
C46: 11 | D46: Kolano 90, DN75 | E46: szt. | F46: 7372923 | G46: 142.00 zł | H46: Do zmiany kierunki w ciasnych miejscach, możliwość przycięcia i podłączenia wrost do rozdzielacza
D47: Kolano 90, DN90 | E47: szt. | F47: 7372924 | G47: 142.00 zł | H47: Do zmiany kierunki w ciasnych miejscach, możliwość przycięcia i podłączenia wrost do rozdzielacza
A48: 3 Pa/m | C48: 12 | D48: Skrzynka rozprężna DN125 dla 2 kanałów DN75 | E48: szt. | F48: 7377341 | G48: 174.00 zł | H48: 2 króćce przyłączeniowe DN75 | I48: 22
C49: 13 | D49: Skrzynka rozprężna DN125, prosta dla 2 kanałów DN75 | E49: szt. | F49: 7377351 | G49: 207.00 zł | H49: 2 króćce przyłączeniowe DN75 | I49: 24
D50: Skrzynka rozprężna DN125 dla 1 kanału DN90 | E50: szt. | F50: 7377343 | G50: 174.00 zł | H50: 1 króciec przyłączeniowy DN90
D51: Skrzynka rozprężna DN125, prosta dla 2 kanałów DN90 | E51: szt. | F51: 7377348 | G51: 207.00 zł | H51: 1 króciec przyłączeniowy DN90 | I51: 23
C52: 14 | D52: Element dławiący okrągły dla skrzynki rozprężnej | F52: ZK01816 | G52: 57.00 zł | H52: Zalecany w celu wykluczenia odgłosów przepływu powietrza przy dużych różnicach ciśnienia.
C53: 15 | D53: Element dławiący okrągły DN75 10 sztuk | E53: szt. | F53: 7377367 | G53: 195.00 zł | H53: Zalecany w celu wykluczenia odgłosów przepływu powietrza przy dużych różnicach ciśnienia.
D54: Element dławiący okrągły DN90 10 sztuk | E54: szt. | F54: 7377368 | G54: 195.00 zł | H54: Zalecany w celu wykluczenia odgłosów przepływu powietrza przy dużych różnicach ciśnienia.
C55: 16 | D55: Anemostat nawiewno-wywiewny, biały | E55: szt. | F55: 7974004 | G55: 169.00 zł | H55: Okrągły (dostępne, czarne, białe, szare, brązowe i niebieski) | I55: 26
A56: 15 Pa | C56: 17 | D56: Anemostat nawiewno-wywiewny, czarny | E56: szt. | F56: 7974005 | G56: 169.00 zł | H56: Okrągły (dostępne, czarne, białe, szare, brązowe i niebieski) | I56: 27
C57: 18 | D57: Nóż do cięcia kanałów płaskich i okrągłych | E57: szt. | F57: 7372852 | G57: 335.00 zł | H57: Uniwersalny do kanałów okrągłych i płaskich | I57: 28
C125: Uwagi i zalecenia dotyczące instalacji rozprowadzania powietrza
C127: • Ewentualny kominek będzie pobierał powietrze do spalania odzielnym kanałem z zewnątrz
C128: • Okap kuchenny będzie pracował na powietrzu obiegowym
C129: • Dokładne lokalizacje nawieników i wywiewników, należy ustalić w koordynacji z innymi branżami oraz aranżacją wnętrz
C130: • Inwestor zapewni 80mm przestrzeni w warstwach posadzkowych na system kanałów wentylacyjnych
C131: • Zaprojektować przewody rurowe tak, aby się nie krzyżowały.
C132: • Czerpnia i wyrzutnia elewacyjne będą zlokalizowane, co najmniej 2 m ponad poziomem terenu
C133: • Rozdzielacze będę zlokalizowane bezpośrednio na stropie parteru, wewnątrz izolacji termicznej spełniającej warunki paroszczelności
C134: • Przewodów DN 63 bez izolacji nie wolno prowadzić w przestrzeni powietrznej poddasza
C135: • Nie stosować dłuższych odcinków przewodów DN63 niż 25m
C136: • Aby umożliwić przepływ powietrza z obszarów nawiewnych do obszarów wywiewnych, należy zapewnić szczeliną pod drzwiami.
C137: • Podczas montażu instalacji wentylacji należy systematycznie zaślepiać wszystkie otwory, aby zabezpieczyć ją przed zapyleniem.
C138: • Zaleca się stosowanie tłumików na odcinku od centrali wentylacyjnej do rozdzielacza powietrza nawiewanego do pomieszczeń
C140: Uwagi i zalecenia dotyczące centrali wentylacyjnej
C142: • Centralę wentylacyjną należy ustawiać wewnątrz pomieszczeń ogrzewanych
C143: • Centralę wentylacyjną można zamontować w pozycji stojącej lub wiszącej
C144: • Należy zapewnić swobodny dostęp do centrali wentylacyjnej w celu wykonania prac konserwacyjnych
C146: Uwagi i zalecenia dotyczące eksploatacji centrali wentylacyjnej
C148: • Panel zdalnego sterowania należy umieścić w ogólnodostępnym miejscu
C149: • Należy kontrolować jakość filtrów i w razie konieczności wymienić na nowe

Sheet Elementy DN75&90 2024-09
D2: Nazwa materiału, przewody główne centrali | E2: Jednostka | F2: Nr zamówieniowy | G2: Cena 04/2024 | H2: Opis
C3: 0 | D3: Tłumik dźwięku DN125, L=1,1m, 50mm | E3: szt. | F3: 7249105 | G3: 658.00 zł | I3: 1
D4: Tłumik dźwięku DN160, L=1,1m, 50mm | E4: szt. | F4: ZK03036 | G4: 626.00 zł
D5: Tłumik dźwięku DN180, L=1,1m, 50 mm | E5: szt. | F5: ZK03037 | G5: 684.00 zł | I5: 2
C6: 1 | D6: Rura z mufą łączącą z EPP DN=125, L=1m | E6: szt. | F6: 7501764 | G6: 133.00 zł
D7: Rura z mufą łączącą z EPP DN=160, L=1m | E7: szt. | F7: 7501765 | G7: 186.00 zł
D8: Rura z mufą łączącą z EPP DN=180, L=1m | E8: szt. | F8: 7501766 | G8: 228.00 zł
C9: 2 | D9: Kolano 90° z mufą łączącą z EPP, DN125 | E9: szt. | F9: 7501767 | G9: 92.00 zł | H9: Z możliwością podziału i stosowania jako konalo 45 | I9: 3
D10: Kolano 90° z mufą łączącą z EPP, DN160 | E10: szt. | F10: 7501768 | G10: 133.00 zł | H10: Z możliwością podziału i stosowania jako konalo 45 | I10: 4
D11: Kolano 90° z mufą łączącą z EPP, DN180 | E11: szt. | F11: 7501769 | G11: 171.00 zł | H11: Z możliwością podziału i stosowania jako konalo 45 | I11: 5
C12: 3 | D12: Mufa łącząca z EPP DN125 | E12: szt. | F12: 7501770 | G12: 40.60 zł | I12: 6
A13: do 20m3 3 Pa, do 25 m3/h 4 Pa/m | D13: Mufa łącząca z EPP DN160 | E13: szt. | F13: 7501771 | G13: 42.10 zł | I13: 7 | Y13: asd
A14: 10 Pa | D14: Mufa łącząca z EPP DN180 | E14: szt. | F14: 7501772 | G14: 45.80 zł | I14: 8
C15: 3A | D15: Mufa łącząca, przesuwna z EPP DN125 | E15: szt. | F15: ZK01770 | G15: 143.00 zł | H15: Do późniejszego demontażu systemu rozdziału powietrza
D16: Mufa łącząca, przesuwna z EPP DN160 | E16: szt. | F16: ZK01890 | G16: 152.00 zł | H16: Do późniejszego demontażu systemu rozdziału powietrza
D17: Mufa łącząca, przesuwna z EPP DN180 | E17: szt. | F17: ZK01891 | G17: 152.00 zł | H17: Do późniejszego demontażu systemu rozdziału powietrza | I17: 9
D18: Kabłąk mocujący do ściany lub stropu | E18: szt. | F18: 7501773 | G18: 84.00 zł | I18: 10
A19: 10 Pa | C19: 4 | D19: Przpust przez ścianę zewnętrzną EPP DN125 | E19: szt. | F19: ZK03025 | G19: 335.00 zł | I19: 11
A20: 10 Pa | D20: Przpust przez ścianę zewnętrzną EPP DN160 | E20: szt. | F20: ZK03026 | G20: 318.00 zł | I20: 12
D21: Przpust przez ścianę zewnętrzną EPP DN180 | E21: szt. | F21: ZK03027 | G21: 357.00 zł | I21: 13
C22: 5A | D22: Skrzynka rozdzielacza 8xDN75 | E22: szt. | F22: 7988050 | G22: 824.00 zł | H22: dop. Strumień 265 m3/h
C23: 5B | D23: Skrzynka rozdzielacza 8xDN90 | E23: szt. | F23: 7988051 | G23: 923.00 zł | H23: dop. Strumień 400 m3/h
C24: 5C | D24: Skrzynka rozdzielacza 12xDN75 | E24: szt. | F24: 7988052 | G24: 1,057.00 zł | H24: dop. Strumień 400 m3/h
C25: 5D | D25: Skrzynka rozdzielacza 12xDN90 | E25: szt. | F25: 7988053 | G25: 1,080.00 zł | H25: dop. Strumień 600 m3/h
D27: Bramka internetowa Vitoconnect V | E27: szt. | F27: Z027169 | G27: 1,173.00 zł | I27: 14
I28: 15
C37: 8 | D37: Element przyłączeniowy rozdzielacza DN125 | E37: szt. | F37: 7775842 | G37: 56.00 zł | H37: Do przyłączenia kanału powietrza do rozdzielacza | I37: 16
D38: Element przyłączeniowy rozdzielacza DN160 | E38: szt. | F38: 7775843 | G38: 56.00 zł | H38: Do przyłączenia kanału powietrza do rozdzielacza | I38: 17
D39: Element przyłączeniowy rozdzielacza DN180 | E39: szt. | F39: 7775844 | G39: 56.00 zł | H39: Do przyłączenia kanału powietrza do rozdzielacza | I39: 18
C40: 9 | D40: Kanał elastyczny okrągły DN75, 25 m | E40: szt. | F40: Z023107 | G40: 494.00 zł | H40: Krąg o długości 25 m, nadrukowane znaczniki długości, powierzchnia antybakteryjna i antystatyczna | I40: 19
A41: 4 Pa/m | D41: Kanał elastyczny okrągły DN75, 50 m | E41: szt. | F41: 7228295 | G41: 520.00 zł | H41: Krąg o długości 50 m, nadrukowane znaczniki długości, powierzchnia antybakteryjna i antystatyczna | I41: 20
C42: 9A | D42: Kanał elastyczny okrągły DN90, 25 m | E42: szt. | F42: Z023110 | G42: 661.00 zł | H42: Krąg o długości 25 m, nadrukowane znaczniki długości, powierzchnia antybakteryjna i antystatyczna
D43: Kanał elastyczny okrągły DN90, 50 m | E43: szt. | F43: 7228296 | G43: 726.00 zł | H43: Krąg o długości 50 m, nadrukowane znaczniki długości, powierzchnia antybakteryjna i antystatyczna
A44: 5 Pa/m | C44: 10 | D44: Łącznik kanałów DN75 | E44: szt. | F44: 7372825 | G44: 72.00 zł | H44: Do połączenia dwóch kanałów powietrza DN75 | I44: 21
D45: Łącznik kanałów DN90 | E45: szt. | F45: 7372826 | G45: 80.00 zł | H45: Do połączenia dwóch kanałów powietrza DN75
C46: 11 | D46: Kolano 90, DN75 | E46: szt. | F46: 7372923 | G46: 142.00 zł | H46: Do zmiany kierunki w ciasnych miejscach, możliwość przycięcia i podłączenia wrost do rozdzielacza
D47: Kolano 90, DN90 | E47: szt. | F47: 7372924 | G47: 142.00 zł | H47: Do zmiany kierunki w ciasnych miejscach, możliwość przycięcia i podłączenia wrost do rozdzielacza
A48: 3 Pa/m | C48: 12 | D48: Skrzynka rozprężna DN125 dla 2 kanałów DN75 | E48: szt. | F48: 7988045 | G48: 92.00 zł | H48: 2 króćce przyłączeniowe DN75 | I48: 22
C49: 13 | D49: Skrzynka rozprężna DN125, prosta dla 2 kanałów DN75 | E49: szt. | F49: 7377351 | G49: 207.00 zł | H49: 2 króćce przyłączeniowe DN75 | I49: 24
D50: Skrzynka rozprężna DN125 dla 1 kanału DN90 | E50: szt. | F50: 7988046 | G50: 134.00 zł | H50: 1 króciec przyłączeniowy DN90
D51: Skrzynka rozprężna DN125, prosta dla 2 kanałów DN90 | E51: szt. | F51: 7377348 | G51: 207.00 zł | H51: 1 króciec przyłączeniowy DN90 | I51: 23
C52: 14 | D52: Element dławiący okrągły dla skrzynki rozprężnej | F52: ZK01816 | G52: 57.00 zł | H52: Zalecany w celu wykluczenia odgłosów przepływu powietrza przy dużych różnicach ciśnienia.
C53: 15 | D53: Element dławiący okrągły DN75 10 sztuk | E53: szt. | F53: 7377367 | G53: 195.00 zł | H53: Zalecany w celu wykluczenia odgłosów przepływu powietrza przy dużych różnicach ciśnienia.
D54: Element dławiący okrągły DN90 10 sztuk | E54: szt. | F54: 7377368 | G54: 195.00 zł | H54: Zalecany w celu wykluczenia odgłosów przepływu powietrza przy dużych różnicach ciśnienia.
C55: 16 | D55: Anemostat nawiewno-wywiewny, biały | E55: szt. | F55: 7974004 | G55: 169.00 zł | H55: Okrągły (dostępne, czarne, białe, szare, brązowe i niebieski) | I55: 26
A56: 15 Pa | C56: 17 | D56: Anemostat nawiewno-wywiewny, czarny | E56: szt. | F56: 7974005 | G56: 169.00 zł | H56: Okrągły (dostępne, czarne, białe, szare, brązowe i niebieski) | I56: 27
C57: 18 | D57: Nóż do cięcia kanałów płaskich i okrągłych | E57: szt. | F57: 7372852 | G57: 335.00 zł | H57: Uniwersalny do kanałów okrągłych i płaskich | I57: 28
C125: Uwagi i zalecenia dotyczące instalacji rozprowadzania powietrza
C127: • Ewentualny kominek będzie pobierał powietrze do spalania odzielnym kanałem z zewnątrz
C128: • Okap kuchenny będzie pracował na powietrzu obiegowym
C129: • Dokładne lokalizacje nawieników i wywiewników, należy ustalić w koordynacji z innymi branżami oraz aranżacją wnętrz
C130: • Inwestor zapewni 80mm przestrzeni w warstwach posadzkowych na system kanałów wentylacyjnych
C131: • Zaprojektować przewody rurowe tak, aby się nie krzyżowały.
C132: • Czerpnia i wyrzutnia elewacyjne będą zlokalizowane, co najmniej 2 m ponad poziomem terenu
C133: • Rozdzielacze będę zlokalizowane bezpośrednio na stropie parteru, wewnątrz izolacji termicznej spełniającej warunki paroszczelności
C134: • Przewodów DN 63 bez izolacji nie wolno prowadzić w przestrzeni powietrznej poddasza
C135: • Nie stosować dłuższych odcinków przewodów DN63 niż 25m
C136: • Aby umożliwić przepływ powietrza z obszarów nawiewnych do obszarów wywiewnych, należy zapewnić szczeliną pod drzwiami.
C137: • Podczas montażu instalacji wentylacji należy systematycznie zaślepiać wszystkie otwory, aby zabezpieczyć ją przed zapyleniem.
C138: • Zaleca się stosowanie tłumików na odcinku od centrali wentylacyjnej do rozdzielacza powietrza nawiewanego do pomieszczeń
C140: Uwagi i zalecenia dotyczące centrali wentylacyjnej
C142: • Centralę wentylacyjną należy ustawiać wewnątrz pomieszczeń ogrzewanych
C143: • Centralę wentylacyjną można zamontować w pozycji stojącej lub wiszącej
C144: • Należy zapewnić swobodny dostęp do centrali wentylacyjnej w celu wykonania prac konserwacyjnych
C146: Uwagi i zalecenia dotyczące eksploatacji centrali wentylacyjnej
C148: • Panel zdalnego sterowania należy umieścić w ogólnodostępnym miejscu
C149: • Należy kontrolować jakość filtrów i w razie konieczności wymienić na nowe

Sheet Obliczenia (hidden)
B2: Tabela z obliczeniami jako podstwa do każdej kalkulacji
B3: 1 | C3: 2 | D3: 3 | E3: 4 | F3: 5 | G3: 6 | H3: 7 | I3: 8 | J3: 9 | K3: 10 | L3: 11 | M3: 12 | N3: 13 | O3: 14 | P3: 15 | Q3: 16 | R3: 17 | S3: 18 | T3: 19 | U3: 20 | V3: 21 | W3: 22 | X3: 23 | Y3: 24 | Z3: 25 | AA3: 26 | AB3: 27 | AC3: 28 | AD3: 29 | AE3: 30 | AF3: 31 | AG3: 32 | AH3: 33 | AI3: 34 | AJ3: 35 | AK3: 36 | AL3: 37 | AM3: 38 | AN3: 39 | AO3: 40 | AP3: 41 | AQ3: 42 | AR3: 43 | AS3: 44 | AT3: 45 | AU3: 46 | AV3: 47 | AW3: 48 | AX3: 49 | AY3: 50 | AZ3: 51 | BA3: 52 | BB3: 53 | BC3: 54 | BD3: 55 | BE3: 56 | BF3: 57 | BG3: 58 | BH3: 59 | BI3: 60
R4: Rura 63 | AN4: Rura 75 | AY4: Rura 90
R5: normalny 25m3/h | AC5: cichy 20m3/h | AN5: normalny 35m3/h | AY5: normalny 55m3/h
A6: Potrzebne osoby? | B6: Pom. | D6: Typ | E6: Nazwa | F6: Ilość osob | G6: Powierzchnia | H6: Wysokość | I6: Kubatura | J6: Ruch powietrza | K6: Norma | L6: Branża | M6: Wybór | N6: Nawiew | O6: Wskaźnik wymiany | P6: Wywiew | Q6: Wskaźnik wymiany | R6: przepływ normalny | S6: Ilość rur (normalny) | T6: Ilość rur (normalny) nawiew | U6: Ilość rur (normalny) wywiew | V6: Ilość zaworów (normalny) | W6: Ilość zaworów (nawiew) | X6: Ilość zaworów (wywiew) | Y6: Ilość rozdzielaczy 12x (nawiew) | Z6: Ilość rozdzielaczy 18x (nawiew) | AA6: Ilość rozdzielaczy 12x (wywiew) | AB6: Ilość rozdzielaczy 18x (wywiew) | AC6: przepływ cichy | AD6: Ilość rur (cichy) | AE6: Ilość rur (cichy) nawiew | AF6: Ilość rur (cichy) wywiew | AG6: Ilość zaworów (cichy) | AH6: Ilość zaworów (nawiew) | AI6: Ilość zaworów (wywiew) | AJ6: Ilość rozdzielaczy 12x (nawiew) | AK6: Ilość rozdzielaczy 18x (nawiew) | AL6: Ilość rozdzielaczy 12x (wywiew) | AM6: Ilość rozdzielaczy 18x (wywiew) | AN6: przepływ normalny | AO6: Ilość rur (normalny) | AP6: Ilość rur (normalny) nawiew | AQ6: Ilość rur (normalny) wywiew | AR6: Ilość zaworów (normalny) | AS6: Ilość zaworów (nawiew) | AT6: Ilość zaworów (wywiew) | AU6: Rozmiasr rozdzielacza (nawiew) | AW6: Rozmiar rozdzielacza (wywiew) | AY6: przepływ normalny | AZ6: Ilość rur (normalny) | BA6: Ilość rur (normalny) nawiew | BB6: Ilość rur (normalny) wywiew | BC6: Ilość zaworów (normalny) | BD6: Ilość zaworów (nawiew) | BE6: Ilość zaworów (wywiew) | BF6: Rozmiasr rozdzielacza (nawiew) | BH6: Rozmiar rozdzielacza (wywiew)
G7: [m2] | H7: [m] | I7: [m3] | K7: [m3/h] | L7: [m3/h] | N7: [m3/h] | O7: [1/] | P7: [m3/h] | Q7: [1/] | R7: 25 | AN7: 34 | AY7: 51
B8: =Dane!C32 -> 0.1 | C8: =J8 -> wywiew | D8: =Dane!E32 -> Wiatrołap | E8: =IF(Dane!E33="","",Dane!E33) ->  | F8: =Dane!G34 -> 4 | G8: =IF(D8<>0,Dane!J33,0) -> 3 | H8: =Dane!L33 -> 2.8 | I8: =G8*H8 -> 8 | J8: =IF(D8=0,"n.d.",VLOOKUP(D8,lista_pod_rodzaj_ruchu_powietrza,4,0)) -> wywiew | K8: =IF(J8="n.d.",0,IF(J8="nawiew",F8*20,VLOOKUP(D8,warunki2,3,0))) -> 15 | L8: =I8 -> 8 | M8: =IF(D8<>0,Dane!S33,0) -> 15 | N8: =IF(J8="nawiew",M8,IF(J8="naw.wyw.",M8,0)) -> 0 | O8: =IF(I8<>0,N8/I8,0) -> 0.00 | P8: =IF(J8="wywiew",M8,IF(J8="naw.wyw.",M8,0)) -> 15 | Q8: =IF(I8<>0,P8/I8,0) -> 1.79 | R8: =$R$7 -> 25 | S8: =ROUNDUP(M8/R8,0) -> 1 | T8: =IF(J8="nawiew",S8,IF(J8="naw.wyw.",S8,0)) -> 0 | U8: =IF(J8="wywiew",S8,IF(J8="naw.wyw.",S8,0)) -> 1 | V8: =ROUNDUP(S8/3,0) -> 1 | W8: =IF(J8="nawiew",V8,IF(J8="naw.wyw.",V8,0)) -> 0 | X8: =IF(J8="wywiew",V8,IF(J8="naw.wyw.",V8,0)) -> 1 | AC8: 20 | AD8: =ROUNDUP(M8/AC8,0) -> 1 | AE8: =IF(J8="nawiew",AD8,IF(J8="naw.wyw.",S8,0)) -> 0 | AF8: =IF(J8="wywiew",AD8,IF(J8="naw.wyw.",S8,0)) -> 1 | AG8: =ROUNDUP(AD8/3,0) -> 1 | AH8: =IF(J8="nawiew",AG8,IF(J8="naw.wyw.",AG8,0)) -> 0 | AI8: =IF(J8="wywiew",AG8,IF(J8="naw.wyw.",AG8,0)) -> 1 | AN8: =$AN$7 -> 34 | AO8: =ROUNDUP(M8/AN8,0) -> 1 | AP8: =IF(J8="nawiew",AO8,IF(J8="naw.wyw.",AO8,0)) -> 0 | AQ8: =IF(J8="wywiew",AO8,IF(J8="naw.wyw.",AO8,0)) -> 1 | AR8: =ROUNDUP(AO8/2,0) -> 1 | AS8: =IF(J8="nawiew",AR8,IF(J8="naw.wyw.",AR8,0)) -> 0 | AT8: =IF(J8="wywiew",AR8,IF(J8="naw.wyw.",AR8,0)) -> 1 | AY8: =$AY$7 -> 51 | AZ8: =ROUNDUP(M8/AY8,0) -> 1 | BA8: =IF(J8="nawiew",AZ8,IF(J8="naw.wyw.",AZ8,0)) -> 0 | BB8: =IF(J8="wywiew",AZ8,IF(J8="naw.wyw.",AZ8,0)) -> 1 | BC8: =ROUNDUP(AZ8/1,0) -> 1 | BD8: =IF(J8="nawiew",BC8,IF(J8="naw.wyw.",BC8,0)) -> 0 | BE8: =IF(J8="wywiew",BC8,IF(J8="naw.wyw.",BC8,0)) -> 1
B9: =Dane!C38 -> 0.2 | C9: =J9 -> wywiew | D9: =Dane!E38 -> Kuchnia otwarta z kuchenką elektryczną | E9: =IF(Dane!E39="","",Dane!E39) ->  | F9: =Dane!G40 -> 4 | G9: =IF(D9<>0,Dane!J39,0) -> 10.6 | H9: =Dane!L39 -> 2.8 | I9: =G9*H9 -> 30 | J9: wywiew | K9: 50 | L9: 30 | M9: =IF(D9<>0,Dane!S39,0) -> 50 | N9: =IF(J9="nawiew",M9,IF(J9="naw.wyw.",M9,0)) -> 0 | O9: =IF(I9<>0,N9/I9,0) -> 0.00 | P9: =IF(J9="wywiew",M9,IF(J9="naw.wyw.",M9,0)) -> 50 | Q9: =IF(I9<>0,P9/I9,0) -> 1.68 | R9: =$R$7 -> 25 | S9: =ROUNDUP(M9/R9,0) -> 2 | T9: =IF(J9="nawiew",S9,IF(J9="naw.wyw.",S9,0)) -> 0 | U9: 2 | V9: 1 | W9: =IF(J9="nawiew",V9,IF(J9="naw.wyw.",V9,0)) -> 0 | X9: =IF(J9="wywiew",V9,IF(J9="naw.wyw.",V9,0)) -> 1 | AC9: 20 | AD9: 3 | AE9: =IF(J9="nawiew",AD9,IF(J9="naw.wyw.",S9,0)) -> 0 | AF9: =IF(J9="wywiew",AD9,IF(J9="naw.wyw.",S9,0)) -> 3 | AG9: 1 | AH9: 0 | AI9: 1 | AN9: =$AN$7 -> 34 | AO9: 2 | AP9: =IF(J9="nawiew",AO9,IF(J9="naw.wyw.",AO9,0)) -> 0 | AQ9: =IF(J9="wywiew",AO9,IF(J9="naw.wyw.",AO9,0)) -> 2 | AR9: =ROUNDUP(AO9/2,0) -> 1 | AS9: =IF(J9="nawiew",AR9,IF(J9="naw.wyw.",AR9,0)) -> 0 | AT9: =IF(J9="wywiew",AR9,IF(J9="naw.wyw.",AR9,0)) -> 1 | AY9: =$AY$7 -> 51 | AZ9: 1 | BA9: 0 | BB9: 1 | BC9: =ROUNDUP(AZ9/1,0) -> 1 | BD9: 0 | BE9: 1
B10: =Dane!C44 -> 0.3 | C10: wywiew | D10: =Dane!E44 -> Spiżarnia | E10: =IF(Dane!E45="","",Dane!E45) ->  | F10: =Dane!G46 -> 4 | G10: =IF(D10<>0,Dane!J45,0) -> 2 | H10: =Dane!L45 -> 2.8 | I10: 6 | J10: wywiew | K10: 15 | L10: 6 | M10: =IF(D10<>0,Dane!S45,0) -> 15 | N10: 0 | O10: 0.00 | P10: 15 | Q10: 2.68 | R10: 25 | S10: 1 | T10: 0 | U10: 1 | V10: 1 | W10: 0 | X10: 1 | AC10: 20 | AD10: 1 | AE10: 0 | AF10: 1 | AG10: 1 | AH10: 0 | AI10: 1 | AN10: 34 | AO10: 1 | AP10: 0 | AQ10: 1 | AR10: 1 | AS10: 0 | AT10: 1 | AY10: 51 | AZ10: 1 | BA10: 0 | BB10: 1 | BC10: 1 | BD10: 0 | BE10: 1
B11: =Dane!C50 -> 0.4 | C11: nawiew | D11: =Dane!E50 -> Pokój dzienny | E11: =IF(Dane!E51="","",Dane!E51) ->  | F11: =Dane!G52 -> 4 | G11: =IF(D11<>0,Dane!J51,0) -> 30.4 | H11: =Dane!L51 -> 4 | I11: 122 | J11: nawiew | K11: 80 | L11: 122 | M11: =IF(D11<>0,Dane!S51,0) -> 80 | N11: 80 | O11: 0.66 | P11: 0 | Q11: 0.00 | R11: 25 | S11: 4 | T11: 4 | U11: 0 | V11: 2 | W11: 2 | X11: 0 | AC11: 20 | AD11: 4 | AE11: 4 | AF11: 0 | AG11: 2 | AH11: 2 | AI11: 0 | AN11: 34 | AO11: 3 | AP11: 3 | AQ11: 0 | AR11: 2 | AS11: 2 | AT11: 0 | AY11: 51 | AZ11: 2 | BA11: 2 | BB11: 0 | BC11: 2 | BD11: 2 | BE11: 0
B12: =Dane!C56 -> 0.5 | C12: wywiew | D12: =Dane!E56 -> WC (bez wanny lub kabiny prysznicowej) | E12: =IF(Dane!E57="","",Dane!E57) ->  | F12: =Dane!G58 -> 4 | G12: =IF(D12<>0,Dane!J57,0) -> 2.3 | H12: =Dane!L57 -> 4 | I12: 9 | J12: wywiew | K12: 30 | L12: 9 | M12: =IF(D12<>0,Dane!S57,0) -> 30 | N12: 0 | O12: 0.00 | P12: 30 | Q12: 3.26 | R12: 25 | S12: 2 | T12: 0 | U12: 2 | V12: 1 | W12: 0 | X12: 1 | AC12: 20 | AD12: 2 | AE12: 0 | AF12: 2 | AG12: 1 | AH12: 0 | AI12: 1 | AN12: 34 | AO12: 1 | AP12: 0 | AQ12: 1 | AR12: 1 | AS12: 0 | AT12: 1 | AY12: 51 | AZ12: 1 | BA12: 0 | BB12: 1 | BC12: 1 | BD12: 0 | BE12: 1
B13: =Dane!C62 -> 0.6 | C13: nawiew | D13: =Dane!E62 -> Gabinet | E13: =IF(Dane!E63="","",Dane!E63) ->  | F13: =Dane!G64 -> 1 | G13: =IF(D13<>0,Dane!J63,0) -> 9.2 | H13: =Dane!L63 -> 2.8 | I13: 26 | J13: nawiew | K13: 20 | L13: 26 | M13: =IF(D13<>0,Dane!S63,0) -> 30 | N13: 30 | O13: 1.16 | P13: 0 | Q13: 0.00 | R13: 25 | S13: 2 | T13: 2 | U13: 0 | V13: 1 | W13: 1 | X13: 0 | AC13: 20 | AD13: 2 | AE13: 2 | AF13: 0 | AG13: 1 | AH13: 1 | AI13: 0 | AN13: 34 | AO13: 1 | AP13: 1 | AQ13: 0 | AR13: 1 | AS13: 1 | AT13: 0 | AY13: 51 | AZ13: 1 | BA13: 1 | BB13: 0 | BC13: 1 | BD13: 1 | BE13: 0
B14: =Dane!C68 -> 0.7 | C14: wywiew | D14: =Dane!E68 -> Pomieszczenie gospodarcze | E14: =IF(Dane!E69="","",Dane!E69) ->  | F14: =Dane!G70 -> 4 | G14: =IF(D14<>0,Dane!J69,0) -> 7.6 | H14: =Dane!L69 -> 2.7 | I14: 21 | J14: wywiew | K14: 15 | L14: 21 | M14: =IF(D14<>0,Dane!S69,0) -> 15 | N14: 0 | O14: 0.00 | P14: 15 | Q14: 0.73 | R14: 25 | S14: 1 | T14: 0 | U14: 1 | V14: 1 | W14: 0 | X14: 1 | AC14: 20 | AD14: 1 | AE14: 0 | AF14: 1 | AG14: 1 | AH14: 0 | AI14: 1 | AN14: 34 | AO14: 1 | AP14: 0 | AQ14: 1 | AR14: 1 | AS14: 0 | AT14: 1 | AY14: 51 | AZ14: 1 | BA14: 0 | BB14: 1 | BC14: 1 | BD14: 0 | BE14: 1
B15: =Dane!C74 -> 0.8 | C15: nawiew | D15: =Dane!E74 -> Jadalnia - nawiew | E15: =IF(Dane!E75="","",Dane!E75) ->  | F15: =Dane!G76 -> 1 | G15: =IF(D15<>0,Dane!J75,0) -> 7.6 | H15: =Dane!L75 -> 2.7 | I15: 21 | J15: nawiew | K15: 20 | L15: 21 | M15: =IF(D15<>0,Dane!S75,0) -> 20 | N15: 20 | O15: 0.97 | P15: 0 | Q15: 0.00 | R15: 25 | S15: 1 | T15: 1 | U15: 0 | V15: 1 | W15: 1 | X15: 0 | AC15: 20 | AD15: 1 | AE15: 1 | AF15: 0 | AG15: 1 | AH15: 1 | AI15: 0 | AN15: 34 | AO15: 1 | AP15: 1 | AQ15: 0 | AR15: 1 | AS15: 1 | AT15: 0 | AY15: 51 | AZ15: 1 | BA15: 1 | BB15: 0 | BC15: 1 | BD15: 1 | BE15: 0
B16: =Dane!C80 -> 0.9 | C16: nawiew | D16: =Dane!E80 -> Sypialnia | E16: =IF(Dane!E81="","",Dane!E81) ->  | F16: =Dane!G82 -> 2 | G16: =IF(D16<>0,Dane!J81,0) -> 16.7 | H16: =Dane!L81 -> 2.7 | I16: 45 | J16: nawiew | K16: 40 | L16: 45 | M16: =IF(D16<>0,Dane!S81,0) -> 60 | N16: 60 | O16: 1.33 | P16: 0 | Q16: 0.00 | R16: 25 | S16: 3 | T16: 3 | U16: 0 | V16: 1 | W16: 1 | X16: 0 | AC16: 20 | AD16: 3 | AE16: 3 | AF16: 0 | AG16: 1 | AH16: 1 | AI16: 0 | AN16: 34 | AO16: 2 | AP16: 2 | AQ16: 0 | AR16: 1 | AS16: 1 | AT16: 0 | AY16: 51 | AZ16: 2 | BA16: 2 | BB16: 0 | BC16: 2 | BD16: 2 | BE16: 0
B17: =Dane!C86 -> 0.10 | C17: wywiew | D17: =Dane!E86 -> Garderoba | E17: =IF(Dane!E87="","",Dane!E87) ->  | F17: =Dane!G88 -> 2 | G17: =IF(D17<>0,Dane!J87,0) -> 8.6 | H17: =Dane!L87 -> 2.7 | I17: 23 | J17: wywiew | K17: 15 | L17: 23 | M17: =IF(D17<>0,Dane!S87,0) -> 30 | N17: 0 | O17: 0.00 | P17: 30 | Q17: 1.29 | R17: 25 | S17: 2 | T17: 0 | U17: 2 | V17: 1 | W17: 0 | X17: 1 | AC17: 20 | AD17: 2 | AE17: 0 | AF17: 2 | AG17: 1 | AH17: 0 | AI17: 1 | AN17: 34 | AO17: 1 | AP17: 0 | AQ17: 1 | AR17: 1 | AS17: 0 | AT17: 1 | AY17: 51 | AZ17: 1 | BA17: 0 | BB17: 1 | BC17: 1 | BD17: 0 | BE17: 1
B18: =Dane!C92 -> 0.11 | C18: wywiew | D18: =Dane!E92 -> Łazienka | E18: =IF(Dane!E93="","",Dane!E93) ->  | F18: =Dane!G94 -> 4 | G18: =IF(D18<>0,Dane!J93,0) -> 6.4 | H18: =Dane!L93 -> 2.7 | I18: 17 | J18: =IF(D18=0,"n.d.",VLOOKUP(D18,lista_pod_rodzaj_ruchu_powietrza,4,0)) -> wywiew | K18: =IF(J18="n.d.",0,IF(J18="nawiew",F18*20,VLOOKUP(D18,warunki2,3,0))) -> 50 | L18: =I18 -> 17 | M18: =IF(D18<>0,Dane!S93,0) -> 55 | N18: 0 | O18: 0.00 | P18: 55 | Q18: 3.18 | R18: 25 | S18: 3 | T18: 0 | U18: 3 | V18: 1 | W18: =IF(J18="nawiew",V18,IF(J18="naw.wyw.",V18,0)) -> 0 | X18: =IF(J18="wywiew",V18,IF(J18="naw.wyw.",V18,0)) -> 1 | AC18: 20 | AD18: 3 | AE18: 0 | AF18: 3 | AG18: 1 | AH18: 0 | AI18: 1 | AN18: 34 | AO18: 2 | AP18: 0 | AQ18: 2 | AR18: 1 | AS18: 0 | AT18: 1 | AY18: 51 | AZ18: 2 | BA18: 0 | BB18: 2 | BC18: 2 | BD18: 0 | BE18: 2
B19: =Dane!C98 -> 0.12 | C19: nawiew | D19: =Dane!E98 -> Sypialnia | E19: =IF(Dane!E99="","",Dane!E99) ->  | F19: =Dane!G100 -> 1 | G19: =IF(D19<>0,Dane!J99,0) -> 9.9 | H19: =Dane!L99 -> 2.7 | I19: 27 | J19: =IF(D19=0,"n.d.",VLOOKUP(D19,lista_pod_rodzaj_ruchu_powietrza,4,0)) -> nawiew | K19: =IF(J19="n.d.",0,IF(J19="nawiew",F19*20,VLOOKUP(D19,warunki2,3,0))) -> 20 | L19: =I19 -> 27 | M19: =IF(D19<>0,Dane!S99,0) -> 30 | N19: 30 | O19: 1.12 | P19: 0 | Q19: 0.00 | R19: 25 | S19: 2 | T19: 2 | U19: 0 | V19: 1 | W19: =IF(J19="nawiew",V19,IF(J19="naw.wyw.",V19,0)) -> 1 | X19: =IF(J19="wywiew",V19,IF(J19="naw.wyw.",V19,0)) -> 0 | AC19: 20 | AD19: 2 | AE19: 2 | AF19: 0 | AG19: 1 | AH19: 1 | AI19: 0 | AN19: 34 | AO19: 1 | AP19: 1 | AQ19: 0 | AR19: 1 | AS19: 1 | AT19: 0 | AY19: 51 | AZ19: 1 | BA19: 1 | BB19: 0 | BC19: 1 | BD19: 1 | BE19: 0
B20: 0 | C20: n.d. | D20: =COUNTIFS(D8:D19,"<>0") -> 12 | F20: =MAX(F8:F17) -> 4 | G20: =SUM(G8:G19) -> 114.3 | I20: =SUM(I8:I19) -> 354 | N20: =SUM(N8:N19) -> 220 | P20: =SUM(P8:P19) -> 210
B21: =Dane!C121 -> 1.1 | C21: nawiew | D21: =Dane!E121 -> Sypialnia | E21: =IF(Dane!E122="","",Dane!E122) ->  | F21: =Dane!G123 -> 1 | G21: =IF(D21<>0,Dane!J122,0) -> 11.5 | H21: =Dane!L122 -> 2.7 | I21: 31 | J21: =Dane!R121 -> nawiew | K21: =Dane!Q122 -> 20 | L21: =Dane!Q123 -> 31 | M21: =IF(D21<>0,Dane!S122,0) -> 40 | N21: 40 | O21: 1.29 | P21: 0 | Q21: 0.00 | R21: =$R$7 -> 25 | S21: 2 | T21: 2 | U21: =IF(J21="wywiew",S21,IF(J21="naw.wyw.",S21,0)) -> 0 | V21: 1 | W21: =IF(J21="nawiew",V21,IF(J21="naw.wyw.",V21,0)) -> 1 | X21: =IF(J21="wywiew",V21,IF(J21="naw.wyw.",V21,0)) -> 0 | AC21: 20 | AD21: =ROUNDUP(M21/AC21,0) -> 2 | AE21: 2 | AF21: 0 | AG21: =ROUNDUP(AD21/3,0) -> 1 | AH21: =IF(J21="nawiew",AG21,IF(J21="naw.wyw.",AG21,0)) -> 1 | AI21: =IF(J21="wywiew",AG21,IF(J21="naw.wyw.",AG21,0)) -> 0 | AN21: =$AN$7 -> 34 | AO21: =ROUNDUP(M21/AN21,0) -> 2 | AP21: 2 | AQ21: 0 | AR21: 1 | AS21: 1 | AT21: 0 | AY21: =$AY$7 -> 51 | AZ21: =ROUNDUP(M21/AY21,0) -> 1 | BA21: =IF(J21="nawiew",AZ21,IF(J21="naw.wyw.",AZ21,0)) -> 1 | BB21: =IF(J21="wywiew",AZ21,IF(J21="naw.wyw.",AZ21,0)) -> 0 | BC21: 1 | BD21: =IF(J21="nawiew",BC21,IF(J21="naw.wyw.",BC21,0)) -> 1 | BE21: =IF(J21="wywiew",BC21,IF(J21="naw.wyw.",BC21,0)) -> 0
B22: =Dane!C126 -> 1.2 | C22: wywiew | D22: =Dane!E126 -> Łazienka | E22: =IF(Dane!E127="","",Dane!E127) ->  | F22: =Dane!G128 -> 2 | G22: =IF(D22<>0,Dane!J127,0) -> 7.6 | H22: =Dane!L127 -> 2.5 | I22: 19 | J22: =Dane!R126 -> wywiew | K22: =Dane!Q127 -> 50 | L22: =Dane!Q128 -> 19 | M22: =IF(D22<>0,Dane!S127,0) -> 50 | N22: 0 | O22: 0.00 | P22: 50 | Q22: 2.63 | R22: 25 | S22: 2 | T22: 0 | U22: 2 | V22: =ROUNDUP(S22/3,0) -> 1 | W22: 0 | X22: 1 | AC22: 20 | AD22: 3 | AE22: 0 | AF22: 3 | AG22: 1 | AH22: 0 | AI22: 1 | AN22: 34 | AO22: 2 | AP22: 0 | AQ22: 2 | AR22: 1 | AS22: 0 | AT22: 1 | AY22: 51 | AZ22: 1 | BA22: 0 | BB22: 1 | BC22: 1 | BD22: 0 | BE22: 1
B23: =Dane!C132 -> 1.3 | C23: n.d. | D23: =Dane!E132 -> 00:00:00 | E23: =IF(Dane!E133="","",Dane!E133) ->  | F23: =Dane!G134 -> 1 | G23: =IF(D23<>0,Dane!J133,0) -> 0 | H23: =Dane!L133 -> 2.5 | I23: 0 | J23: =Dane!R132 -> n.d. | K23: =Dane!Q133 -> 0 | L23: =Dane!Q134 -> 0 | M23: =IF(D23<>0,Dane!S133,0) -> 0 | N23: 0 | O23: 0.00 | P23: 0 | Q23: 0.00 | R23: 25 | S23: 0 | T23: 0 | U23: 0 | V23: =ROUNDUP(S23/3,0) -> 0 | W23: 0 | X23: 0 | AC23: 20 | AD23: 0 | AE23: 0 | AF23: 0 | AG23: 0 | AH23: 0 | AI23: 0 | AN23: 34 | AO23: 0 | AP23: 0 | AQ23: 0 | AR23: 0 | AS23: 0 | AT23: 0 | AY23: 51 | AZ23: 0 | BA23: 0 | BB23: 0 | BC23: 0 | BD23: 0 | BE23: 0
B24: =Dane!C138 -> 1.4 | C24: n.d. | D24: =Dane!E138 -> 00:00:00 | E24: =IF(Dane!E139="","",Dane!E139) ->  | F24: =Dane!G140 -> 1 | G24: =IF(D24<>0,Dane!J139,0) -> 0 | H24: =Dane!L139 -> 2.5 | I24: 0 | J24: =Dane!R138 -> n.d. | K24: =Dane!Q139 -> 0 | L24: =Dane!Q140 -> 0 | M24: =IF(D24<>0,Dane!S139,0) -> 0 | N24: 0 | O24: 0.00 | P24: 0 | Q24: 0.00 | R24: 25 | S24: 0 | T24: 0 | U24: 0 | V24: =ROUNDUP(S24/3,0) -> 0 | W24: 0 | X24: 0 | AC24: 20 | AD24: 0 | AE24: 0 | AF24: 0 | AG24: 0 | AH24: 0 | AI24: 0 | AN24: 34 | AO24: 0 | AP24: 0 | AQ24: 0 | AR24: 0 | AS24: 0 | AT24: 0 | AY24: 51 | AZ24: 0 | BA24: 0 | BB24: 0 | BC24: 0 | BD24: 0 | BE24: 0
B25: =Dane!C144 -> 1.5 | C25: n.d. | D25: =Dane!E144 -> 00:00:00 | E25: =IF(Dane!E145="","",Dane!E145) ->  | F25: =Dane!G146 -> 1 | G25: =IF(D25<>0,Dane!J145,0) -> 0 | H25: =Dane!L145 -> 2.5 | I25: 0 | J25: =Dane!R144 -> n.d. | K25: =Dane!Q145 -> 0 | L25: =Dane!Q146 -> 0 | M25: =IF(D25<>0,Dane!S145,0) -> 0 | N25: 0 | O25: 0.00 | P25: 0 | Q25: 0.00 | R25: 25 | S25: 0 | T25: 0 | U25: 0 | V25: =ROUNDUP(S25/3,0) -> 0 | W25: 0 | X25: 0 | AC25: 20 | AD25: 0 | AE25: 0 | AF25: 0 | AG25: 0 | AH25: 0 | AI25: 0 | AN25: 34 | AO25: 0 | AP25: 0 | AQ25: 0 | AR25: 0 | AS25: 0 | AT25: 0 | AY25: 51 | AZ25: 0 | BA25: 0 | BB25: 0 | BC25: 0 | BD25: 0 | BE25: 0
B26: =Dane!C150 -> 1.6 | C26: n.d. | D26: =Dane!E150 -> 00:00:00 | E26: =IF(Dane!E151="","",Dane!E151) ->  | F26: =Dane!G152 -> 4 | G26: =IF(D26<>0,Dane!J151,0) -> 0 | H26: =Dane!L151 -> 2.7 | I26: 0 | J26: =Dane!R150 -> n.d. | K26: =Dane!Q151 -> 0 | L26: =Dane!Q152 -> 0 | M26: =IF(D26<>0,Dane!S151,0) -> 0 | N26: 0 | O26: 0.00 | P26: 0 | Q26: 0.00 | R26: 25 | S26: 0 | T26: 0 | U26: 0 | V26: =ROUNDUP(S26/3,0) -> 0 | W26: 0 | X26: 0 | AC26: 20 | AD26: 0 | AE26: 0 | AF26: 0 | AG26: 0 | AH26: 0 | AI26: 0 | AN26: 34 | AO26: 0 | AP26: 0 | AQ26: 0 | AR26: 0 | AS26: 0 | AT26: 0 | AY26: 51 | AZ26: 0 | BA26: 0 | BB26: 0 | BC26: 0 | BD26: 0 | BE26: 0
B27: =Dane!C156 -> 1.7 | C27: n.d. | D27: =Dane!E156 -> 00:00:00 | E27: =IF(Dane!E157="","",Dane!E157) ->  | F27: =Dane!G158 -> 4 | G27: =IF(D27<>0,Dane!J157,0) -> 0 | H27: =Dane!L157 -> 2.75 | I27: 0 | J27: =Dane!R156 -> n.d. | K27: =Dane!Q157 -> 0 | L27: =Dane!Q158 -> 0 | M27: =IF(D27<>0,Dane!S157,0) -> 0 | N27: 0 | O27: 0.00 | P27: 0 | Q27: 0.00 | R27: 25 | S27: 0 | T27: 0 | U27: 0 | V27: =ROUNDUP(S27/3,0) -> 0 | W27: 0 | X27: 0 | AC27: 20 | AD27: 0 | AE27: 0 | AF27: 0 | AG27: 0 | AH27: 0 | AI27: 0 | AN27: 34 | AO27: 0 | AP27: 0 | AQ27: 0 | AR27: 0 | AS27: 0 | AT27: 0 | AY27: 51 | AZ27: 0 | BA27: 0 | BB27: 0 | BC27: 0 | BD27: 0 | BE27: 0
B28: =Dane!C162 -> 1.8 | C28: n.d. | D28: =Dane!E162 -> 00:00:00 | E28: =IF(Dane!E163="","",Dane!E163) ->  | F28: =Dane!G164 -> 3 | G28: =IF(D28<>0,Dane!J163,0) -> 0 | H28: =Dane!L163 -> 2.7 | I28: 0 | J28: =Dane!R162 -> n.d. | K28: =Dane!Q163 -> 0 | L28: =Dane!Q164 -> 0 | M28: =IF(D28<>0,Dane!S163,0) -> 0 | N28: 0 | O28: 0.00 | P28: 0 | Q28: 0.00 | R28: 25 | S28: 0 | T28: 0 | U28: 0 | V28: =ROUNDUP(S28/3,0) -> 0 | W28: 0 | X28: 0 | AC28: 20 | AD28: 0 | AE28: 0 | AF28: 0 | AG28: 0 | AH28: 0 | AI28: 0 | AN28: 34 | AO28: 0 | AP28: 0 | AQ28: 0 | AR28: 0 | AS28: 0 | AT28: 0 | AY28: 51 | AZ28: 0 | BA28: 0 | BB28: 0 | BC28: 0 | BD28: 0 | BE28: 0
D29: =COUNTIFS(D17:D28,"<>0") -> 6 | F29: =MAX(F21:F28) -> 4 | G29: =SUM(G21:G28) -> 19.1 | I29: =SUM(I21:I28) -> 50 | N29: =SUM(N21:N28) -> 40 | P29: =SUM(P21:P28) -> 50 | Y29: =IF(T30<13,1,"więcej") -> więcej | Z29: =IF(T30<19,1,"więcej") -> 1 | AA29: =IF(U30<13,1,"więcej") -> więcej | AB29: =IF(U30<19,1,"więcej") -> 1 | AJ29: =ROUNDUP(AE30/12,0) -> 2 | AK29: =ROUNDUP(AE30/18,0) -> 1 | AL29: =ROUNDUP(AF30/12,0) -> 2 | AM29: =ROUNDUP(AF30/18,0) -> 1 | BF29: =ROUNDUP(BA30/6,0) -> 2 | BG29: =ROUNDUP(BA30/10,0) -> 1 | BH29: =ROUNDUP(BB30/6,0) -> 2 | BI29: =ROUNDUP(BB30/10,0) -> 1
G30: =G20+G29 -> 133 | I30: =I20+I29 -> 404 | N30: =N20+N29 -> 260 | P30: =P20+P29 -> 260 | S30: =SUM(S8:S29) -> 28 | T30: =SUM($T$8:$T$29) -> 14 | U30: =SUM($U$8:$U$29) -> 14 | V30: =W30+X30 -> 15 | W30: =SUM(W8:W29) -> 7 | X30: =SUM(X8:X29) -> 8 | Y30: =IF(Y29="więcej",1,Y29) -> 1 | Z30: =IF(Z29="więcej",1,Z29) -> 1 | AA30: =IF(AA29="więcej",1,AA29) -> 1 | AB30: =IF(AB29="więcej",1,AB29) -> 1 | AD30: =SUM(AD8:AD29) -> 30 | AE30: =SUM(AE8:AE29) -> 14 | AF30: =SUM(AF8:AF29) -> 16 | AG30: =AH30+AI30 -> 15 | AH30: =SUM(AH8:AH29) -> 7 | AI30: =SUM(AI8:AI29) -> 8 | AJ30: =IF(AJ29=1,"12x63","18x63") -> 18x63 | AL30: =IF(AL29=1,"12x63","18x63") -> 18x63 | AO30: =SUM(AO8:AO29) -> 21 | AP30: =SUM(AP8:AP29) -> 10 | AQ30: =SUM(AQ8:AQ29) -> 11 | AR30: =AS30+AT30 -> 15 | AS30: =SUM(AS8:AS29) -> 7 | AT30: =SUM(AT8:AT29) -> 8 | AU30: =IF(AP30<9,"8x75",IF(AP30<13,"12x75","więcej")) -> 12x75 | AW30: =IF(AQ30<9,"8x75",IF(AQ30<13,"12x75","więcej")) -> 12x75 | AZ30: =SUM(AZ8:AZ29) -> 17 | BA30: =SUM(BA8:BA29) -> 8 | BB30: =SUM(BB8:BB29) -> 9 | BC30: =BD30+BE30 -> 17 | BD30: =SUM(BD8:BD29) -> 8 | BE30: =SUM(BE8:BE29) -> 9 | BF30: =IF(BA30<9,"8x75",IF(BA30<13,"12x75","więcej")) -> 8x75 | BH30: =IF(BB30<9,"8x75",IF(BB30<13,"12x75","więcej")) -> 12x75
G31: [m2] | I31: [m3] | N31: =N7 -> [m3/h] | P31: =P7 -> [m3/h] | Y31: =IF((T30-12)<13,IF((T30-12)>0,1,0),"więcej") -> 1 | Z31: =IF((T30-18)<13,0,IF((T30-18)<19,1,"więcej")) -> 0 | AA31: =IF((U30-12)<13,IF((V30-12)>0,1,0),"więcej") -> 1 | AB31: =IF((U30-18)<13,0,IF((U30-18)<19,1,"więcej")) -> 0 | AU31: =IF(AP30<9,AU38,IF(AP30<13,AU40,AU40)) -> Skrzynka rozdzielacza 12xDN75 | AV31: =IF(AU31=AU38,"8x75",IF(AU31=AU40,"12x75","")) -> 12x75 | AW31: =IF(AQ30<9,AU38,IF(AQ30<13,AU40,AU40)) -> Skrzynka rozdzielacza 12xDN75 | AX31: =IF(AW31=AU38,"8x75",IF(AW31=AU40,"12x75","")) -> 12x75 | BF31: =IF(BA30<9,BF38,IF(BA30<13,BF40,BF40)) -> Skrzynka rozdzielacza 8xDN75 | BG31: =IF(BF31=BF38,"8x75",IF(BF31=BF40,"12x75","")) -> 8x75 | BH31: =IF(BB30<9,BF38,IF(BB30<13,BF40,BF40)) -> Skrzynka rozdzielacza 12xDN75 | BI31: =IF(BH31=BF38,"8x75",IF(BH31=BF40,"12x75","")) -> 12x75
T32: =SUM($T$8:$T$29) -> 14 | U32: =SUM($U$8:$U$29) -> 14
W33: 12x63= | Y33: =IF(Y29="więcej",IF(T30<19,0,IF(T30<25,Y30+Y31,IF(T30-18<13,1,0))),IF(T30<13,Y29)) -> 0 | AA33: =IF(AA29="więcej",IF(U30<19,0,IF(U30<25,AA30+AA31,IF(U30-18<13,1,0))),IF(U30<13,AA29)) -> 0 | AU33: =IF(AP30>12,AP30-12,0) -> 0 | AV33: 1 | AW33: =IF(AQ30>12,AQ30-12,0) -> 0 | AX33: 1 | BF33: =IF(BA30>12,BA30-12,0) -> 0 | BG33: 1 | BH33: =IF(BB30>12,BB30-12,0) -> 0 | BI33: 1
N34: =IFERROR(IF(P30/N30<=1,IF(P30/N30>0.95,1,0),0),0) -> 1 | W34: 18x63= | Z34: =IF(Y29=1,0,IF(Y33=2,0,IF(T30<25,Z30+Z31,Z30+Z31))) -> 1 | AB34: =IF(AA29=1,0,IF(AA33=2,0,IF(U30<25,AB30+AB31,AB30+AB31))) -> 1 | AU34: =IF(AU33=0,"",IF(AU33<9,AU38,IF(AU33<13,AU38,"więcej"))) ->  | AV34: =IF(AU34=AU38,"8x75",IF(AU34=AU40,"12x75","")) ->  | AW34: =IF(AW33=0,"",IF(AW33<9,AU38,IF(AW33<13,AU40,"więcej"))) ->  | AX34: =IF(AW34=AU38,"8x75",IF(AW34=AU40,"12x75","")) ->  | BF34: =IF(BF33=0,"",IF(BF33<9,BF38,IF(BF33<13,BF38,"więcej"))) ->  | BG34: =IF(BF34=BF38,"8x75",IF(BF34=BF40,"12x75","")) ->  | BH34: =IF(BH33=0,"",IF(BH33<9,BF38,IF(BH33<13,BF40,"więcej"))) ->  | BI34: =IF(BH34=BF38,"8x75",IF(BH34=BF40,"12x75","")) -> 
J35: 1 | K35: 2 | L35: 3 | M35: 4 | N35: 5 | O35: 6 | P35: 7 | Q35: 8 | R35: 9 | S35: 10 | T35: 11 | U35: 12 | V35: 13 | W35: 14 | X35: 15 | Y35: 16 | Z35: 17 | AA35: 18 | AB35: 19 | AC35: 20 | AD35: 21 | AE35: 22 | AU35: =IF(AU33=0,"",IF(AU33<9,AV38,IF(AU33<13,AV38,"więcej"))) ->  | AV35: =IF(AU35=AV38,"8x75",IF(AU35=AV40,"12x75","")) ->  | AW35: =IF(AW33=0,"",IF(AW33<9,AV38,IF(AW33<13,AV40,"więcej"))) ->  | AX35: =IF(AW35=AV38,"8x75",IF(AW35=AV40,"12x75","")) ->  | BF35: =IF(BF33=0,"",IF(BF33<9,BG38,IF(BF33<13,BG38,"więcej"))) ->  | BG35: =IF(BF35=BG38,"8x75",IF(BF35=BG40,"12x75","")) ->  | BH35: =IF(BH33=0,"",IF(BH33<9,BG38,IF(BH33<13,BG40,"więcej"))) ->  | BI35: =IF(BH35=BG38,"8x75",IF(BH35=BG40,"12x75","")) -> 
B36: Lista N | C36: Nr | D36: Nazwa | E36: Sortowanie_nawiew | J36: Dobór centrali | M36: wydajność | O36: Moc akustyczna | P36: opór | Q36: spr. Ciepło | R36: spr. Wilgoć | S36: Wymiary DxWxS | T36: Rodzaj wymiennika | U36: Odpływ kondensatu | V36: Klapa bypas | W36: Nagrzewnica elektryczna | X36: Sterowanie ręczne | Y36: Sterowanie czasowe | Z36: Sterowanie centralne wg zapotrzebowania | AA36: Sterowanie lokalne według zapotrzebowania | AB36: Sterowanie | AC36: Sterowanie 2 | AD36: Komunikacja | AE36: Króćce | AU36: =IF(AU33>0,AU33,0) -> 0 | AV36: =IF(AU36=0,0,1) -> 0 | AW36: =IF(AW33>0,AW33,0) -> 0 | AX36: =IF(AW36=0,0,1) -> 0 | BF36: =IF(BF33>0,BF33,0) -> 0 | BG36: =IF(BF36=0,0,1) -> 0 | BH36: =IF(BH33>0,BH33,0) -> 0 | BI36: =IF(BH36=0,0,1) -> 0
B37: =IF(C8="nawiew",D8,IF(C8="naw.wyw.",D8,"")) ->  | C37: =IF(C8="nawiew",B8,IF(C8="naw.wyw.",B8,"10")) -> 10 | D37: =IF(C8="nawiew",E8,IF(C8="naw.wyw.",E8,"")) ->  | E37: =_xlfn.SORTBY(C37:C56,listaN,-1) -> 0.9 | J37: ='Elementy DN63'!D3 -> Vitovent 300-W 325m3/h lewa | M37: 325 | N37: =IF($N$30<M37*0.93,1,0) -> 1 | O37: 41 | P37: 250 | Q37: 91 | R37: n.d. | S37: 560 x 695 x 750 | T37: Krzyżowy | U37: Tak | V37: Tak | W37: Tak, 1kW | X37: - | Y37: A | Z37: A+ | AA37: A+ | AB37: =J70 -> Moduł obsługowy ścienny LB1 | AD37: =J71 -> Przewód połączeniowy Vitocal (WO1C) | AE37: 160 | AN37: Rozdzielacz | AY37: Rozdzielacz
C38: 10 | E38: 0.12 | J38: ='Elementy DN63'!D4 -> Vitovent 300-W 325m3/h prawa | M38: 325 | N38: =IF($N$30<M38*0.93,1,0) -> 1 | O38: 41 | P38: 250 | Q38: 91 | R38: n.d. | S38: 560 x 695 x 750 | T38: Krzyżowy | U38: Tak | V38: Tak | W38: Tak, 1kW | X38: - | Y38: A | Z38: A+ | AA38: A+ | AB38: =J70 -> Moduł obsługowy ścienny LB1 | AD38: =J71 -> Przewód połączeniowy Vitocal (WO1C) | AE38: 160 | AO38: 8 | AP38: =AO38*35 -> 280 | AU38: ='Elementy DN75&90 2024-09'!D22 -> Skrzynka rozdzielacza 8xDN75 | AV38: ='Elementy DN75&90 2024-09'!D27 -> Bramka internetowa Vitoconnect V | AZ38: 8 | BA38: =AZ38*35 -> 280 | BF38: ='Elementy DN75&90 2024-09'!D22 -> Skrzynka rozdzielacza 8xDN75 | BG38: ='Elementy DN75&90 2024-09'!O27 -> 0
C39: 10 | E39: 1.1 | J39: ='Elementy DN63'!D5 -> Vitovent 300-W 400m3/h lewa | M39: 400 | N39: 1 | O39: 50 | P39: 250 | Q39: 92 | R39: n.d. | S39: 560 x 695 x 750 | T39: Krzyżowy | U39: Tak | V39: Tak | W39: Tak, 1kW | X39: - | Y39: A | Z39: A+ | AA39: A+ | AB39: =J70 -> Moduł obsługowy ścienny LB1 | AD39: =J71 -> Przewód połączeniowy Vitocal (WO1C) | AE39: 180
B40: Pokój dzienny | C40: 0.4 | E40: 0.4 | J40: ='Elementy DN63'!D6 -> Vitovent 300-W 400m3/h prawa | M40: 400 | N40: 1 | O40: 50 | P40: 250 | Q40: 92 | R40: n.d. | S40: 560 x 695 x 750 | T40: Krzyżowy | U40: Tak | V40: Tak | W40: Tak, 1kW | X40: - | Y40: A | Z40: A+ | AA40: A+ | AB40: =J70 -> Moduł obsługowy ścienny LB1 | AD40: =J71 -> Przewód połączeniowy Vitocal (WO1C) | AE40: 180 | AO40: 12 | AP40: =AO40*35 -> 420 | AU40: ='Elementy DN75&90 2024-09'!D24 -> Skrzynka rozdzielacza 12xDN75 | AV40: ='Elementy DN75&90 2024-09'!D29 -> 0 | AZ40: 12 | BA40: =AZ40*35 -> 420 | BF40: ='Elementy DN75&90 2024-09'!D24 -> Skrzynka rozdzielacza 12xDN75 | BG40: ='Elementy DN75&90 2024-09'!O29 -> 0
C41: 10 | E41: 0.8 | J41: ='Elementy DN63'!D7 -> Vitovent 300-W 225m3/h lewa | M41: 225 | N41: 0 | O41: 39 | P41: 250 | Q41: 92 | R41: n.d. | S41: 455 x 650 x 600 | T41: Krzyżowy | U41: Tak | V41: Tak | W41: Tak, 1kW | X41: - | Y41: A | Z41: A+ | AA41: A+ | AB41: =J70 -> Moduł obsługowy ścienny LB1 | AD41: =J71 -> Przewód połączeniowy Vitocal (WO1C) | AE41: 125
B42: Gabinet | C42: 0.6 | E42: 0.6 | J42: ='Elementy DN63'!D8 -> Vitovent 300-W 225m3/h prawa | M42: 225 | N42: 0 | O42: 39 | P42: 250 | Q42: 92 | R42: n.d. | S42: 455 x 650 x 600 | T42: Krzyżowy | U42: Tak | V42: Tak | W42: Tak, 1kW | X42: - | Y42: A | Z42: A+ | AA42: A+ | AB42: =J70 -> Moduł obsługowy ścienny LB1 | AD42: =J71 -> Przewód połączeniowy Vitocal (WO1C) | AE42: 125 | AU42: =IF(AV42=180,'Elementy DN75&90 2024-09'!$D$39,IF(AV42=160,'Elementy DN75&90 2024-09'!$D$38,'Elementy DN75&90 2024-09'!$D$37)) -> Element przyłączeniowy rozdzielacza DN180 | AV42: =VLOOKUP($Y$57,J37:AE45,22,0) -> 180 | BF42: =IF(BG42=180,'Elementy DN75&90 2024-09'!$D$39,IF(BG42=160,'Elementy DN75&90 2024-09'!$D$38,'Elementy DN75&90 2024-09'!$D$37)) -> Element przyłączeniowy rozdzielacza DN180 | BG42: =VLOOKUP($Y$57,J37:AE45,22,0) -> 180
C43: 10 | E43: 10 | J43: ='Elementy DN63'!D9 -> Vitovent 300-W 600m3/h lewa | M43: 600 | N43: =IF($N$30<M43*0.93,1,0) -> 1 | O43: 49 | P43: 250 | Q43: 92 | R43: n.d. | S43: 660 x 800 x 850 | T43: Krzyżowy | U43: Tak | V43: Tak | W43: Tak, 1kW | X43: - | Y43: A | Z43: A | AA43: A+ | AB43: =J70 -> Moduł obsługowy ścienny LB1 | AD43: =J71 -> Przewód połączeniowy Vitocal (WO1C) | AE43: 180
B44: Jadalnia - nawiew | C44: 0.8 | E44: 10 | J44: ='Elementy DN63'!D10 -> Vitovent 300-W 600m3/h prawa | M44: 600 | N44: 1 | O44: 49 | P44: 250 | Q44: 92 | R44: n.d. | S44: 660 x 800 x 850 | T44: Krzyżowy | U44: Tak | V44: Tak | W44: Tak, 1kW | X44: - | Y44: A | Z44: A | AA44: A+ | AB44: =J70 -> Moduł obsługowy ścienny LB1 | AD44: =J71 -> Przewód połączeniowy Vitocal (WO1C) | AE44: 180
B45: Sypialnia | C45: 0.9 | E45: 10 | J45: ='Elementy DN63'!D11 -> Vitoair FS 300E MA 300m3/h | M45: 300 | N45: =IF($N$30<M45*0.93,1,0) -> 1 | O45: 39 | P45: 215 | Q45: 80 | R45: 74 | S45: 1254 x 244 x 800 | T45: Krzyżowy, entalpiczny | U45: Nie | V45: Tak | W45: Opcja 1,8kW | X45: - | Y45: A | Z45: A | AA45: A | AB45: =J68 -> Vitotrol 300-E | AC45: =J69 -> Przełącznik 4-stopniowy | AD45: Przewód komunikacyjny Can-Bus 5m | AE45: 160
C46: 10 | E46: 10 | J46: =IF(N37=0,"",J37) -> Vitovent 300-W 325m3/h lewa | N46: =N37 -> 1
C47: 10 | E47: 10 | J47: Vitovent 300-W 325m3/h prawa | N47: =N38 -> 1 | Y47: =IF(Y33>0,"12x63",IF(Y33=0,IF(Z34>1,"18x63",""))) ->  | Z47: =IF(Z33>0,"12x63","") ->  | AA47: =IF(AA33>0,"12x63",IF(AA33=0,IF(AB34>1,"18x63",""))) -> 
B48: Sypialnia | C48: 0.12 | E48: 10 | J48: Vitovent 300-W 400m3/h lewa | N48: 1 | Y48: =IF(Y33>1,"12x63",IF(Z34>=1,"18x63","")) -> 18x63 | AA48: =IF(AA33>1,"12x63",IF(AB34>=1,"18x63","")) -> 18x63
B49: =IF(C21="nawiew",D21,IF(C21="naw.wyw.",D21,"")) -> Sypialnia | C49: =IF(C21="nawiew",B21,IF(C21="naw.wyw.",B21,"10")) -> 1.1 | E49: 10 | J49: Vitovent 300-W 400m3/h prawa | N49: 1
C50: 10 | E50: 10 | N50: 0
C51: 10 | E51: 10 | N51: 0
C52: 10 | E52: 10 | J52: Vitovent 300-W 600m3/h lewa | N52: 1
C53: 10 | E53: 10 | J53: Vitovent 300-W 600m3/h prawa | N53: 1
C54: 10 | E54: 10 | J54: =IF(N45=0,"",J45) -> Vitoair FS 300E MA 300m3/h | N54: =N45 -> 1
C55: 10 | E55: 10
C56: 10 | E56: 10 | J56: =_xlfn.SORTBY(J46:J54,N46:N54,-1) -> Vitovent 300-W 325m3/h lewa | N56: Wybor 63: | Y56: Wybor 75: | AN56: Wybor 90:
J57: Vitovent 300-W 325m3/h prawa | N57: ='System DN63'!X137 -> Vitoair FS 300E MA 300m3/h | Y57: ='System DN75'!X137 -> Vitovent 300-W 400m3/h lewa | AN57: ='System DN90'!X137 -> Vitovent 300-W 400m3/h lewa
B58: =21-COUNTBLANK(listaN) -> 7 | J58: Vitovent 300-W 400m3/h lewa | N58: Króćce 63 | Y58: Króćce 75 | AN58: Króćce 75
J59: Vitovent 300-W 400m3/h prawa | N59: =VLOOKUP(N57,J37:AE45,22,0) -> 160 | Y59: =VLOOKUP(Y57,J37:AE45,22,0) -> 180 | AN59: =VLOOKUP(AN57,J37:AE45,22,0) -> 180
B60: Lista W | C60: Nr | D60: Nazwa | E60: Sortowanie_wywiew | J60: Vitovent 300-W 600m3/h lewa
B61: =IF(C8="wywiew",D8,IF(C8="naw.wyw.",D8,"")) -> Wiatrołap | C61: =IF(C8="wywiew",B8,IF(C8="naw.wyw.",B8,"10")) -> 0.1 | D61: =IF(C8="wywiew",E8,IF(C8="naw.wyw.",E8,"")) ->  | E61: =_xlfn.SORTBY(C61:C80,B61:B80,-1) -> 0.1 | J61: Vitovent 300-W 600m3/h prawa
B62: Kuchnia otwarta z kuchenką elektryczną | C62: 0.2 | E62: 0.5 | J62: Vitoair FS 300E MA 300m3/h
B63: Spiżarnia | C63: 0.3 | E63: 0.3
C64: 10 | E64: 0.7
B65: WC (bez wanny lub kabiny prysznicowej) | C65: 0.5 | E65: 0.11
C66: 10 | E66: 1.2
B67: Pomieszczenie gospodarcze | C67: 0.7 | E67: 0.2 | J67: Sterowanie | O67: Vitoair | P67: Vitovent | Q67: spr. | V67: Sterowanie | AA67: Vitoair | AB67: Vitovent | AC67: spr. | AK67: Sterowanie | AP67: Vitoair | AQ67: Vitovent | AR67: spr.
C68: 10 | E68: 0.10 | J68: Vitotrol 300-E | O68: x | Q68: =IF($N$57="Vitoair FS 300E MA 300m3/h",1,0) -> 1 | V68: Vitotrol 300-E | AA68: x | AC68: =IF($Y$57="Vitoair FS 300E MA 300m3/h",1,0) -> 0 | AK68: Vitotrol 300-E | AP68: x | AR68: =IF($Y$57="Vitoair FS 300E MA 300m3/h",1,0) -> 0
C69: 10 | E69: 10 | J69: Przełącznik 4-stopniowy | O69: x | Q69: =IF($N$57="Vitoair FS 300E MA 300m3/h",1,0) -> 1 | V69: Przełącznik 4-stopniowy | AA69: x | AC69: =IF($Y$57="Vitoair FS 300E MA 300m3/h",1,0) -> 0 | AK69: Przełącznik 4-stopniowy | AP69: x | AR69: =IF($Y$57="Vitoair FS 300E MA 300m3/h",1,0) -> 0
B70: Garderoba | C70: 0.10 | E70: 10 | J70: Moduł obsługowy ścienny LB1 | P70: x | Q70: =IF($N$57<>"Vitoair FS 300E MA 300m3/h",1,0) -> 0 | V70: Moduł obsługowy ścienny LB1 | AB70: x | AC70: =IF($Y$57<>"Vitoair FS 300E MA 300m3/h",1,0) -> 1 | AK70: Moduł obsługowy ścienny LB1 | AQ70: x | AR70: =IF($Y$57<>"Vitoair FS 300E MA 300m3/h",1,0) -> 1
B71: Łazienka | C71: 0.11 | E71: 10 | J71: Przewód połączeniowy Vitocal (WO1C) | P71: x | Q71: =IF($N$57<>"Vitoair FS 300E MA 300m3/h",1,0) -> 0 | V71: Przewód połączeniowy Vitocal (WO1C) | AB71: x | AC71: =IF($Y$57<>"Vitoair FS 300E MA 300m3/h",1,0) -> 1 | AK71: Przewód połączeniowy Vitocal (WO1C) | AQ71: x | AR71: =IF($Y$57<>"Vitoair FS 300E MA 300m3/h",1,0) -> 1
C72: 10 | E72: 10 | J72: Sterowanie przez aplikację ViCare | V72: Sterowanie przez aplikację ViCare | AK72: Sterowanie przez aplikację ViCare
B73: =IF(C21="wywiew",D21,IF(C21="naw.wyw.",D21,"")) ->  | C73: =IF(C21="wywiew",B21,IF(C21="naw.wyw.",B21,"10")) -> 10 | E73: 10 | J73: Bramka internetowa Vitoconnect V | V73: Bramka internetowa Vitoconnect V | AB73: x | AC73: =IF($Y$57<>"Vitoair FS 300E MA 300m3/h",1,0) -> 1 | AK73: Bramka internetowa Vitoconnect V
B74: Łazienka | C74: 1.2 | E74: 10 | J74: =IF(N57<>"Vitoair FS 300E MA 300m3/h",J70,J68) -> Vitotrol 300-E | N74: Wybor: | V74: =IF(Y57<>"Vitoair FS 300E MA 300m3/h",V70,V68) -> Moduł obsługowy ścienny LB1 | Z74: Wybor: | AK74: =IF(AN57<>"Vitoair FS 300E MA 300m3/h",AK70,AK68) -> Moduł obsługowy ścienny LB1 | AO74: Wybor:
C75: 10 | E75: 10 | J75: =IF(N57<>"Vitoair FS 300E MA 300m3/h",J71,J69) -> Przełącznik 4-stopniowy | N75: ='System DN63'!X154 -> Sterowanie przez aplikację ViCare | V75: =IF(Y57<>"Vitoair FS 300E MA 300m3/h",V71,V69) -> Przewód połączeniowy Vitocal (WO1C) | Z75: ='System DN75'!X154 -> Moduł obsługowy ścienny LB1 | AK75: =IF(AN57<>"Vitoair FS 300E MA 300m3/h",AK71,AK69) -> Przewód połączeniowy Vitocal (WO1C) | AO75: ='System DN90'!X154 -> Przewód połączeniowy Vitocal (WO1C)
C76: 10 | E76: 10 | J76: =IF(N57="Vitoair FS 300E MA 300m3/h","Sterowanie przez aplikację ViCare","") -> Sterowanie przez aplikację ViCare | V76: =IF(Z57="Vitoair FS 300E MA 300m3/h","Sterowanie przez aplikację ViCare","") ->  | AK76: =IF(AO57="Vitoair FS 300E MA 300m3/h","Sterowanie przez aplikację ViCare","") -> 
C77: 10 | E77: 10 | J77: =IF(N57="Vitoair FS 300E MA 300m3/h","Przewód komunikacyjny Can-Bus 5m","") -> Przewód komunikacyjny Can-Bus 5m | V77: =IF(Y57="Vitoair FS 300E MA 300m3/h","Przewód komunikacyjny Can-Bus 5m","") ->  | AK77: =IF(AN57="Vitoair FS 300E MA 300m3/h","Przewód komunikacyjny Can-Bus 5m","") -> 
C78: 10 | E78: 10 | J78: =IF(N57="Vitoair FS 300E MA 300m3/h","Bez komunikacji z pompą ciepła","") -> Bez komunikacji z pompą ciepła | V78: =IF(Y57="Vitoair FS 300E MA 300m3/h","Bez komunikacji z pompą ciepła","") ->  | AK78: =IF(AN57="Vitoair FS 300E MA 300m3/h","Bez komunikacji z pompą ciepła","") -> 
C79: 10 | E79: 10 | V79: =IF(Y57<>"Vitoair FS 300E MA 300m3/h",V73,"") -> Bramka internetowa Vitoconnect V
C80: 10 | E80: 10
J81: Sprawdzenie kompatybilności | V81: Sprawdzenie kompatybilności | AK81: Sprawdzenie kompatybilności
B82: =21-COUNTBLANK(B61:B80) -> 9 | J82: =IF(N57="Vitoair FS 300E MA 300m3/h",IF(N75=J68,"",IF(N75=J69,"",IF(N75=J72,"","Uwaga! Niewłaściwe dopasowanie sposobu sterowania do wybranej centrali"))),IF(N75=J70,"",IF(N75=J71,"","Uwaga! Niewłaściwe dopasowanie sposobu sterowania do wybranej centrali"))) ->  | V82: =IF(Y57="Vitoair FS 300E MA 300m3/h",IF(Z75=V68,"",IF(Z75=V69,"",IF(Z75=V72,"","Uwaga! Niewłaściwe dopasowanie sposobu sterowania do wybranej centrali"))),IF(Z75=V70,"",IF(Z75=V73,"",IF(Z75=V71,"","Uwaga! Niewłaściwe dopasowanie sposobu sterowania do wybranej centrali")))) ->  | AK82: =IF(AN57="Vitoair FS 300E MA 300m3/h",IF(AO75=AK68,"",IF(AO75=AK69,"",IF(AO75=AK72,"","Uwaga! Niewłaściwe dopasowanie sposobu sterowania do wybranej centrali"))),IF(AO75=AK70,"",IF(AO75=AK71,"","Uwaga! Niewłaściwe dopasowanie sposobu sterowania do wybranej centrali"))) -> 
J83: =IF(N57=J56,"",IF(N57=J57,"",IF(N57=J58,"",IF(N57=J59,"",IF(N57=J60,"",IF(N57=J61,"",IF(N57=J64,"",IF(N57=J63,"",IF(N57=J62,"","Uwaga! Błąd doboru centrali"))))))))) -> 
V84: =IF(Y57=J56,"",IF(Y57=J57,"",IF(Y57=J58,"",IF(Y57=J59,"",IF(Y57=J60,"",IF(Y57=J61,"",IF(Y57=J62,"",IF(Y57=J63,"",IF(Y57=J64,"","Uwaga! Błąd doboru centrali"))))))))) ->  | AK84: =IF(AN57=J56,"",IF(AN57=J57,"",IF(AN57=J58,"",IF(AN57=J59,"",IF(AN57=J60,"",IF(AN57=J61,"",IF(AN57=J62,"",IF(AN57=J63,"",IF(AN57=J64,"","Uwaga! Błąd doboru centrali"))))))))) -> 
B87: Koszty eksploatacyjne wentylacji grawitacyjnej
B88: Kubatura | D88: =Dane!H184 -> 404 | E88: m3
B89: Wymiana grawitacja | D89: =D88*0.5 -> 201.825 | E89: m3/h
B91: X | C91: =$D$89*1.2/3600*D91*24*31 -> 575.6049 | D91: =$J$92-E91 -> 11.5 | E91: 8.5 | G91: średnie miesięczne temeratury dla Wawy 1981-2010
B92: XI | C92: =$D$89*1.2/3600*D92*24*31 -> 845.88894 | D92: 16.9 | E92: 3.1 | G92: dla budynku zakładamy | J92: 20 | K92: [stC]
B93: XII | C93: 1036.08882 | D93: 20.7 | E93: -0.7
B94: I | C94: 1046.09934 | D94: 20.9 | E94: -0.9
B95: II | C95: 1051.1046 | D95: 21 | E95: -1
B96: III | C96: 865.90998 | D96: 17.3 | E96: 2.7
B97: IV | C97: 570.59964 | D97: 11.4 | E97: 8.6
B99: Suma | C99: =SUM(C91:C98) -> 5991.30 | D99: [kWh]
B104: Koszty eksploatacyjne wentylacji mechanicznej
B105: Q=V/3600*1,2*1*deltaT
B106: V obliczony = | C106: =D88 -> 403.65 | D106: =D90 -> 0 | E106: 12h z wydajnością 50% i 12h z wydajnością 100%
B108: 1. Koszt - sprawność reku, różnicę trzeba zagrzać
B109: sprawność całoroczna (z karty ErP) | C109: 0.85
B110: =1.5*365/2*C106*(1-C109)*3*1.2*24/3600 -> 397.797075 | C110: [kWh/rok] | D110: dla deltaT=3K
B112: 2. Koszt - praca wentylatorów
B113: Moc wentylatorów trybie normalnym | C113: 27 | D113: [W] | E113: 1/2 roku = 1/2*8650h | G113: =C113*8760/2000*0.85*2 -> 201.042 | H113: [kWh]
B114: Moc wentylatorów w trybie zredukowanym | C114: 27 | D114: [W] | E114: 1/2 roku = 1/2*8650h | G114: =C114*8760/2000*0.9*2 -> 212.868 | H114: [kWh]
F116: Suma | G116: =SUM(G113:G115) -> 413.91 | H116: [kWh] | J116: =G116*0.62 -> 256.6242
B118: 3. Koszt - praca grzałki elektrycznej | E118: średnia ważona | G118: 1/2 z 50% wydajnością i 1/2 ze 100% wydajnością
B119: Kraków od 0 do -5stC | C119: =1868-540 -> 1328 | D119: [h] | E119: -1 | G119: =($C$125/2*1.2/3600*($C$126-E119)*C119/2)+($C$125*1.2/3600*($C$126-E119)*C119/2) -> 134.01 | H119: [kWh]
B120: Kraków od -5 do -10stC | C120: =540-108 -> 432 | D120: [h] | E120: -6.5 | G120: =($C$125/2*1.2/3600*($C$126-E120)*C120/2)+($C$125*1.2/3600*($C$126-E120)*C120/2) -> 283.36 | H120: [kWh]
B121: Kraków od -10 do -20stC | C121: 108 | D121: [h] | E121: -12 | G121: =($C$125/2*1.2/3600*($C$126-E121)*C121/2)+($C$125*1.2/3600*($C$126-E121)*C121/2) -> 130.78 | H121: [kWh]
F123: Suma | G123: =SUM(G119:G122) -> 548.16 | H123: [kWh]
B124: Q=V/3600*1,2*1*deltaT
B125: V obliczony = | C125: =D88 -> 404 | D125: [m3/h] | F125: krotność dla rekuperacji
C126: 0 | D126: [stC] | F126: temperatura zabez. przed zamar.

Sheet Dane techniczne (hidden)
D2: 300-W | E2: 300-W | F2: 300-W | G2: 300-W | H2: 300-W | I2: 300-F | J2: 300-C | K2: FS
B3: Model | D3: H32S A300 | E3: H32S A400 | F3: H32S C325 | G3: H32S C400 | H3: H32S A600 | I3: H32S B280 | J3: 300-C | K3: 300E MA
B4: Wydajność masymalna | C4: m3/h | D4: 300 | E4: 400 | F4: 325 | G4: 400 | H4: 600 | I4: 280 | J4: 150 | K4: 300
B5: Jednostkowe zużycie energii - klimat umiarkowany
B6: - sterowanie czasowe | C6: kWh/m2*rok | D6: -38 | E6: -37 | F6: -42 | G6: -41 | I6: -36 | J6: -34 | K6: -37
B7: - sterowanie centralne zapotrzebowaniem | C7: kWh/m2*rok | D7: -40 | E7: -39 | F7: -43 | G7: -43 | I7: -38 | J7: -36 | K7: -39
B8: - sterowanie lokalne zapotrzebowaniem | C8: kWh/m2*rok | D8: -43 | E8: -42 | F8: -45 | G8: -45 | I8: -42 | J8: -41 | K8: -42
B9: Jednostkowe zużycie energii - klimat zimny
B10: - sterowanie czasowe | C10: kWh/m2*rok | D10: -76 | E10: -74 | F10: -80 | G10: -81 | I10: -74 | J10: -71 | K10: -73
B11: - sterowanie centralne zapotrzebowaniem | C11: kWh/m2*rok | D11: -78 | E11: -77 | F11: -82 | G11: -82 | I11: -77 | J11: -74 | K11: -75
B12: - sterowanie lokalne zapotrzebowaniem | C12: kWh/m2*rok | D12: -82 | E12: -81 | F12: -84 | G12: -85 | I12: -81 | J12: -79 | K12: -79
B13: Klasa energetyczna - klimat umiarkowany
B14: - sterowanie czasowe | D14: A | E14: A | F14: A | G14: A | H14: A | I14: A | J14: A | K14: A
B15: - sterowanie centralne zapotrzebowaniem | D15: A | E15: A | F15: A+ | G15: A+ | H15: A | I15: A | J15: A | K15: A
B16: - sterowanie lokalne zapotrzebowaniem | D16: A+ | E16: A+ | F16: A+ | G16: A+ | H16: A+ | I16: A+ | J16: A | K16: A
B17: Srawność odzysku ciepła UOC | C17: % | D17: 0.86 | E17: 0.85 | F17: 91% | G17: 92% | H17: 92% | I17: 89% | J17: 83% | K17: 80%
B18: Sprawność odzysku wilgoci | C18: % | F18: n.d. | G18: n.d. | H18: n.d. | I18: n.d. | J18: n.d. | K18: 74%
B19: Maksymalna wartość natężenia przepływu | C19: m3/h | D19: 300 | E19: 400 | F19: 325 | G19: 400 | H19: 600 | I19: 280 | J19: 150 | K19: 300
B20: Efektywna moc wejściowa -max. pobór mocy wentylatorów | C20: W | D20: 92 | E20: 142 | F20: 145 | G20: 193 | H20: 288 | I20: 138 | J20: 64 | K20: 150
B21: Poziom mocy akustycznej L(WA) | C21: dB(A) | D21: 44 | E21: 48 | F21: 41 | G21: 50 | H21: 49 | I21: 44 | J21: 38 | K21: 39
B22: Jednostkowy pobór mocy JPM | C22: W/m3/h | D22: 0.21 | E22: 0.24 | F22: 0.15 | G22: 0.17 | H22: 0.25 | I22: 0.32 | J22: 0.33 | K22: 0.19
B23: Maksymalny wewnętrzny przeciek powietrza | C23: % | D23: 0.8 | E23: 0.4 | F23: 2.85 | G23: 2.85 | I23: 0.54 | J23: 0.9 | K23: 0.9
B24: Maksymalny zewnętrzny przeciek powietrza | C24: % | D24: 2.1 | E24: 1.3 | F24: 2.85 | G24: 2.85 | I24: 0.99 | J24: 2.3 | K24: 1.3
B25: Roczne zużycie energii elektrycznej - klimat umiarkowany
B26: - sterowanie czasowe | C26: kWh/100m2*rok | D26: 282 | E26: 316 | F26: 215 | G26: 237 | I26: 407 | J26: 418 | K26: 260
B27: - sterowanie centralne zapotrzebowaniem | C27: kWh/100m2*rok | D27: 235 | E27: 262 | F27: 181 | G27: 199 | I27: 335 | J27: 344 | K27: 218
B28: - sterowanie lokalne zapotrzebowaniem | C28: kWh/100m2*rok | D28: 156 | E28: 172 | F28: 124 | G28: 135 | I28: 214 | J28: 220 | K28: 105
B29: Roczne zużycie energii elektrycznej - klimat zimny
B30: - sterowanie czasowe | C30: kWh/100m2*rok | D30: 819 | E30: 853 | F30: 752 | G30: 774 | I30: 944 | J30: 955 | K30: 797
B31: - sterowanie centralne zapotrzebowaniem | C31: kWh/100m2*rok | D31: 772 | E31: 799 | F31: 718 | G31: 736 | I31: 872 | J31: 881 | K31: 754
B32: - sterowanie lokalne zapotrzebowaniem | C32: kWh/100m2*rok | D32: 693 | E32: 709 | F32: 661 | G32: 672 | I32: 751 | J32: 757 | K32: 683
B33: Roczne oszczędności w ogrzewaniu - klimat umiarkowany
B34: - sterowanie czasowe | C34: kWh/100m2*rok | D34: 4477 | E34: 4447 | F34: 4628 | G34: 4658 | I34: 4562 | J34: 4386 | K34: 4295
B35: - sterowanie centralne zapotrzebowaniem | C35: kWh/100m2*rok | D35: 4521 | E35: 4494 | F35: 4657 | G35: 4684 | I35: 4597 | J35: 4440 | K35: 4359
B36: - sterowanie lokalne zapotrzebowaniem | C36: kWh/100m2*rok | D36: 4611 | E36: 4590 | F36: 4714 | G36: 4735 | I36: 4669 | J36: 4548 | K36: 4486
B37: Roczne oszczędności w ogrzewaniu - klimat zimny
B38: - sterowanie czasowe | C38: kWh/100m2*rok | D38: 8758 | E38: 8699 | F38: 9054 | G38: 9133 | I38: 8924 | J38: 8580 | K38: 8403
B39: - sterowanie centralne zapotrzebowaniem | C39: kWh/100m2*rok | D39: 8845 | E39: 8792 | F39: 9110 | G39: 9163 | I39: 8993 | J39: 8686 | K39: 8527
B40: - sterowanie lokalne zapotrzebowaniem | C40: kWh/100m2*rok | D40: 9019 | E40: 8979 | F40: 9222 | G40: 9263 | I40: 9133 | J40: 8898 | K40: 8776
B41: Wyposażenie
B42: Grzałka elektryczna powietrza zewnętrznego | D42: Tak | E42: Tak | F42: Tak | G42: Tak | H42: Tak | I42: Tak | J42: Tak | K42: Opcja
B43: Klasa by-pass | D43: Tak | E43: Tak | F43: Tak | G43: Tak | H43: Tak | I43: Tak | J43: Tak | K43: Tak, double
B44: Regulator w komplecie ? | D44: Nie | E44: Nie | F44: Nie | G44: Nie | H44: Nie | I44: Nie | J44: Nie | K44: ViCare
B45: Typ regulatora | D45: LB1 | E45: LB1 | F45: LB1 | G45: LB1 | H45: LB1 | I45: n.d. | J45: LB1 | K45: App, 300-E
B46: Sterowanie z poziomu pompy ciepła | D46: Tak | E46: Tak | F46: Tak | G46: Tak | H46: Tak | I46: Tak | J46: Tak | K46: Tak, E3
B47: Sterowanie z kotła | D47: Nie | E47: Nie | F47: Nie | G47: Nie | H47: Nie | I47: Nie | J47: Nie | K47: Nie
B48: Wymiary
B49: Szerokość | C49: mm | D49: 677 | E49: 677 | F49: 750 | G49: 750 | H49: 850 | I49: 400 | K49: 808
B50: Wysokość | C50: mm | D50: 843 | E50: 843 | F50: 650 | G50: 650 | H50: 800 | I50: 1486 | K50: 248
B51: Głębokość | C51: mm | D51: 540 | E51: 540 | F51: 560 | G51: 560 | H51: 660 | I51: 680 | K51: 1254
B52: Masa całkowita | C52: kg | D52: 39 | E52: 39 | F52: 41 | G52: 42.5 | H52: 53 | I52: 80 | K52: 51
B53: Sprawność energetyczna wg EN308:1997 | C53: % | F53: do 98 | G53: do 99 | H53: do 99

Sheet Zmiany
M3: Data: | N3: =TODAY() -> 2024-09-11 | R3: =Dane!S3 -> wersja 17/09/2024
C8: Program doborowy centralnej wentylacji mechanicznej z odzyskiem ciepła
C11: Raport wprowadzonych zmian
C16: Termin zmiany | F16: Komentarz | R16: Status
C18: 2024-09-17 | F18: Aktualizacja oferty elementów system dystrybucji powietrza DN75 i DN90 | R18: =IF(S18="istotna",1,0.1) -> 1 | S18: istotna
C21: 2024-04-04 | F21: Aktualizacja cen kwiecień 2024 | R21: =IF(S21="istotna",1,0.1) -> 1 | S21: istotna
C24: 2023-11-24 | F24: Poprawki i aktualizacje danych w systemie DN90 | R24: =IF(S24="istotna",1,0.1) -> 1 | S24: istotna
C27: 2023-11-02 | F27: Nowe numery i ceny kanałów wentylacyjnych DN63, DN75 i DN90 | R27: =IF(S27="istotna",1,0.1) -> 1 | S27: istotna
F28: Drobne poprawki | R28: =IF(S28="istotna",1,0.1) -> 1 | S28: istotna
C31: 2023-10-23 | F31: Poprawki i aktualizacje danych | R31: =IF(S31="istotna",1,0.1) -> 1 | S31: istotna
C34: 2023-03-30 | F34: Aktualizacja zakresu oferty komponentów systemu dystrybucji powietrza | R34: =IF(S34="istotna",1,0.1) -> 1 | S34: istotna
F35: Nowa centrala Vitovent 300-W o wydajności 600 m3/h
C38: 2023-01-04 | F38: Aktualizacja cen na styczeń 2023 | R38: =IF(S38="istotna",1,0.1) -> 1 | S38: istotna
C41: 2022-11-05 | F41: Usunięcie błędu w oznaczeniach średnic kanałów wybranych central wentylacyjnych | R41: =IF(S41="istotna",1,0.1) -> 1 | S41: istotna
C44: 2022-07-04 | F44: Aktualizacja cen | R44: =IF(S44="istotna",1,0.1) -> 1 | S44: istotna
C47: 2022-06-15 | F47: Zmieniono drobne opisy w programie | R47: =IF(S47="istotna",1,0.1) -> 0.1 | S47: informacyjna
C50: 2022-05-16 | F50: Dodano obliczenia dla systemu opartego o kanały okrągłe DN90 | R50: =IF(S50="istotna",1,0.1) -> 1 | S50: istotna
C53: 2022-04-19 | F53: Start
R55: =[2]Obliczenia!Q199 -> Autor: | S55: =[2]Obliczenia!R199 -> PanD, 2022

Sheet Nowe kanały 2023-11 (hidden)
B2: Nowe ceny
L5: =405/529-1 -> -23% | X5: =505/968-1 -> -48%
X8: =705/1305-1 -> -46%
B15: Stare ceny
B29: Rury główne
I41: DN125 | J41: DN160 | K41: DN180
B65: Wariant 1
P68: Cena sztuki | Q68: Ilość | R68: Cena | S68: Cena specjalna
L69: Kanał izolowany 200/174, DN200/174, 2m | P69: 396.00 zł | Q69: 2 | R69: =Q69*P69 -> 792.00 zł | S69: =222*Q69 -> 444.00 zł
L70: Czerpnia/wyrzutnia ścienna | P70: 299.00 zł | Q70: 2 | R70: =Q70*P70 -> 598.00 zł | S70: =Q70*144 -> 288.00 zł
L71: Kolano 90 z mufą, DN200/174, DN180 | P71: 179.00 zł | Q71: 4 | R71: =Q71*P71 -> 716.00 zł | S71: =106*Q71 -> 424.00 zł
Q73: 37% | R73: =R72+R71+R70+R69 -> 2,106.00 zł
R74: =R73-R73*Q73 -> 1,326.78 zł | S74: =SUM(S69:S72) -> 1,156.00 zł
D76: Rury EPP : strona pomiędzy centralą a czerpnią/wyrzutnią
D77: Rury Flex bez izolacji : strona pomiędzy centralą a rozdzielaczami
P85: Cena sztuki | Q85: Ilość | R85: Cena | S85: Cena specjalna
L86: Kanał izolowany 200/174, DN200/174, 2m | P86: 396.00 zł | Q86: 3 | R86: =Q86*P86 -> 1,188.00 zł | S86: =222*Q86 -> 666.00 zł
L87: Czerpnia/wyrzutnia ścienna | P87: 299.00 zł | Q87: 2 | R87: =Q87*P87 -> 598.00 zł | S87: =Q87*144 -> 288.00 zł
L88: Kolano 90 z mufą, DN200/174, DN180 | P88: 179.00 zł | Q88: 4 | R88: =Q88*P88 -> 716.00 zł | S88: =106*Q88 -> 424.00 zł
Q90: 37% | R90: =R89+R88+R87+R86 -> 2,502.00 zł
R91: =R90-R90*Q90 -> 1,576.26 zł | S91: =SUM(S86:S89) -> 1,378.00 zł
D93: Rury EPP : strona pomiędzy centralą a czerpnią/wyrzutnią
D94: Rury Flex bez izolacji : strona pomiędzy centralą a rozdzielaczami
B98: Wariant 2
P101: Cena sztuki | Q101: Ilość | R101: Cena
L102: Rura Flex bez izolacji DN180 10 m | P102: 436.00 zł | Q102: 1 | R102: =Q102*P102 -> 436.00 zł
L103: Czerpnia/wyrzutnia ścienna | P103: 299.00 zł | Q103: 2 | R103: =Q103*P103 -> 598.00 zł
L104: EPP DN180 1m | P104: 217.00 zł | Q104: 3 | R104: =Q104*P104 -> 651.00 zł
L105: Kolano 90, EPP, DN180 | P105: 163.00 zł | Q105: 4 | R105: =Q105*P105 -> 652.00 zł
Q106: 37% | R106: =R105+R104+R103+R102 -> 2,337.00 zł
R107: =R106-R106*Q106 -> 1,472.31 zł
D109: Rury EPP : strona pomiędzy centralą a czerpnią/wyrzutnią
D110: Rury Flex bez izolacji : strona pomiędzy centralą a rozdzielaczami
P118: Cena sztuki | Q118: Ilość | R118: Cena
L119: Rura Flex bez izolacji DN180 10 m | P119: 436.00 zł | Q119: 1 | R119: =Q119*P119 -> 436.00 zł
L120: Czerpnia/wyrzutnia ścienna | P120: 299.00 zł | Q120: 2 | R120: =Q120*P120 -> 598.00 zł
L121: EPP DN180 1m | P121: 217.00 zł | Q121: 5 | R121: =Q121*P121 -> 1,085.00 zł
L122: Kolano 90, EPP, DN180 | P122: 163.00 zł | Q122: 6 | R122: =Q122*P122 -> 978.00 zł
Q123: 37% | R123: =R122+R121+R120+R119 -> 3,097.00 zł
R124: =R123-R123*Q123 -> 1,951.11 zł
D126: Rury EPP : strona pomiędzy centralą a czerpnią/wyrzutnią
D127: Rury Flex bez izolacji : strona pomiędzy centralą a rozdzielaczami
D132: Rura flex z izolacją 25 mm --- na odcinku czerpnia/wyrzutnia a centrala wentylacyjna
D141: Rura flex bez izolacji --- na odcinku pomiędzy centralą wentylacyjną a rozdzielaczem kanałów

Sheet Warunki (hidden)
C2: Norma (wartości minimalne) | E2: Zalecenia | I2: TRUE
C3: Nawiew | D3: Wywiew | E3: Krotność wymiany | G3: Strumień powietrza
E4: [1/h] | G4: [m3/h]
C5: 1 / osobę | D5: 1/ osobę | E5: min | F5: max
B6: Pokój dzienny | C6: 20 | E6: 1 | F6: 1 | H6: nawiew | I6: =IF($I$2=TRUE,60,75) -> 60
B7: Gabinet | C7: 20 | E7: 1 | F7: 1 | H7: nawiew | I7: =IF($I$2=TRUE,60,75) -> 60
B8: Sypialnia | C8: 20 | E8: 1 | F8: 1 | H8: nawiew | I8: 60
B9: Salon | C9: 20 | E9: 1 | F9: 1 | H9: nawiew | I9: 60
B10: Jadalnia - nawiew | C10: 20 | E10: 1 | F10: 1 | H10: nawiew | I10: 60
B11: Pomieszczenie / nawiew | C11: 20 | E11: 1 | F11: 1 | H11: nawiew | I11: 60
B12: Pomieszczenie / wywiew | C12: 20 | E12: 1 | F12: 1 | H12: wywiew | I12: 60
C13: [m3/h] | D13: [m3/h]
B14: Kuchnia otwarta z kuchenką gazową | D14: 70 | E14: 2 | F14: 2 | H14: wywiew | I14: 75
B15: Kuchnia otwarta z kuchenką elektryczną | D15: 50 | E15: 2 | F15: 2 | H15: wywiew | I15: 75
B16: Jadalnia - wywiew | D16: 20
B17: Pomieszczenie / wywiew | D17: 20
B18: Łazienka | D18: 50 | E18: 2 | F18: 3 | H18: wywiew | I18: 75
B19: WC (bez wanny lub kabiny prysznicowej) | D19: 30 | E19: 2 | F19: 3 | H19: wywiew | I19: 75
B20: Klatka schodowa, hol | D20: 0 | F20: 1 | G20: 50 | H20: wywiew | I20: 75
B21: Pomieszczenie gospodarcze | D21: 15 | E21: 1 | F21: 1 | H21: wywiew | I21: 75
B22: Garderoba | D22: 15 | E22: 0.5 | F22: 0.5 | H22: wywiew | I22: 75
B23: Wiatrołap | D23: 15 | E23: 0.5 | F23: 0.5 | H23: wywiew | I23: 75
B24: Pomieszczenie rekreacyjne | C24: 20 | D24: 20 | E24: 2 | F24: 2 | H24: wywiew | I24: 60
B25: Pralnia, suszarnia | D25: 0 | E25: 2 | F25: 2 | H25: wywiew | I25: 75
B26: Spiżarnia | D26: 15 | E26: 1 | F26: 1 | H26: wywiew | I26: 75
B27: Kotłownia z kotłem grupy C lub pompą ciepła | C27: 15 | D27: 15 | E27: 1 | F27: 1 | H27: wywiew | I27: 75
B28: Garaż | H28: nawiew
C32: 0.38 zł
C33: 0.54 zł
C34: 1.15 zł
B37: Wytyczne projektowe
B38: - - - - - - - - - - - - - - - NAWIEW - - - - - - - - - - - - - - -
B39: =B6 -> Pokój dzienny
B40: =B7 -> Gabinet
B41: =B8 -> Sypialnia
B42: =B9 -> Salon
B43: Jadalnia - nawiew
B44: =B11 -> Pomieszczenie / nawiew
B45: - - - - - - - - - - - - - - - WYWIEW - - - - - - - - - - - - - - -
B46: =B12 -> Pomieszczenie / wywiew
B47: =B14 -> Kuchnia otwarta z kuchenką gazową
B48: =B15 -> Kuchnia otwarta z kuchenką elektryczną
B49: Jadalnia - wywiew
B50: =B18 -> Łazienka
B51: WC (bez wanny lub kabiny prysznicowej)
B52: Klatka schodowa, hol
B53: Pomieszczenie gospodarcze
B54: Garderoba
B55: Wiatrołap
B56: Pomieszczenie rekreacyjne
B57: Pralnia, suszarnia
B58: Spiżarnia
B59: Kotłownia z kotłem grupy C lub pompą ciepła
B60: Garaż
B94: Uwagi i zalecenia dotyczące instalacji rozprowadzania powietrza
B96: • Ewentualny kominek będzie pobierał powietrze do spalania odzielnym kanałem z zewnątrz
B97: • Okap kuchenny będzie pracował na powietrzu obiegowym
B98: • Dokładne lokalizacje nawieników i wywiewników, należy ustalić w koordynacji z innymi branżami oraz aranżacją wnętrz
B99: • Inwestor zapewni 80mm przestrzeni w warstwach posadzkowych na system kanałów wentylacyjnych
B100: • Zaprojektować przewody rurowe tak, aby się nie krzyżowały.
B101: • Czerpnia i wyrzutnia elewacyjne będą zlokalizowane, co najmniej 2 m ponad poziomem terenu
B102: • Rozdzielacze będę zlokalizowane bezpośrednio na stropie parteru, wewnątrz izolacji termicznej spełniającej warunki paroszczelności
B103: • Przewodów DN 63 bez izolacji nie wolno prowadzić w przestrzeni powietrznej poddasza
B104: • Nie stosować dłuższych odcinków przewodów DN63 niż 25m
B105: • Aby umożliwić przepływ powietrza z obszarów nawiewnych do obszarów wywiewnych, należy zapewnić szczeliną pod drzwiami.
B106: • Podczas montażu instalacji wentylacji należy systematycznie zaślepiać wszystkie otwory, aby zabezpieczyć ją przed zapyleniem.
B107: • Zaleca się stosowanie tłumików na odcinku od centrali wentylacyjnej do rozdzielacza powietrza nawiewanego do pomieszczeń
B109: Uwagi i zalecenia dotyczące centrali wentylacyjnej
B111: • Centralę wentylacyjną należy ustawiać wewnątrz pomieszczeń ogrzewanych
B112: • Centralę wentylacyjną można zamontować w pozycji stojącej lub wiszącej
B113: • Należy zapewnić swobodny dostęp do centrali wentylacyjnej w celu wykonania prac konserwacyjnych
B115: Uwagi i zalecenia dotyczące eksploatacji centrali wentylacyjnej
B117: • Panel zdalnego sterowania należy umieścić w ogólnodostępnym miejscu
B118: • Należy kontrolować jakość filtrów i w razie konieczności wymienić na nowe
B120: Koszty eksploatacyjne wentylacji grawitacyjnej
B121: Q=V/3600*1,2*1*deltaT
B122: Kubatura = | D122: [m3]
B123: V obliczony = | D123: [m3/h] | E123: =IFERROR(C123/C122,"błąd") -> błąd | F123: krotność dla rekuperacji
B124: V do obliczeń kosztów pod grawitację = | C124: =C122*E124 -> 0 | D124: [m3/h] | E124: 0.5 | F124: krotność dla grawitacji
B126: X | C126: =$C$124*1.2/3600*D126*24*31 -> 0 | D126: =$H$127-E126 -> 11.5 | E126: 8.5 | F126: średnie miesięczne temeratury dla Wawy 1981-2010
B127: XI | C127: =$C$124*1.2/3600*D127*24*30 -> 0 | D127: =$H$127-E127 -> 16.9 | E127: 3.1 | F127: dla budynku zakładamy | H127: 20 | I127: [stC]
B128: XII | C128: =$C$124*1.2/3600*D128*24*31 -> 0 | D128: 20.7 | E128: -0.7
B129: I | C129: =$C$124*1.2/3600*D129*24*31 -> 0 | D129: 20.9 | E129: -0.9
B130: II | C130: =$C$124*1.2/3600*D130*24*28 -> 0 | D130: 21 | E130: -1
B131: III | C131: =$C$124*1.2/3600*D131*24*31 -> 0 | D131: 17.3 | E131: 2.7
B132: IV | C132: =$C$124*1.2/3600*D132*24*30 -> 0 | D132: 11.4 | E132: 8.6
B134: Suma | C134: =SUM(C126:C133) -> 0.00 | D134: [kWh]
B137: Koszty eksploatacyjne wentylacji mechanicznej
B138: Q=V/3600*1,2*1*deltaT
B139: V obliczony = | D139: =D123 -> [m3/h] | E139: 12h z wydajnością 50% i 12h z wydajnością 100%
B141: 1. Koszt - sprawność reku, różnicę trzeba zagrzać
B142: sprawność całoroczna (z karty ErP) | C142: 0.85
B143: =1.5*365/2*C139*(1-C142)*3*1.2*24/3600 -> 0 | C143: [kWh/rok] | D143: dla deltaT=3K
B145: 2. Koszt - praca wentylatorów
B146: Moc wentylatorów trybie normalnym | D146: [W] | E146: 1/2 roku = 1/2*8650h | G146: =C146*8760/2000*0.85*2 -> 0 | H146: [kWh]
B147: Moc wentylatorów w trybie zredukowanym | D147: [W] | E147: 1/2 roku = 1/2*8650h | G147: =C147*8760/2000*0.9*2 -> 0 | H147: [kWh]
F149: Suma | G149: =SUM(G146:G148) -> 0 | H149: [kWh] | J149: =G149*0.62 -> 0 | K149: =J149/12 -> 0
B151: 3. Koszt - praca grzałki elektrycznej | E151: średnia ważona | G151: 1/2 z 50% wydajnością i 1/2 ze 100% wydajnością
B152: Kraków od 0 do -5stC | C152: =1868-540 -> 1328 | D152: [h] | E152: -1 | G152: =($C$158/2*1.2/3600*($C$159-E152)*C152/2)+($C$158*1.2/3600*($C$159-E152)*C152/2) -> 0.00 | H152: [kWh]
B153: Kraków od -5 do -10stC | C153: =540-108 -> 432 | D153: [h] | E153: -6.5 | G153: =($C$158/2*1.2/3600*($C$159-E153)*C153/2)+($C$158*1.2/3600*($C$159-E153)*C153/2) -> 0.00 | H153: [kWh]
B154: Kraków od -10 do -20stC | C154: 108 | D154: [h] | E154: -12 | G154: =($C$158/2*1.2/3600*($C$159-E154)*C154/2)+($C$158/2*1.2/3600*($C$159-E154)*C154/2) -> 0.00 | H154: [kWh]
F156: Suma | G156: =SUM(G152:G155) -> 0.00 | H156: [kWh]
B157: Q=V/3600*1,2*1*deltaT
B158: V obliczony = | D158: [m3/h] | F158: krotność dla rekuperacji
C159: 0 | D159: [stC] | F159: temperatura zabez. przed zamar.
B165: -------- NAWIEW --------
B166: Pokój dzienny | D166: 1 | E166: nawiew | G166: =Dane!E32 -> Wiatrołap | L166: Funkcja | M166: =INDEX($B$166:$C$187,MATCH($G$166,nawiew_wywiew_lista2,0),2) -> 0 | N166: =MATCH(G166,$B$166:$B$186,0) -> 17
B167: Gabinet | D167: 2 | E167: nawiew | G167: =Dane!E38 -> Kuchnia otwarta z kuchenką elektryczną | L167: Funkcja | M167: =INDEX($B$166:$C$187,MATCH($G$167,nawiew_wywiew_lista2,0),2) -> 0 | N167: 11
B168: Sypialnia | D168: 3 | E168: nawiew | G168: =Dane!E44 -> Spiżarnia | L168: Funkcja | M168: =INDEX($B$166:$C$187,MATCH($G$168,nawiew_wywiew_lista2,0),2) -> 0 | N168: 20
B169: Salon | D169: 4 | E169: nawiew | G169: =Dane!E50 -> Pokój dzienny | L169: Funkcja | M169: =INDEX($B$166:$C$187,MATCH($G$169,nawiew_wywiew_lista2,0),2) -> 0 | N169: 1
B170: Jadalnia - nawiew | D170: 5 | E170: nawiew | G170: =Dane!E56 -> WC (bez wanny lub kabiny prysznicowej) | L170: Funkcja | M170: =INDEX($B$166:$C$187,MATCH($G$170,nawiew_wywiew_lista2,0),2) -> 0 | N170: 13
B171: Pomieszczenie / nawiew | D171: 6 | E171: nawiew | G171: =Dane!$E$62 -> Gabinet | L171: Funkcja | M171: =INDEX($B$166:$C$187,MATCH($G$171,nawiew_wywiew_lista2,0),2) -> 0 | N171: 2
B172: -------- WYWIEW -------- | G172: =Dane!$E$68 -> Pomieszczenie gospodarcze
B173: Pomieszczenie / wywiew | D173: 7 | E173: wywiew | G173: =Dane!E74 -> Jadalnia - nawiew | L173: Funkcja | M173: =INDEX($B$166:$C$187,MATCH($G$173,nawiew_wywiew_lista2,0),2) -> 0 | N173: =MATCH(G173,$B$166:$B$186,0) -> 5
B174: Kuchnia otwarta z kuchenką gazową | D174: 8 | E174: wywiew | G174: =Dane!E80 -> Sypialnia | L174: Funkcja | M174: =INDEX($B$166:$C$187,MATCH($G$174,nawiew_wywiew_lista2,0),2) -> 0 | N174: =MATCH(G174,$B$166:$B$186,0) -> 3
B175: Jadalnia - wywiew | D175: 9 | E175: wywiew | G175: =Dane!E86 -> Garderoba
B176: Kuchnia otwarta z kuchenką elektryczną | D176: 10 | E176: wywiew | G176: =Dane!E92 -> Łazienka | L176: Funkcja | M176: =INDEX($B$166:$C$187,MATCH($G$176,nawiew_wywiew_lista2,0),2) -> 0 | N176: =MATCH(G176,$B$166:$B$186,0) -> 12
B177: Łazienka | D177: 11 | E177: wywiew | G177: =Dane!E98 -> Sypialnia | L177: Funkcja | M177: =INDEX($B$166:$C$187,MATCH($G$177,nawiew_wywiew_lista2,0),2) -> 0 | N177: =MATCH(G177,$B$166:$B$186,0) -> 3
B178: WC (bez wanny lub kabiny prysznicowej) | D178: 12 | E178: wywiew | G178: =Dane!E121 -> Sypialnia | L178: Funkcja | M178: =INDEX($B$166:$C$187,MATCH($G$178,nawiew_wywiew_lista2,0),2) -> 0 | N178: =MATCH(G178,$B$166:$B$186,0) -> 3
B179: Klatka schodowa, hol | D179: 13 | E179: wywiew | G179: =Dane!E126 -> Łazienka | L179: Funkcja | M179: =INDEX($B$166:$C$187,MATCH($G$179,nawiew_wywiew_lista2,0),2) -> 0 | N179: 12
B180: Pomieszczenie gospodarcze | D180: 14 | E180: wywiew | G180: =Dane!E132 -> 0
B181: Garderoba | D181: 15 | E181: wywiew | G181: =Dane!E138 -> 0 | L181: Funkcja | M181: =INDEX($B$166:$C$187,MATCH($G$181,nawiew_wywiew_lista2,0),2) -> 0 | N181: =MATCH(G181,$B$166:$B$186,0) -> 
B182: Wiatrołap | D182: 16 | E182: wywiew | G182: =Dane!E144 -> 0 | L182: Funkcja | M182: =INDEX($B$166:$C$187,MATCH($G$182,nawiew_wywiew_lista2,0),2) -> 0 | N182: =MATCH(G182,$B$166:$B$186,0) -> 
B183: Pomieszczenie rekreacyjne | D183: 17 | E183: wywiew | G183: =Dane!E150 -> 0 | L183: Funkcja | M183: =INDEX($B$166:$C$187,MATCH($G$183,nawiew_wywiew_lista2,0),2) -> 0 | N183: =MATCH(G183,$B$166:$B$186,0) -> 
B184: Pralnia, suszarnia | D184: 18 | E184: wywiew | G184: =Dane!E156 -> 0 | L184: Funkcja | M184: =INDEX($B$166:$C$187,MATCH($G$184,nawiew_wywiew_lista2,0),2) -> 0 | N184: =MATCH(G184,$B$166:$B$186,0) -> 
B185: Spiżarnia | D185: 19 | E185: wywiew | G185: =Dane!E162 -> 0 | L185: Funkcja | M185: =INDEX($B$166:$C$187,MATCH($G$185,nawiew_wywiew_lista2,0),2) -> 0 | N185: =MATCH(G185,$B$166:$B$186,0) -> 
B186: Kotłownia z kotłem grupy C lub pompą ciepła | D186: 20 | E186: naw.wyw.
B187: 0 | D187: 20

Sheet obliczenia-temp (hidden)
G2: Arkusz obliczeniowy systemu wentylacji centralnej z odzyskiem ciepła | Z2: Parter
Z3: Poddasze
G4: Ilość kondygnacji | I4: 2
G6: Lokalizacja centrali | H6: f | I6: Parter
I12: dane obliczone
I13: dane do wprowadzenia
D14: Wybierz pomieszczenie z listy i wprowadź wartości
C15: Nr pom. | D15: Nazwa pomieszczenia | G15: Pow. | H15: Kubatura | I15: Założona krotność wymiany | J15: Wydatek z krotności | K15: Wydatek minimalny | L15: Ilość osób | M15: Wydatek z ilości osób | N15: Założony nawiew | O15: Założony nawiew | P15: Założony wywiew | Q15: Założony wywiew
G16: [m2] | H16: [m3]
C17: 0.1 | D17: Wiatrołap | G17: 3.2 | H17: =G17*2.65 -> 8.5 | I17: =VLOOKUP(D17,warunki2,5,FALSE) -> 0.5 | J17: =I17*H17 -> 4.2 | K17: =IF(VLOOKUP(D17,warunki2,3,FALSE)=20,0,VLOOKUP(D17,warunki2,3,FALSE)) -> 15.0 | M17: =L17*20 -> 0 | N17: =IFERROR(VLOOKUP(D17,nawiew4,1,),0) -> Wiatrołap | O17: =IF(N17=0," ",MROUND(IF(J17>K17,J17,K17),5)) -> 15 | P17: =IFERROR(VLOOKUP(D17,wywiew3,1,),0) -> 0 | Q17: =IF(P17=0," ",MROUND(IF(J17>K17,J17,K17),5)) -> 
C18: 0.2 | D18: Klatka schodowa, hol | G18: 18.3 | H18: =G18*2.65 -> 48.5 | I18: 1 | J18: =I18*H18 -> 48.5 | K18: 0.0 | M18: 0 | N18: 0 | O18: =IF(N18=0," ",MROUND(IF(J18>K18,J18,K18),5)) ->  | P18: Klatka schodowa, hol | Q18: =IF(P18=0," ",MROUND(IF(J18>K18,J18,K18),5)) -> 50
C19: 0.3 | D19: Kuchnia otwarta z kuchenką elektryczną | G19: 12.7 | H19: 33.7 | I19: 2 | J19: 67.3 | K19: 50.0 | M19: 0 | N19: 0 | P19: Kuchnia otwarta z kuchenką elektryczną | Q19: 65
C20: 0.4 | D20: Spiżarnia | G20: 3.2 | H20: 8.5 | I20: 1 | J20: 8.5 | K20: 15.0 | M20: 0 | N20: Spiżarnia | O20: 15 | P20: 0
C21: 0.5 | D21: Jadalnia | G21: 12.7 | H21: 33.7 | M21: 0 | N21: 0 | P21: 0
C22: 0.6 | D22: Pokój dzienny | G22: 29.5 | H22: 78.2 | M22: 0 | N22: 0 | P22: Pokój dzienny
C23: 0.7 | D23: Gabinet | G23: 10.7 | H23: 28.4 | L23: 2 | M23: 40 | N23: 0 | P23: Gabinet
C24: 0.8 | D24: WC (bez wanny lub kabiny prysznicowej) | G24: 3 | H24: 8.0 | I24: 3 | J24: 23.9 | K24: 30.0 | M24: 0 | N24: 0 | P24: WC (bez wanny lub kabiny prysznicowej) | Q24: 30
C25: 0.9 | D25: Kotłownia z kotłem grupy C | G25: 7.3 | H25: 19.3 | M25: 0 | N25: 0 | P25: 0
C26: 0.10 | D26: Garaż | G26: 41.1 | H26: 108.9 | I26: 0 | J26: 0.0 | K26: 0.0 | M26: 0 | N26: Garaż | O26: 0 | P26: 0
G27: =SUM(G17:G26)&" [m2]" -> 141,7 [m2] | M27: suma | O27: =SUM(O17:O26) -> 30 | Q27: =SUM(Q17:Q26) ->  | R27: [m3/h]
C29: 1.1 | D29: Pokój dzienny | G29: 25.7 | H29: =G29*2.65 -> 68.1 | I29: =VLOOKUP(D29,warunki2,5,FALSE) ->  | K29: =IF(VLOOKUP(D29,warunki2,3,FALSE)=20,0,VLOOKUP(D29,warunki2,3,FALSE)) ->  | L29: 2 | M29: =L29*20 -> 40 | N29: =IFERROR(VLOOKUP(D29,nawiew4,1,),0) -> 0 | O29: =IF(N29=0," ",MROUND(IF(J29>K29,J29,K29),5)) ->  | P29: =IFERROR(VLOOKUP(D29,wywiew3,1,),0) -> Pokój dzienny | Q29: =IF(P29=0," ",MROUND(IF(J29>K29,J29,K29),5)) -> 
C30: 1.2 | D30: Sypialnia | G30: 18.6 | H30: =G30*2.65 -> 49.3 | L30: 2 | M30: 40 | N30: 0 | O30: =IF(N30=0," ",MROUND(IF(J30>K30,J30,K30),5)) ->  | P30: Sypialnia | Q30: =IF(P30=0," ",MROUND(IF(J30>K30,J30,K30),5)) -> 
C31: 1.3 | D31: Łazienka | G31: 6.9 | H31: =G31*2.65 -> 18.3 | I31: 3 | J31: 54.855 | K31: 50.0 | M31: 0 | N31: 0 | P31: Łazienka | Q31: 55
C32: 1.4 | D32: Garderoba | G32: 4.9 | H32: 13.0 | I32: 0.5 | J32: 6.4925 | K32: 15.0 | M32: 0 | N32: Garderoba | O32: 15 | P32: 0
C33: 1.5 | D33: Pokój dzienny | G33: 18.9 | H33: 50.1 | L33: 2 | M33: 40 | N33: 0 | P33: Pokój dzienny
C34: 1.6 | D34: Pokój dzienny | G34: 18.9 | H34: 50.1 | L34: 2 | M34: 40 | N34: 0 | P34: Pokój dzienny
C35: 1.7 | D35: Pomieszczenie rekreacyjne | G35: 18.6 | H35: 49.3 | I35: 2 | J35: 98.58 | K35: 0.0 | M35: 0 | N35: Pomieszczenie rekreacyjne | O35: 100 | P35: 0
C36: 1.8 | D36: Łazienka | G36: 11 | H36: 29.2 | I36: 3 | J36: 87.45 | K36: 50.0 | M36: 0 | N36: 0 | P36: Łazienka | Q36: 85
C37: 1.9 | H37: 0.0 | M37: 0 | N37: 0 | P37: 0
C38: 1.10 | H38: 0.0 | M38: 0 | N38: 0 | P38: 0
G39: =SUM(G29:G38)&" [m2]" -> 123,5 [m2] | M39: suma | O39: =SUM(O29:O38) -> 115 | Q39: =SUM(Q29:Q38) ->  | R39: [m3/h]
G41: =SUM(G17:G26,G29:G38)&" [m2]" -> 265,2 [m2] | I41: Projektowa wydajność centrali wentylacyjnej [m3/h]: | O41: =O39+O27 -> 145 | Q41: =Q39+Q27 ->  | R41: [m3/h]
C43: Wartości istotne : 1. Ilość mieszkańców, pomieszczenia stale wykorzystywane w ciągu dnia itd 2. Rodzaj kuchnia, otwarta/zamknięta, z kuchenką elektryczną/gazową 3. Ewentualny kominek będzie pobierał powietrze do spalania odzielnym kanałem z zewnątrz 4. Okap kuchenny będzie pracował na powietrzu obiegowym 5. Lokalizacja centrali parter/poddasze 6. Dokładne lokalizacje nawieników i wywiewników, należy ustalić w koordynacji z innymi branżami oraz aranżacją wnętrz 7. Inwestor zapewni 80mm przestrzeni w warstwach posadzkowych na system kanałów wentylacyjnych

Sheet Arkusz1 (hidden)
B2: Bilans powietrza
B4: Nr pom. | C4: Nazwa pom. | D4: Pow. | E4: Kubatura | F4: Założona krot.wym. | G4: Wydatek z krotności | H4: Wydatek z ilości os. | J4: Założony nawiew | K4: Założony wywiew | M4: Ilość anemostatów | O4: Ilość kanałów
D5: [m2] | E5: [m3] | M5: naw. | N5: wyw. | O5: naw. | P5: wyw.
B7: 0.1 | E7: =D7*2.7 -> 0.0 | G7: =E7*F7 -> 0
B8: 0.2 | E8: =D8*2.7 -> 0.0 | G8: =E8*F8 -> 0
B9: 0.3 | E9: 0.0 | G9: 0
B10: 0.4 | E10: 0.0 | G10: 0
B11: 0.5 | E11: 0.0 | G11: 0
B12: 0.6 | E12: 0.0 | G12: 0
B13: 0.7 | E13: 0.0 | G13: 0 | T13: =X6 -> 0 | U13: =X6 -> 0
B14: 0.8 | E14: 0.0 | G14: 0
B15: 0.9 | E15: 0.0 | G15: 0
B16: 0.10 | E16: 0.0 | G16: 0
B17: 0.11 | E17: 0.0 | G17: 0
J19: =SUM(J7:J17) -> 0 | K19: =SUM(K7:K17) -> 0
B21: 1.1 | E21: =D21*2.5 -> 0.0 | G21: =E21*F21 -> 0
B22: 1.2 | E22: =D22*2.5 -> 0.0 | G22: =E22*F22 -> 0
B23: 1.3 | E23: =D23*2.5 -> 0.0 | G23: 0
B24: 1.4 | E24: 0.0 | G24: 0
B25: 1.5 | E25: 0.0 | G25: 0
B26: 1.6 | E26: 0.0 | G26: 0
B27: 1.7 | E27: 0.0 | G27: 0
B28: 1.8 | E28: 0.0 | G28: 0
B29: 1.9 | E29: 0.0 | G29: 0
B30: 1.10 | E30: 0.0 | G30: 0
J32: =SUM(J21:J31) -> 0 | K32: =SUM(K21:K31) -> 0 | M32: =SUM(M6:M31) -> 0 | N32: =SUM(N6:N31) -> 0 | O32: =SUM(O6:O31) -> 0 | P32: =SUM(P6:P31) -> 0
E34: Projektowa wydajność centrali wentylacyjnej [m3/h]: | J34: =J32+J19 -> 0 | K34: =K32+K19 -> 0
B36: Założenia:
B38: 1. Ilość mieszkańców: 4 osoby 2. Kuchnia wyposażona w kuchenkę elektryczną 3. Ewentualny kominek będzie pobierał powietrze do spalania odzielnym kanałem z zewnątrz 4. Okap będzie pracował na powietrzu obiegowym 5. Lokalizacja centrali - kotłownia na parterze 6. Dokładne lokalizacje nawieników i wywiewników, należy ustalić w koordynacji z innymi branżami oraz aranżacją wnętrz 7. Inwestor zapewni 80mm przestrzeni w warstwach posadzkowych na system kanałów wentylacyjnych
